{"text_format":"1","workbook":"xlsx","n_sheets":5,"sheets":["MATHS","SC. PHYSIQUES","ANGLAIS","HISTOIRE","GEOGRAPHIE"],"not_rendered":{"charts":0,"images":0,"macros":1,"external_links":0,"defined_names":0,"comments":0,"pivot_tables":0},"unopened":[],"bounds":{"document_bytes":16777216,"sheet_cells":100000,"rows_first":2000,"rows_last":500,"rows_between":2000,"halvings":0,"cell_chars":16384,"cell_head_chars":4096},"cells_cut":0,"cells_raw":0,"read":"whole","date_system":"1900"}

{"sheet":"MATHS","index":0,"n_rows":509,"n_cols":10,"rows_kept":509,"cut":false,"hidden":false,"merged":[]}
[null,null,null,"Moyennes en Mathematiques"]
[]
[]
[null,"Classes","noms élèves","Sexes","Ages","Statut","Moyenne 1er Trim","Moyenne 2e Trim","Moyenne 3e Trim","Moyenne annuelle"]
[{"$f":"IF(C5<>\"\",1,\"\")","v":""},null,null,null,null,null,null,null,null,{"$f":"AVERAGE(G5:I5)","v":{"$error":"#DIV/0!"}}]
[{"$f":"IF(OR(C6=\"\",A5=\"\"),\"\",A5+1)","v":""},null,null,null,null,null,null,null,null,{"$f":"AVERAGE(G6:I6)","v":{"$error":"#DIV/0!"}}]
[{"$f":"IF(OR(C7=\"\",A6=\"\"),\"\",A6+1)","v":""},null,null,null,null,null,null,null,null,{"$error":"#DIV/0!"}]
["",null,null,null,null,null,null,null,null,{"$error":"#DIV/0!"}]
["",null,null,null,null,null,null,null,null,{"$error":"#DIV/0!"}]
["",null,null,null,null,null,null,null,null,{"$error":"#DIV/0!"}]
["",null,null,null,null,null,null,null,null,{"$error":"#DIV/0!"}]
["",null,null,null,null,null,null,null,null,{"$error":"#DIV/0!"}]
["",null,null,null,null,null,null,null,null,{"$error":"#DIV/0!"}]
["",null,null,null,null,null,null,null,null,{"$error":"#DIV/0!"}]
["",null,null,null,null,null,null,null,null,{"$error":"#DIV/0!"}]
["",null,null,null,null,null,null,null,null,{"$error":"#DIV/0!"}]
["",null,null,null,null,null,null,null,null,{"$error":"#DIV/0!"}]
["",null,null,null,null,null,null,null,null,{"$error":"#DIV/0!"}]
["",null,null,null,null,null,null,null,null,{"$error":"#DIV/0!"}]
["",null,null,null,null,null,null,null,null,{"$error":"#DIV/0!"}]
["",null,null,null,null,null,null,null,null,{"$error":"#DIV/0!"}]
["",null,null,null,null,null,null,null,null,{"$error":"#DIV/0!"}]
["",null,null,null,null,null,null,null,null,{"$error":"#DIV/0!"}]
["",null,null,null,null,null,null,null,null,{"$error":"#DIV/0!"}]
["",null,null,null,null,null,null,null,null,{"$error":"#DIV/0!"}]
["",null,null,null,null,null,null,null,null,{"$error":"#DIV/0!"}]
["",null,null,null,null,null,null,null,null,{"$error":"#DIV/0!"}]
["",null,null,null,null,null,null,null,null,{"$error":"#DIV/0!"}]
["",null,null,null,null,null,null,null,null,{"$f":"AVERAGE(G29:I29)","v":{"$error":"#DIV/0!"}}]
["",null,null,null,null,null,null,null,null,{"$error":"#DIV/0!"}]
["",null,null,null,null,null,null,null,null,{"$error":"#DIV/0!"}]
["",null,null,null,null,null,null,null,null,{"$error":"#DIV/0!"}]
["",null,null,null,null,null,null,null,null,{"$error":"#DIV/0!"}]
["",null,null,null,null,null,null,null,null,{"$error":"#DIV/0!"}]
["",null,null,null,null,null,null,null,null,{"$error":"#DIV/0!"}]
["",null,null,null,null,null,null,null,null,{"$error":"#DIV/0!"}]
["",null,null,null,null,null,null,null,null,{"$error":"#DIV/0!"}]
["",null,null,null,null,null,null,null,null,{"$f":"AVERAGE(G38:I38)","v":{"$error":"#DIV/0!"}}]
["",null,null,null,null,null,null,null,null,{"$error":"#DIV/0!"}]
["",null,null,null,null,null,null,null,null,{"$error":"#DIV/0!"}]
["",null,null,null,null,null,null,null,null,{"$error":"#DIV/0!"}]
["",null,null,null,null,null,null,null,null,{"$error":"#DIV/0!"}]
["",null,null,null,null,null,null,null,null,{"$error":"#DIV/0!"}]
["",null,null,null,null,null,null,null,null,{"$error":"#DIV/0!"}]
["",null,null,null,null,null,null,null,null,{"$error":"#DIV/0!"}]
["",null,null,null,null,null,null,null,null,{"$error":"#DIV/0!"}]
["",null,null,null,null,null,null,null,null,{"$error":"#DIV/0!"}]
["",null,null,null,null,null,null,null,null,{"$error":"#DIV/0!"}]
["",null,null,null,null,null,null,null,null,{"$error":"#DIV/0!"}]
["",null,null,null,null,null,null,null,null,{"$error":"#DIV/0!"}]
["",null,null,null,null,null,null,null,null,{"$error":"#DIV/0!"}]
["",null,null,null,null,null,null,null,null,{"$error":"#DIV/0!"}]
["",null,null,null,null,null,null,null,null,{"$error":"#DIV/0!"}]
["",null,null,null,null,null,null,null,null,{"$error":"#DIV/0!"}]
["",null,null,null,null,null,null,null,null,{"$error":"#DIV/0!"}]
["",null,null,null,null,null,null,null,null,{"$error":"#DIV/0!"}]
["",null,null,null,null,null,null,null,null,{"$error":"#DIV/0!"}]
["",null,null,null,null,null,null,null,null,{"$error":"#DIV/0!"}]
["",null,null,null,null,null,null,null,null,{"$error":"#DIV/0!"}]
["",null,null,null,null,null,null,null,null,{"$error":"#DIV/0!"}]
["",null,null,null,null,null,null,null,null,{"$error":"#DIV/0!"}]
["",null,null,null,null,null,null,null,null,{"$error":"#DIV/0!"}]
["",null,null,null,null,null,null,null,null,{"$error":"#DIV/0!"}]
["",null,null,null,null,null,null,null,null,{"$error":"#DIV/0!"}]
["",null,null,null,null,null,null,null,null,{"$error":"#DIV/0!"}]
["",null,null,null,null,null,null,null,null,{"$error":"#DIV/0!"}]
["",null,null,null,null,null,null,null,null,{"$error":"#DIV/0!"}]
["",null,null,null,null,null,null,null,null,{"$error":"#DIV/0!"}]
["",null,null,null,null,null,null,null,null,{"$error":"#DIV/0!"}]
["",null,null,null,null,null,null,null,null,{"$error":"#DIV/0!"}]
[{"$f":"IF(OR(C71=\"\",A70=\"\"),\"\",A70+1)","v":""},null,null,null,null,null,null,null,null,{"$error":"#DIV/0!"}]
["",null,null,null,null,null,null,null,null,{"$error":"#DIV/0!"}]
["",null,null,null,null,null,null,null,null,{"$error":"#DIV/0!"}]
["",null,null,null,null,null,null,null,null,{"$error":"#DIV/0!"}]
["",null,null,null,null,null,null,null,null,{"$error":"#DIV/0!"}]
["",null,null,null,null,null,null,null,null,{"$error":"#DIV/0!"}]
["",null,null,null,null,null,null,null,null,{"$error":"#DIV/0!"}]
["",null,null,null,null,null,null,null,null,{"$error":"#DIV/0!"}]
["",null,null,null,null,null,null,null,null,{"$error":"#DIV/0!"}]
["",null,null,null,null,null,null,null,null,{"$error":"#DIV/0!"}]
["",null,null,null,null,null,null,null,null,{"$error":"#DIV/0!"}]
["",null,null,null,null,null,null,null,null,{"$error":"#DIV/0!"}]
["",null,null,null,null,null,null,null,null,{"$error":"#DIV/0!"}]
["",null,null,null,null,null,null,null,null,{"$error":"#DIV/0!"}]
["",null,null,null,null,null,null,null,null,{"$error":"#DIV/0!"}]
["",null,null,null,null,null,null,null,null,{"$error":"#DIV/0!"}]
["",null,null,null,null,null,null,null,null,{"$error":"#DIV/0!"}]
["",null,null,null,null,null,null,null,null,{"$error":"#DIV/0!"}]
["",null,null,null,null,null,null,null,null,{"$error":"#DIV/0!"}]
["",null,null,null,null,null,null,null,null,{"$error":"#DIV/0!"}]
["",null,null,null,null,null,null,null,null,{"$error":"#DIV/0!"}]
["",null,null,null,null,null,null,null,null,{"$error":"#DIV/0!"}]
["",null,null,null,null,null,null,null,null,{"$error":"#DIV/0!"}]
["",null,null,null,null,null,null,null,null,{"$error":"#DIV/0!"}]
["",null,null,null,null,null,null,null,null,{"$error":"#DIV/0!"}]
["",null,null,null,null,null,null,null,null,{"$error":"#DIV/0!"}]
["",null,null,null,null,null,null,null,null,{"$error":"#DIV/0!"}]
["",null,null,null,null,null,null,null,null,{"$error":"#DIV/0!"}]
["",null,null,null,null,null,null,null,null,{"$error":"#DIV/0!"}]
["",null,null,null,null,null,null,null,null,{"$error":"#DIV/0!"}]
["",null,null,null,null,null,null,null,null,{"$error":"#DIV/0!"}]
["",null,null,null,null,null,null,null,null,{"$f":"AVERAGE(G102:I102)","v":{"$error":"#DIV/0!"}}]
["",null,null,null,null,null,null,null,null,{"$error":"#DIV/0!"}]
["",null,null,null,null,null,null,null,null,{"$error":"#DIV/0!"}]
["",null,null,null,null,null,null,null,null,{"$error":"#DIV/0!"}]
["",null,null,null,null,null,null,null,null,{"$error":"#DIV/0!"}]
["",null,null,null,null,null,null,null,null,{"$error":"#DIV/0!"}]
["",null,null,null,null,null,null,null,null,{"$error":"#DIV/0!"}]
["",null,null,null,null,null,null,null,null,{"$error":"#DIV/0!"}]
["",null,null,null,null,null,null,null,null,{"$error":"#DIV/0!"}]
["",null,null,null,null,null,null,null,null,{"$error":"#DIV/0!"}]
["",null,null,null,null,null,null,null,null,{"$error":"#DIV/0!"}]
["",null,null,null,null,null,null,null,null,{"$error":"#DIV/0!"}]
["",null,null,null,null,null,null,null,null,{"$error":"#DIV/0!"}]
["",null,null,null,null,null,null,null,null,{"$error":"#DIV/0!"}]
["",null,null,null,null,null,null,null,null,{"$error":"#DIV/0!"}]
["",null,null,null,null,null,null,null,null,{"$error":"#DIV/0!"}]
["",null,null,null,null,null,null,null,null,{"$error":"#DIV/0!"}]
["",null,null,null,null,null,null,null,null,{"$error":"#DIV/0!"}]
["",null,null,null,null,null,null,null,null,{"$error":"#DIV/0!"}]
["",null,null,null,null,null,null,null,null,{"$error":"#DIV/0!"}]
["",null,null,null,null,null,null,null,null,{"$error":"#DIV/0!"}]
["",null,null,null,null,null,null,null,null,{"$error":"#DIV/0!"}]
["",null,null,null,null,null,null,null,null,{"$error":"#DIV/0!"}]
["",null,null,null,null,null,null,null,null,{"$error":"#DIV/0!"}]
["",null,null,null,null,null,null,null,null,{"$error":"#DIV/0!"}]
["",null,null,null,null,null,null,null,null,{"$error":"#DIV/0!"}]
["",null,null,null,null,null,null,null,null,{"$error":"#DIV/0!"}]
["",null,null,null,null,null,null,null,null,{"$error":"#DIV/0!"}]
["",null,null,null,null,null,null,null,null,{"$error":"#DIV/0!"}]
["",null,null,null,null,null,null,null,null,{"$error":"#DIV/0!"}]
["",null,null,null,null,null,null,null,null,{"$error":"#DIV/0!"}]
["",null,null,null,null,null,null,null,null,{"$error":"#DIV/0!"}]
["",null,null,null,null,null,null,null,null,{"$error":"#DIV/0!"}]
[{"$f":"IF(OR(C135=\"\",A134=\"\"),\"\",A134+1)","v":""},null,null,null,null,null,null,null,null,{"$error":"#DIV/0!"}]
["",null,null,null,null,null,null,null,null,{"$error":"#DIV/0!"}]
["",null,null,null,null,null,null,null,null,{"$error":"#DIV/0!"}]
["",null,null,null,null,null,null,null,null,{"$error":"#DIV/0!"}]
["",null,null,null,null,null,null,null,null,{"$error":"#DIV/0!"}]
["",null,null,null,null,null,null,null,null,{"$error":"#DIV/0!"}]
["",null,null,null,null,null,null,null,null,{"$error":"#DIV/0!"}]
["",null,null,null,null,null,null,null,null,{"$error":"#DIV/0!"}]
["",null,null,null,null,null,null,null,null,{"$error":"#DIV/0!"}]
["",null,null,null,null,null,null,null,null,{"$error":"#DIV/0!"}]
["",null,null,null,null,null,null,null,null,{"$error":"#DIV/0!"}]
["",null,null,null,null,null,null,null,null,{"$error":"#DIV/0!"}]
["",null,null,null,null,null,null,null,null,{"$error":"#DIV/0!"}]
["",null,null,null,null,null,null,null,null,{"$error":"#DIV/0!"}]
["",null,null,null,null,null,null,null,null,{"$error":"#DIV/0!"}]
["",null,null,null,null,null,null,null,null,{"$error":"#DIV/0!"}]
["",null,null,null,null,null,null,null,null,{"$error":"#DIV/0!"}]
["",null,null,null,null,null,null,null,null,{"$error":"#DIV/0!"}]
["",null,null,null,null,null,null,null,null,{"$error":"#DIV/0!"}]
["",null,null,null,null,null,null,null,null,{"$error":"#DIV/0!"}]
["",null,null,null,null,null,null,null,null,{"$error":"#DIV/0!"}]
["",null,null,null,null,null,null,null,null,{"$error":"#DIV/0!"}]
["",null,null,null,null,null,null,null,null,{"$error":"#DIV/0!"}]
["",null,null,null,null,null,null,null,null,{"$error":"#DIV/0!"}]
["",null,null,null,null,null,null,null,null,{"$error":"#DIV/0!"}]
["",null,null,null,null,null,null,null,null,{"$error":"#DIV/0!"}]
["",null,null,null,null,null,null,null,null,{"$error":"#DIV/0!"}]
["",null,null,null,null,null,null,null,null,{"$error":"#DIV/0!"}]
["",null,null,null,null,null,null,null,null,{"$error":"#DIV/0!"}]
["",null,null,null,null,null,null,null,null,{"$error":"#DIV/0!"}]
["",null,null,null,null,null,null,null,null,{"$error":"#DIV/0!"}]
["",null,null,null,null,null,null,null,null,{"$f":"AVERAGE(G166:I166)","v":{"$error":"#DIV/0!"}}]
["",null,null,null,null,null,null,null,null,{"$error":"#DIV/0!"}]
["",null,null,null,null,null,null,null,null,{"$error":"#DIV/0!"}]
["",null,null,null,null,null,null,null,null,{"$error":"#DIV/0!"}]
["",null,null,null,null,null,null,null,null,{"$error":"#DIV/0!"}]
["",null,null,null,null,null,null,null,null,{"$error":"#DIV/0!"}]
["",null,null,null,null,null,null,null,null,{"$error":"#DIV/0!"}]
["",null,null,null,null,null,null,null,null,{"$error":"#DIV/0!"}]
["",null,null,null,null,null,null,null,null,{"$error":"#DIV/0!"}]
["",null,null,null,null,null,null,null,null,{"$error":"#DIV/0!"}]
["",null,null,null,null,null,null,null,null,{"$error":"#DIV/0!"}]
["",null,null,null,null,null,null,null,null,{"$error":"#DIV/0!"}]
["",null,null,null,null,null,null,null,null,{"$error":"#DIV/0!"}]
["",null,null,null,null,null,null,null,null,{"$error":"#DIV/0!"}]
["",null,null,null,null,null,null,null,null,{"$error":"#DIV/0!"}]
["",null,null,null,null,null,null,null,null,{"$error":"#DIV/0!"}]
["",null,null,null,null,null,null,null,null,{"$error":"#DIV/0!"}]
["",null,null,null,null,null,null,null,null,{"$error":"#DIV/0!"}]
["",null,null,null,null,null,null,null,null,{"$error":"#DIV/0!"}]
["",null,null,null,null,null,null,null,null,{"$error":"#DIV/0!"}]
["",null,null,null,null,null,null,null,null,{"$error":"#DIV/0!"}]
["",null,null,null,null,null,null,null,null,{"$error":"#DIV/0!"}]
["",null,null,null,null,null,null,null,null,{"$error":"#DIV/0!"}]
["",null,null,null,null,null,null,null,null,{"$error":"#DIV/0!"}]
["",null,null,null,null,null,null,null,null,{"$error":"#DIV/0!"}]
["",null,null,null,null,null,null,null,null,{"$error":"#DIV/0!"}]
["",null,null,null,null,null,null,null,null,{"$error":"#DIV/0!"}]
["",null,null,null,null,null,null,null,null,{"$error":"#DIV/0!"}]
["",null,null,null,null,null,null,null,null,{"$error":"#DIV/0!"}]
["",null,null,null,null,null,null,null,null,{"$error":"#DIV/0!"}]
["",null,null,null,null,null,null,null,null,{"$error":"#DIV/0!"}]
["",null,null,null,null,null,null,null,null,{"$error":"#DIV/0!"}]
["",null,null,null,null,null,null,null,null,{"$error":"#DIV/0!"}]
[{"$f":"IF(OR(C199=\"\",A198=\"\"),\"\",A198+1)","v":""},null,null,null,null,null,null,null,null,{"$error":"#DIV/0!"}]
["",null,null,null,null,null,null,null,null,{"$error":"#DIV/0!"}]
["",null,null,null,null,null,null,null,null,{"$error":"#DIV/0!"}]
["",null,null,null,null,null,null,null,null,{"$error":"#DIV/0!"}]
["",null,null,null,null,null,null,null,null,{"$error":"#DIV/0!"}]
["",null,null,null,null,null,null,null,null,{"$error":"#DIV/0!"}]
["",null,null,null,null,null,null,null,null,{"$error":"#DIV/0!"}]
["",null,null,null,null,null,null,null,null,{"$error":"#DIV/0!"}]
["",null,null,null,null,null,null,null,null,{"$error":"#DIV/0!"}]
["",null,null,null,null,null,null,null,null,{"$error":"#DIV/0!"}]
["",null,null,null,null,null,null,null,null,{"$error":"#DIV/0!"}]
["",null,null,null,null,null,null,null,null,{"$error":"#DIV/0!"}]
["",null,null,null,null,null,null,null,null,{"$error":"#DIV/0!"}]
["",null,null,null,null,null,null,null,null,{"$error":"#DIV/0!"}]
["",null,null,null,null,null,null,null,null,{"$error":"#DIV/0!"}]
["",null,null,null,null,null,null,null,null,{"$error":"#DIV/0!"}]
["",null,null,null,null,null,null,null,null,{"$error":"#DIV/0!"}]
["",null,null,null,null,null,null,null,null,{"$error":"#DIV/0!"}]
["",null,null,null,null,null,null,null,null,{"$error":"#DIV/0!"}]
["",null,null,null,null,null,null,null,null,{"$error":"#DIV/0!"}]
["",null,null,null,null,null,null,null,null,{"$error":"#DIV/0!"}]
["",null,null,null,null,null,null,null,null,{"$error":"#DIV/0!"}]
["",null,null,null,null,null,null,null,null,{"$error":"#DIV/0!"}]
["",null,null,null,null,null,null,null,null,{"$error":"#DIV/0!"}]
["",null,null,null,null,null,null,null,null,{"$error":"#DIV/0!"}]
["",null,null,null,null,null,null,null,null,{"$error":"#DIV/0!"}]
["",null,null,null,null,null,null,null,null,{"$error":"#DIV/0!"}]
["",null,null,null,null,null,null,null,null,{"$error":"#DIV/0!"}]
["",null,null,null,null,null,null,null,null,{"$error":"#DIV/0!"}]
["",null,null,null,null,null,null,null,null,{"$error":"#DIV/0!"}]
["",null,null,null,null,null,null,null,null,{"$error":"#DIV/0!"}]
["",null,null,null,null,null,null,null,null,{"$f":"AVERAGE(G230:I230)","v":{"$error":"#DIV/0!"}}]
["",null,null,null,null,null,null,null,null,{"$error":"#DIV/0!"}]
["",null,null,null,null,null,null,null,null,{"$error":"#DIV/0!"}]
["",null,null,null,null,null,null,null,null,{"$error":"#DIV/0!"}]
["",null,null,null,null,null,null,null,null,{"$error":"#DIV/0!"}]
["",null,null,null,null,null,null,null,null,{"$error":"#DIV/0!"}]
["",null,null,null,null,null,null,null,null,{"$error":"#DIV/0!"}]
["",null,null,null,null,null,null,null,null,{"$error":"#DIV/0!"}]
["",null,null,null,null,null,null,null,null,{"$error":"#DIV/0!"}]
["",null,null,null,null,null,null,null,null,{"$error":"#DIV/0!"}]
["",null,null,null,null,null,null,null,null,{"$error":"#DIV/0!"}]
["",null,null,null,null,null,null,null,null,{"$error":"#DIV/0!"}]
["",null,null,null,null,null,null,null,null,{"$error":"#DIV/0!"}]
["",null,null,null,null,null,null,null,null,{"$error":"#DIV/0!"}]
["",null,null,null,null,null,null,null,null,{"$error":"#DIV/0!"}]
["",null,null,null,null,null,null,null,null,{"$error":"#DIV/0!"}]
["",null,null,null,null,null,null,null,null,{"$error":"#DIV/0!"}]
["",null,null,null,null,null,null,null,null,{"$error":"#DIV/0!"}]
["",null,null,null,null,null,null,null,null,{"$error":"#DIV/0!"}]
["",null,null,null,null,null,null,null,null,{"$error":"#DIV/0!"}]
["",null,null,null,null,null,null,null,null,{"$error":"#DIV/0!"}]
["",null,null,null,null,null,null,null,null,{"$error":"#DIV/0!"}]
["",null,null,null,null,null,null,null,null,{"$error":"#DIV/0!"}]
["",null,null,null,null,null,null,null,null,{"$error":"#DIV/0!"}]
["",null,null,null,null,null,null,null,null,{"$error":"#DIV/0!"}]
["",null,null,null,null,null,null,null,null,{"$error":"#DIV/0!"}]
["",null,null,null,null,null,null,null,null,{"$error":"#DIV/0!"}]
["",null,null,null,null,null,null,null,null,{"$error":"#DIV/0!"}]
["",null,null,null,null,null,null,null,null,{"$error":"#DIV/0!"}]
["",null,null,null,null,null,null,null,null,{"$error":"#DIV/0!"}]
["",null,null,null,null,null,null,null,null,{"$error":"#DIV/0!"}]
["",null,null,null,null,null,null,null,null,{"$error":"#DIV/0!"}]
["",null,null,null,null,null,null,null,null,{"$error":"#DIV/0!"}]
[{"$f":"IF(OR(C263=\"\",A262=\"\"),\"\",A262+1)","v":""},null,null,null,null,null,null,null,null,{"$error":"#DIV/0!"}]
["",null,null,null,null,null,null,null,null,{"$error":"#DIV/0!"}]
["",null,null,null,null,null,null,null,null,{"$error":"#DIV/0!"}]
["",null,null,null,null,null,null,null,null,{"$error":"#DIV/0!"}]
["",null,null,null,null,null,null,null,null,{"$error":"#DIV/0!"}]
["",null,null,null,null,null,null,null,null,{"$error":"#DIV/0!"}]
["",null,null,null,null,null,null,null,null,{"$error":"#DIV/0!"}]
["",null,null,null,null,null,null,null,null,{"$error":"#DIV/0!"}]
["",null,null,null,null,null,null,null,null,{"$error":"#DIV/0!"}]
["",null,null,null,null,null,null,null,null,{"$error":"#DIV/0!"}]
["",null,null,null,null,null,null,null,null,{"$error":"#DIV/0!"}]
["",null,null,null,null,null,null,null,null,{"$error":"#DIV/0!"}]
["",null,null,null,null,null,null,null,null,{"$error":"#DIV/0!"}]
["",null,null,null,null,null,null,null,null,{"$error":"#DIV/0!"}]
["",null,null,null,null,null,null,null,null,{"$error":"#DIV/0!"}]
["",null,null,null,null,null,null,null,null,{"$error":"#DIV/0!"}]
["",null,null,null,null,null,null,null,null,{"$error":"#DIV/0!"}]
["",null,null,null,null,null,null,null,null,{"$error":"#DIV/0!"}]
["",null,null,null,null,null,null,null,null,{"$error":"#DIV/0!"}]
["",null,null,null,null,null,null,null,null,{"$error":"#DIV/0!"}]
["",null,null,null,null,null,null,null,null,{"$error":"#DIV/0!"}]
["",null,null,null,null,null,null,null,null,{"$error":"#DIV/0!"}]
["",null,null,null,null,null,null,null,null,{"$error":"#DIV/0!"}]
["",null,null,null,null,null,null,null,null,{"$error":"#DIV/0!"}]
["",null,null,null,null,null,null,null,null,{"$error":"#DIV/0!"}]
["",null,null,null,null,null,null,null,null,{"$error":"#DIV/0!"}]
["",null,null,null,null,null,null,null,null,{"$error":"#DIV/0!"}]
["",null,null,null,null,null,null,null,null,{"$error":"#DIV/0!"}]
["",null,null,null,null,null,null,null,null,{"$error":"#DIV/0!"}]
["",null,null,null,null,null,null,null,null,{"$error":"#DIV/0!"}]
["",null,null,null,null,null,null,null,null,{"$error":"#DIV/0!"}]
["",null,null,null,null,null,null,null,null,{"$f":"AVERAGE(G294:I294)","v":{"$error":"#DIV/0!"}}]
["",null,null,null,null,null,null,null,null,{"$error":"#DIV/0!"}]
["",null,null,null,null,null,null,null,null,{"$error":"#DIV/0!"}]
["",null,null,null,null,null,null,null,null,{"$error":"#DIV/0!"}]
["",null,null,null,null,null,null,null,null,{"$error":"#DIV/0!"}]
["",null,null,null,null,null,null,null,null,{"$error":"#DIV/0!"}]
["",null,null,null,null,null,null,null,null,{"$error":"#DIV/0!"}]
["",null,null,null,null,null,null,null,null,{"$error":"#DIV/0!"}]
["",null,null,null,null,null,null,null,null,{"$error":"#DIV/0!"}]
["",null,null,null,null,null,null,null,null,{"$error":"#DIV/0!"}]
["",null,null,null,null,null,null,null,null,{"$error":"#DIV/0!"}]
["",null,null,null,null,null,null,null,null,{"$error":"#DIV/0!"}]
["",null,null,null,null,null,null,null,null,{"$error":"#DIV/0!"}]
["",null,null,null,null,null,null,null,null,{"$error":"#DIV/0!"}]
["",null,null,null,null,null,null,null,null,{"$error":"#DIV/0!"}]
["",null,null,null,null,null,null,null,null,{"$error":"#DIV/0!"}]
["",null,null,null,null,null,null,null,null,{"$error":"#DIV/0!"}]
["",null,null,null,null,null,null,null,null,{"$error":"#DIV/0!"}]
["",null,null,null,null,null,null,null,null,{"$error":"#DIV/0!"}]
["",null,null,null,null,null,null,null,null,{"$error":"#DIV/0!"}]
["",null,null,null,null,null,null,null,null,{"$error":"#DIV/0!"}]
["",null,null,null,null,null,null,null,null,{"$error":"#DIV/0!"}]
["",null,null,null,null,null,null,null,null,{"$error":"#DIV/0!"}]
["",null,null,null,null,null,null,null,null,{"$error":"#DIV/0!"}]
["",null,null,null,null,null,null,null,null,{"$error":"#DIV/0!"}]
["",null,null,null,null,null,null,null,null,{"$error":"#DIV/0!"}]
["",null,null,null,null,null,null,null,null,{"$error":"#DIV/0!"}]
["",null,null,null,null,null,null,null,null,{"$error":"#DIV/0!"}]
["",null,null,null,null,null,null,null,null,{"$error":"#DIV/0!"}]
["",null,null,null,null,null,null,null,null,{"$error":"#DIV/0!"}]
["",null,null,null,null,null,null,null,null,{"$error":"#DIV/0!"}]
["",null,null,null,null,null,null,null,null,{"$error":"#DIV/0!"}]
["",null,null,null,null,null,null,null,null,{"$error":"#DIV/0!"}]
[{"$f":"IF(OR(C327=\"\",A326=\"\"),\"\",A326+1)","v":""},null,null,null,null,null,null,null,null,{"$error":"#DIV/0!"}]
["",null,null,null,null,null,null,null,null,{"$error":"#DIV/0!"}]
["",null,null,null,null,null,null,null,null,{"$error":"#DIV/0!"}]
["",null,null,null,null,null,null,null,null,{"$error":"#DIV/0!"}]
["",null,null,null,null,null,null,null,null,{"$error":"#DIV/0!"}]
["",null,null,null,null,null,null,null,null,{"$error":"#DIV/0!"}]
["",null,null,null,null,null,null,null,null,{"$error":"#DIV/0!"}]
["",null,null,null,null,null,null,null,null,{"$error":"#DIV/0!"}]
["",null,null,null,null,null,null,null,null,{"$error":"#DIV/0!"}]
["",null,null,null,null,null,null,null,null,{"$error":"#DIV/0!"}]
["",null,null,null,null,null,null,null,null,{"$error":"#DIV/0!"}]
["",null,null,null,null,null,null,null,null,{"$error":"#DIV/0!"}]
["",null,null,null,null,null,null,null,null,{"$error":"#DIV/0!"}]
["",null,null,null,null,null,null,null,null,{"$error":"#DIV/0!"}]
["",null,null,null,null,null,null,null,null,{"$error":"#DIV/0!"}]
["",null,null,null,null,null,null,null,null,{"$error":"#DIV/0!"}]
["",null,null,null,null,null,null,null,null,{"$error":"#DIV/0!"}]
["",null,null,null,null,null,null,null,null,{"$error":"#DIV/0!"}]
["",null,null,null,null,null,null,null,null,{"$error":"#DIV/0!"}]
["",null,null,null,null,null,null,null,null,{"$error":"#DIV/0!"}]
["",null,null,null,null,null,null,null,null,{"$error":"#DIV/0!"}]
["",null,null,null,null,null,null,null,null,{"$error":"#DIV/0!"}]
["",null,null,null,null,null,null,null,null,{"$error":"#DIV/0!"}]
["",null,null,null,null,null,null,null,null,{"$error":"#DIV/0!"}]
["",null,null,null,null,null,null,null,null,{"$error":"#DIV/0!"}]
["",null,null,null,null,null,null,null,null,{"$error":"#DIV/0!"}]
["",null,null,null,null,null,null,null,null,{"$error":"#DIV/0!"}]
["",null,null,null,null,null,null,null,null,{"$error":"#DIV/0!"}]
["",null,null,null,null,null,null,null,null,{"$error":"#DIV/0!"}]
["",null,null,null,null,null,null,null,null,{"$error":"#DIV/0!"}]
["",null,null,null,null,null,null,null,null,{"$error":"#DIV/0!"}]
["",null,null,null,null,null,null,null,null,{"$f":"AVERAGE(G358:I358)","v":{"$error":"#DIV/0!"}}]
["",null,null,null,null,null,null,null,null,{"$error":"#DIV/0!"}]
["",null,null,null,null,null,null,null,null,{"$error":"#DIV/0!"}]
["",null,null,null,null,null,null,null,null,{"$error":"#DIV/0!"}]
["",null,null,null,null,null,null,null,null,{"$error":"#DIV/0!"}]
["",null,null,null,null,null,null,null,null,{"$error":"#DIV/0!"}]
["",null,null,null,null,null,null,null,null,{"$error":"#DIV/0!"}]
["",null,null,null,null,null,null,null,null,{"$error":"#DIV/0!"}]
["",null,null,null,null,null,null,null,null,{"$error":"#DIV/0!"}]
["",null,null,null,null,null,null,null,null,{"$error":"#DIV/0!"}]
["",null,null,null,null,null,null,null,null,{"$error":"#DIV/0!"}]
["",null,null,null,null,null,null,null,null,{"$error":"#DIV/0!"}]
["",null,null,null,null,null,null,null,null,{"$error":"#DIV/0!"}]
["",null,null,null,null,null,null,null,null,{"$error":"#DIV/0!"}]
["",null,null,null,null,null,null,null,null,{"$error":"#DIV/0!"}]
["",null,null,null,null,null,null,null,null,{"$error":"#DIV/0!"}]
["",null,null,null,null,null,null,null,null,{"$error":"#DIV/0!"}]
["",null,null,null,null,null,null,null,null,{"$error":"#DIV/0!"}]
["",null,null,null,null,null,null,null,null,{"$error":"#DIV/0!"}]
["",null,null,null,null,null,null,null,null,{"$error":"#DIV/0!"}]
["",null,null,null,null,null,null,null,null,{"$error":"#DIV/0!"}]
["",null,null,null,null,null,null,null,null,{"$error":"#DIV/0!"}]
["",null,null,null,null,null,null,null,null,{"$error":"#DIV/0!"}]
["",null,null,null,null,null,null,null,null,{"$error":"#DIV/0!"}]
["",null,null,null,null,null,null,null,null,{"$error":"#DIV/0!"}]
["",null,null,null,null,null,null,null,null,{"$error":"#DIV/0!"}]
["",null,null,null,null,null,null,null,null,{"$error":"#DIV/0!"}]
["",null,null,null,null,null,null,null,null,{"$error":"#DIV/0!"}]
["",null,null,null,null,null,null,null,null,{"$error":"#DIV/0!"}]
["",null,null,null,null,null,null,null,null,{"$error":"#DIV/0!"}]
["",null,null,null,null,null,null,null,null,{"$error":"#DIV/0!"}]
["",null,null,null,null,null,null,null,null,{"$error":"#DIV/0!"}]
["",null,null,null,null,null,null,null,null,{"$error":"#DIV/0!"}]
[{"$f":"IF(OR(C391=\"\",A390=\"\"),\"\",A390+1)","v":""},null,null,null,null,null,null,null,null,{"$error":"#DIV/0!"}]
["",null,null,null,null,null,null,null,null,{"$error":"#DIV/0!"}]
["",null,null,null,null,null,null,null,null,{"$error":"#DIV/0!"}]
["",null,null,null,null,null,null,null,null,{"$error":"#DIV/0!"}]
["",null,null,null,null,null,null,null,null,{"$error":"#DIV/0!"}]
["",null,null,null,null,null,null,null,null,{"$error":"#DIV/0!"}]
["",null,null,null,null,null,null,null,null,{"$error":"#DIV/0!"}]
["",null,null,null,null,null,null,null,null,{"$error":"#DIV/0!"}]
["",null,null,null,null,null,null,null,null,{"$error":"#DIV/0!"}]
["",null,null,null,null,null,null,null,null,{"$error":"#DIV/0!"}]
["",null,null,null,null,null,null,null,null,{"$error":"#DIV/0!"}]
["",null,null,null,null,null,null,null,null,{"$error":"#DIV/0!"}]
["",null,null,null,null,null,null,null,null,{"$error":"#DIV/0!"}]
["",null,null,null,null,null,null,null,null,{"$error":"#DIV/0!"}]
["",null,null,null,null,null,null,null,null,{"$error":"#DIV/0!"}]
["",null,null,null,null,null,null,null,null,{"$error":"#DIV/0!"}]
["",null,null,null,null,null,null,null,null,{"$error":"#DIV/0!"}]
["",null,null,null,null,null,null,null,null,{"$error":"#DIV/0!"}]
["",null,null,null,null,null,null,null,null,{"$error":"#DIV/0!"}]
["",null,null,null,null,null,null,null,null,{"$error":"#DIV/0!"}]
["",null,null,null,null,null,null,null,null,{"$error":"#DIV/0!"}]
["",null,null,null,null,null,null,null,null,{"$error":"#DIV/0!"}]
["",null,null,null,null,null,null,null,null,{"$error":"#DIV/0!"}]
["",null,null,null,null,null,null,null,null,{"$error":"#DIV/0!"}]
["",null,null,null,null,null,null,null,null,{"$error":"#DIV/0!"}]
["",null,null,null,null,null,null,null,null,{"$error":"#DIV/0!"}]
["",null,null,null,null,null,null,null,null,{"$error":"#DIV/0!"}]
["",null,null,null,null,null,null,null,null,{"$error":"#DIV/0!"}]
["",null,null,null,null,null,null,null,null,{"$error":"#DIV/0!"}]
["",null,null,null,null,null,null,null,null,{"$error":"#DIV/0!"}]
["",null,null,null,null,null,null,null,null,{"$error":"#DIV/0!"}]
["",null,null,null,null,null,null,null,null,{"$f":"AVERAGE(G422:I422)","v":{"$error":"#DIV/0!"}}]
["",null,null,null,null,null,null,null,null,{"$error":"#DIV/0!"}]
["",null,null,null,null,null,null,null,null,{"$error":"#DIV/0!"}]
["",null,null,null,null,null,null,null,null,{"$error":"#DIV/0!"}]
["",null,null,null,null,null,null,null,null,{"$error":"#DIV/0!"}]
["",null,null,null,null,null,null,null,null,{"$error":"#DIV/0!"}]
["",null,null,null,null,null,null,null,null,{"$error":"#DIV/0!"}]
["",null,null,null,null,null,null,null,null,{"$error":"#DIV/0!"}]
["",null,null,null,null,null,null,null,null,{"$error":"#DIV/0!"}]
["",null,null,null,null,null,null,null,null,{"$error":"#DIV/0!"}]
["",null,null,null,null,null,null,null,null,{"$error":"#DIV/0!"}]
["",null,null,null,null,null,null,null,null,{"$error":"#DIV/0!"}]
["",null,null,null,null,null,null,null,null,{"$error":"#DIV/0!"}]
["",null,null,null,null,null,null,null,null,{"$error":"#DIV/0!"}]
["",null,null,null,null,null,null,null,null,{"$error":"#DIV/0!"}]
["",null,null,null,null,null,null,null,null,{"$error":"#DIV/0!"}]
["",null,null,null,null,null,null,null,null,{"$error":"#DIV/0!"}]
["",null,null,null,null,null,null,null,null,{"$error":"#DIV/0!"}]
["",null,null,null,null,null,null,null,null,{"$error":"#DIV/0!"}]
["",null,null,null,null,null,null,null,null,{"$error":"#DIV/0!"}]
["",null,null,null,null,null,null,null,null,{"$error":"#DIV/0!"}]
["",null,null,null,null,null,null,null,null,{"$error":"#DIV/0!"}]
["",null,null,null,null,null,null,null,null,{"$error":"#DIV/0!"}]
["",null,null,null,null,null,null,null,null,{"$error":"#DIV/0!"}]
["",null,null,null,null,null,null,null,null,{"$error":"#DIV/0!"}]
["",null,null,null,null,null,null,null,null,{"$error":"#DIV/0!"}]
["",null,null,null,null,null,null,null,null,{"$error":"#DIV/0!"}]
["",null,null,null,null,null,null,null,null,{"$error":"#DIV/0!"}]
["",null,null,null,null,null,null,null,null,{"$error":"#DIV/0!"}]
["",null,null,null,null,null,null,null,null,{"$error":"#DIV/0!"}]
["",null,null,null,null,null,null,null,null,{"$error":"#DIV/0!"}]
["",null,null,null,null,null,null,null,null,{"$error":"#DIV/0!"}]
["",null,null,null,null,null,null,null,null,{"$error":"#DIV/0!"}]
[{"$f":"IF(OR(C455=\"\",A454=\"\"),\"\",A454+1)","v":""},null,null,null,null,null,null,null,null,{"$error":"#DIV/0!"}]
["",null,null,null,null,null,null,null,null,{"$error":"#DIV/0!"}]
["",null,null,null,null,null,null,null,null,{"$error":"#DIV/0!"}]
["",null,null,null,null,null,null,null,null,{"$error":"#DIV/0!"}]
["",null,null,null,null,null,null,null,null,{"$error":"#DIV/0!"}]
["",null,null,null,null,null,null,null,null,{"$error":"#DIV/0!"}]
["",null,null,null,null,null,null,null,null,{"$error":"#DIV/0!"}]
["",null,null,null,null,null,null,null,null,{"$error":"#DIV/0!"}]
["",null,null,null,null,null,null,null,null,{"$error":"#DIV/0!"}]
["",null,null,null,null,null,null,null,null,{"$error":"#DIV/0!"}]
["",null,null,null,null,null,null,null,null,{"$error":"#DIV/0!"}]
["",null,null,null,null,null,null,null,null,{"$error":"#DIV/0!"}]
["",null,null,null,null,null,null,null,null,{"$error":"#DIV/0!"}]
["",null,null,null,null,null,null,null,null,{"$error":"#DIV/0!"}]
["",null,null,null,null,null,null,null,null,{"$error":"#DIV/0!"}]
["",null,null,null,null,null,null,null,null,{"$error":"#DIV/0!"}]
["",null,null,null,null,null,null,null,null,{"$error":"#DIV/0!"}]
["",null,null,null,null,null,null,null,null,{"$error":"#DIV/0!"}]
["",null,null,null,null,null,null,null,null,{"$error":"#DIV/0!"}]
["",null,null,null,null,null,null,null,null,{"$error":"#DIV/0!"}]
["",null,null,null,null,null,null,null,null,{"$error":"#DIV/0!"}]
["",null,null,null,null,null,null,null,null,{"$error":"#DIV/0!"}]
["",null,null,null,null,null,null,null,null,{"$error":"#DIV/0!"}]
["",null,null,null,null,null,null,null,null,{"$error":"#DIV/0!"}]
["",null,null,null,null,null,null,null,null,{"$error":"#DIV/0!"}]
["",null,null,null,null,null,null,null,null,{"$error":"#DIV/0!"}]
["",null,null,null,null,null,null,null,null,{"$error":"#DIV/0!"}]
["",null,null,null,null,null,null,null,null,{"$error":"#DIV/0!"}]
["",null,null,null,null,null,null,null,null,{"$error":"#DIV/0!"}]
["",null,null,null,null,null,null,null,null,{"$error":"#DIV/0!"}]
["",null,null,null,null,null,null,null,null,{"$error":"#DIV/0!"}]
["",null,null,null,null,null,null,null,null,{"$f":"AVERAGE(G486:I486)","v":{"$error":"#DIV/0!"}}]
["",null,null,null,null,null,null,null,null,{"$error":"#DIV/0!"}]
["",null,null,null,null,null,null,null,null,{"$error":"#DIV/0!"}]
["",null,null,null,null,null,null,null,null,{"$error":"#DIV/0!"}]
["",null,null,null,null,null,null,null,null,{"$error":"#DIV/0!"}]
["",null,null,null,null,null,null,null,null,{"$error":"#DIV/0!"}]
["",null,null,null,null,null,null,null,null,{"$error":"#DIV/0!"}]
["",null,null,null,null,null,null,null,null,{"$error":"#DIV/0!"}]
["",null,null,null,null,null,null,null,null,{"$error":"#DIV/0!"}]
["",null,null,null,null,null,null,null,null,{"$error":"#DIV/0!"}]
["",null,null,null,null,null,null,null,null,{"$error":"#DIV/0!"}]
["",null,null,null,null,null,null,null,null,{"$error":"#DIV/0!"}]
["",null,null,null,null,null,null,null,null,{"$error":"#DIV/0!"}]
["",null,null,null,null,null,null,null,null,{"$error":"#DIV/0!"}]
["",null,null,null,null,null,null,null,null,{"$error":"#DIV/0!"}]
["",null,null,null,null,null,null,null,null,{"$error":"#DIV/0!"}]
["",null,null,null,null,null,null,null,null,{"$error":"#DIV/0!"}]
["",null,null,null,null,null,null,null,null,{"$error":"#DIV/0!"}]
["",null,null,null,null,null,null,null,null,{"$error":"#DIV/0!"}]
["",null,null,null,null,null,null,null,null,{"$error":"#DIV/0!"}]
["",null,null,null,null,null,null,null,null,{"$error":"#DIV/0!"}]
["",null,null,null,null,null,null,null,null,{"$error":"#DIV/0!"}]
["",null,null,null,null,null,null,null,null,{"$error":"#DIV/0!"}]
["",null,null,null,null,null,null,null,null,{"$error":"#DIV/0!"}]

{"sheet":"SC. PHYSIQUES","index":1,"n_rows":509,"n_cols":10,"rows_kept":509,"cut":false,"hidden":false,"merged":[]}
[null,null,null,"Moyennes en Sc. Physiques"]
[]
[]
[null,"Classes","noms élèves","Sexes","Ages","Statut","Moyenne 1er Trim","Moyenne 2e Trim","Moyenne 3e Trim","Moyenne annuelle"]
[{"$f":"IF(C5<>\"\",1,\"\")","v":""},null,null,null,null,null,null,null,null,{"$f":"AVERAGE(G5:I5)","v":{"$error":"#DIV/0!"}}]
[{"$f":"IF(OR(C6=\"\",A5=\"\"),\"\",A5+1)","v":""},null,null,null,null,null,null,null,null,{"$f":"AVERAGE(G6:I6)","v":{"$error":"#DIV/0!"}}]
[{"$f":"IF(OR(C7=\"\",A6=\"\"),\"\",A6+1)","v":""},null,null,null,null,null,null,null,null,{"$error":"#DIV/0!"}]
["",null,null,null,null,null,null,null,null,{"$error":"#DIV/0!"}]
["",null,null,null,null,null,null,null,null,{"$error":"#DIV/0!"}]
["",null,null,null,null,null,null,null,null,{"$error":"#DIV/0!"}]
["",null,null,null,null,null,null,null,null,{"$error":"#DIV/0!"}]
["",null,null,null,null,null,null,null,null,{"$error":"#DIV/0!"}]
["",null,null,null,null,null,null,null,null,{"$error":"#DIV/0!"}]
["",null,null,null,null,null,null,null,null,{"$error":"#DIV/0!"}]
["",null,null,null,null,null,null,null,null,{"$error":"#DIV/0!"}]
["",null,null,null,null,null,null,null,null,{"$error":"#DIV/0!"}]
["",null,null,null,null,null,null,null,null,{"$error":"#DIV/0!"}]
["",null,null,null,null,null,null,null,null,{"$error":"#DIV/0!"}]
["",null,null,null,null,null,null,null,null,{"$error":"#DIV/0!"}]
["",null,null,null,null,null,null,null,null,{"$error":"#DIV/0!"}]
["",null,null,null,null,null,null,null,null,{"$error":"#DIV/0!"}]
["",null,null,null,null,null,null,null,null,{"$error":"#DIV/0!"}]
["",null,null,null,null,null,null,null,null,{"$error":"#DIV/0!"}]
["",null,null,null,null,null,null,null,null,{"$error":"#DIV/0!"}]
["",null,null,null,null,null,null,null,null,{"$error":"#DIV/0!"}]
["",null,null,null,null,null,null,null,null,{"$error":"#DIV/0!"}]
["",null,null,null,null,null,null,null,null,{"$error":"#DIV/0!"}]
["",null,null,null,null,null,null,null,null,{"$error":"#DIV/0!"}]
["",null,null,null,null,null,null,null,null,{"$error":"#DIV/0!"}]
["",null,null,null,null,null,null,null,null,{"$error":"#DIV/0!"}]
["",null,null,null,null,null,null,null,null,{"$error":"#DIV/0!"}]
["",null,null,null,null,null,null,null,null,{"$error":"#DIV/0!"}]
["",null,null,null,null,null,null,null,null,{"$error":"#DIV/0!"}]
["",null,null,null,null,null,null,null,null,{"$error":"#DIV/0!"}]
["",null,null,null,null,null,null,null,null,{"$error":"#DIV/0!"}]
["",null,null,null,null,null,null,null,null,{"$error":"#DIV/0!"}]
["",null,null,null,null,null,null,null,null,{"$error":"#DIV/0!"}]
["",null,null,null,null,null,null,null,null,{"$error":"#DIV/0!"}]
["",null,null,null,null,null,null,null,null,{"$error":"#DIV/0!"}]
["",null,null,null,null,null,null,null,null,{"$error":"#DIV/0!"}]
["",null,null,null,null,null,null,null,null,{"$error":"#DIV/0!"}]
["",null,null,null,null,null,null,null,null,{"$error":"#DIV/0!"}]
["",null,null,null,null,null,null,null,null,{"$error":"#DIV/0!"}]
["",null,null,null,null,null,null,null,null,{"$error":"#DIV/0!"}]
["",null,null,null,null,null,null,null,null,{"$error":"#DIV/0!"}]
["",null,null,null,null,null,null,null,null,{"$error":"#DIV/0!"}]
["",null,null,null,null,null,null,null,null,{"$error":"#DIV/0!"}]
["",null,null,null,null,null,null,null,null,{"$error":"#DIV/0!"}]
["",null,null,null,null,null,null,null,null,{"$error":"#DIV/0!"}]
["",null,null,null,null,null,null,null,null,{"$error":"#DIV/0!"}]
["",null,null,null,null,null,null,null,null,{"$error":"#DIV/0!"}]
["",null,null,null,null,null,null,null,null,{"$error":"#DIV/0!"}]
["",null,null,null,null,null,null,null,null,{"$error":"#DIV/0!"}]
["",null,null,null,null,null,null,null,null,{"$error":"#DIV/0!"}]
["",null,null,null,null,null,null,null,null,{"$error":"#DIV/0!"}]
["",null,null,null,null,null,null,null,null,{"$error":"#DIV/0!"}]
["",null,null,null,null,null,null,null,null,{"$error":"#DIV/0!"}]
["",null,null,null,null,null,null,null,null,{"$error":"#DIV/0!"}]
["",null,null,null,null,null,null,null,null,{"$error":"#DIV/0!"}]
["",null,null,null,null,null,null,null,null,{"$error":"#DIV/0!"}]
["",null,null,null,null,null,null,null,null,{"$error":"#DIV/0!"}]
["",null,null,null,null,null,null,null,null,{"$error":"#DIV/0!"}]
["",null,null,null,null,null,null,null,null,{"$error":"#DIV/0!"}]
["",null,null,null,null,null,null,null,null,{"$error":"#DIV/0!"}]
["",null,null,null,null,null,null,null,null,{"$error":"#DIV/0!"}]
["",null,null,null,null,null,null,null,null,{"$error":"#DIV/0!"}]
["",null,null,null,null,null,null,null,null,{"$error":"#DIV/0!"}]
["",null,null,null,null,null,null,null,null,{"$error":"#DIV/0!"}]
["",null,null,null,null,null,null,null,null,{"$error":"#DIV/0!"}]
["",null,null,null,null,null,null,null,null,{"$f":"AVERAGE(G70:I70)","v":{"$error":"#DIV/0!"}}]
[{"$f":"IF(OR(C71=\"\",A70=\"\"),\"\",A70+1)","v":""},null,null,null,null,null,null,null,null,{"$error":"#DIV/0!"}]
["",null,null,null,null,null,null,null,null,{"$error":"#DIV/0!"}]
["",null,null,null,null,null,null,null,null,{"$error":"#DIV/0!"}]
["",null,null,null,null,null,null,null,null,{"$error":"#DIV/0!"}]
["",null,null,null,null,null,null,null,null,{"$error":"#DIV/0!"}]
["",null,null,null,null,null,null,null,null,{"$error":"#DIV/0!"}]
["",null,null,null,null,null,null,null,null,{"$error":"#DIV/0!"}]
["",null,null,null,null,null,null,null,null,{"$error":"#DIV/0!"}]
["",null,null,null,null,null,null,null,null,{"$error":"#DIV/0!"}]
["",null,null,null,null,null,null,null,null,{"$error":"#DIV/0!"}]
["",null,null,null,null,null,null,null,null,{"$error":"#DIV/0!"}]
["",null,null,null,null,null,null,null,null,{"$error":"#DIV/0!"}]
["",null,null,null,null,null,null,null,null,{"$error":"#DIV/0!"}]
["",null,null,null,null,null,null,null,null,{"$error":"#DIV/0!"}]
["",null,null,null,null,null,null,null,null,{"$error":"#DIV/0!"}]
["",null,null,null,null,null,null,null,null,{"$error":"#DIV/0!"}]
["",null,null,null,null,null,null,null,null,{"$error":"#DIV/0!"}]
["",null,null,null,null,null,null,null,null,{"$error":"#DIV/0!"}]
["",null,null,null,null,null,null,null,null,{"$error":"#DIV/0!"}]
["",null,null,null,null,null,null,null,null,{"$error":"#DIV/0!"}]
["",null,null,null,null,null,null,null,null,{"$error":"#DIV/0!"}]
["",null,null,null,null,null,null,null,null,{"$error":"#DIV/0!"}]
["",null,null,null,null,null,null,null,null,{"$error":"#DIV/0!"}]
["",null,null,null,null,null,null,null,null,{"$error":"#DIV/0!"}]
["",null,null,null,null,null,null,null,null,{"$error":"#DIV/0!"}]
["",null,null,null,null,null,null,null,null,{"$error":"#DIV/0!"}]
["",null,null,null,null,null,null,null,null,{"$error":"#DIV/0!"}]
["",null,null,null,null,null,null,null,null,{"$error":"#DIV/0!"}]
["",null,null,null,null,null,null,null,null,{"$error":"#DIV/0!"}]
["",null,null,null,null,null,null,null,null,{"$error":"#DIV/0!"}]
["",null,null,null,null,null,null,null,null,{"$error":"#DIV/0!"}]
["",null,null,null,null,null,null,null,null,{"$error":"#DIV/0!"}]
["",null,null,null,null,null,null,null,null,{"$error":"#DIV/0!"}]
["",null,null,null,null,null,null,null,null,{"$error":"#DIV/0!"}]
["",null,null,null,null,null,null,null,null,{"$error":"#DIV/0!"}]
["",null,null,null,null,null,null,null,null,{"$error":"#DIV/0!"}]
["",null,null,null,null,null,null,null,null,{"$error":"#DIV/0!"}]
["",null,null,null,null,null,null,null,null,{"$error":"#DIV/0!"}]
["",null,null,null,null,null,null,null,null,{"$error":"#DIV/0!"}]
["",null,null,null,null,null,null,null,null,{"$error":"#DIV/0!"}]
["",null,null,null,null,null,null,null,null,{"$error":"#DIV/0!"}]
["",null,null,null,null,null,null,null,null,{"$error":"#DIV/0!"}]
["",null,null,null,null,null,null,null,null,{"$error":"#DIV/0!"}]
["",null,null,null,null,null,null,null,null,{"$error":"#DIV/0!"}]
["",null,null,null,null,null,null,null,null,{"$error":"#DIV/0!"}]
["",null,null,null,null,null,null,null,null,{"$error":"#DIV/0!"}]
["",null,null,null,null,null,null,null,null,{"$error":"#DIV/0!"}]
["",null,null,null,null,null,null,null,null,{"$error":"#DIV/0!"}]
["",null,null,null,null,null,null,null,null,{"$error":"#DIV/0!"}]
["",null,null,null,null,null,null,null,null,{"$error":"#DIV/0!"}]
["",null,null,null,null,null,null,null,null,{"$error":"#DIV/0!"}]
["",null,null,null,null,null,null,null,null,{"$error":"#DIV/0!"}]
["",null,null,null,null,null,null,null,null,{"$error":"#DIV/0!"}]
["",null,null,null,null,null,null,null,null,{"$error":"#DIV/0!"}]
["",null,null,null,null,null,null,null,null,{"$error":"#DIV/0!"}]
["",null,null,null,null,null,null,null,null,{"$error":"#DIV/0!"}]
["",null,null,null,null,null,null,null,null,{"$error":"#DIV/0!"}]
["",null,null,null,null,null,null,null,null,{"$error":"#DIV/0!"}]
["",null,null,null,null,null,null,null,null,{"$error":"#DIV/0!"}]
["",null,null,null,null,null,null,null,null,{"$error":"#DIV/0!"}]
["",null,null,null,null,null,null,null,null,{"$error":"#DIV/0!"}]
["",null,null,null,null,null,null,null,null,{"$error":"#DIV/0!"}]
["",null,null,null,null,null,null,null,null,{"$error":"#DIV/0!"}]
["",null,null,null,null,null,null,null,null,{"$f":"AVERAGE(G134:I134)","v":{"$error":"#DIV/0!"}}]
[{"$f":"IF(OR(C135=\"\",A134=\"\"),\"\",A134+1)","v":""},null,null,null,null,null,null,null,null,{"$error":"#DIV/0!"}]
["",null,null,null,null,null,null,null,null,{"$error":"#DIV/0!"}]
["",null,null,null,null,null,null,null,null,{"$error":"#DIV/0!"}]
["",null,null,null,null,null,null,null,null,{"$error":"#DIV/0!"}]
["",null,null,null,null,null,null,null,null,{"$error":"#DIV/0!"}]
["",null,null,null,null,null,null,null,null,{"$error":"#DIV/0!"}]
["",null,null,null,null,null,null,null,null,{"$error":"#DIV/0!"}]
["",null,null,null,null,null,null,null,null,{"$error":"#DIV/0!"}]
["",null,null,null,null,null,null,null,null,{"$error":"#DIV/0!"}]
["",null,null,null,null,null,null,null,null,{"$error":"#DIV/0!"}]
["",null,null,null,null,null,null,null,null,{"$error":"#DIV/0!"}]
["",null,null,null,null,null,null,null,null,{"$error":"#DIV/0!"}]
["",null,null,null,null,null,null,null,null,{"$error":"#DIV/0!"}]
["",null,null,null,null,null,null,null,null,{"$error":"#DIV/0!"}]
["",null,null,null,null,null,null,null,null,{"$error":"#DIV/0!"}]
["",null,null,null,null,null,null,null,null,{"$error":"#DIV/0!"}]
["",null,null,null,null,null,null,null,null,{"$error":"#DIV/0!"}]
["",null,null,null,null,null,null,null,null,{"$error":"#DIV/0!"}]
["",null,null,null,null,null,null,null,null,{"$error":"#DIV/0!"}]
["",null,null,null,null,null,null,null,null,{"$error":"#DIV/0!"}]
["",null,null,null,null,null,null,null,null,{"$error":"#DIV/0!"}]
["",null,null,null,null,null,null,null,null,{"$error":"#DIV/0!"}]
["",null,null,null,null,null,null,null,null,{"$error":"#DIV/0!"}]
["",null,null,null,null,null,null,null,null,{"$error":"#DIV/0!"}]
["",null,null,null,null,null,null,null,null,{"$error":"#DIV/0!"}]
["",null,null,null,null,null,null,null,null,{"$error":"#DIV/0!"}]
["",null,null,null,null,null,null,null,null,{"$error":"#DIV/0!"}]
["",null,null,null,null,null,null,null,null,{"$error":"#DIV/0!"}]
["",null,null,null,null,null,null,null,null,{"$error":"#DIV/0!"}]
["",null,null,null,null,null,null,null,null,{"$error":"#DIV/0!"}]
["",null,null,null,null,null,null,null,null,{"$error":"#DIV/0!"}]
["",null,null,null,null,null,null,null,null,{"$error":"#DIV/0!"}]
["",null,null,null,null,null,null,null,null,{"$error":"#DIV/0!"}]
["",null,null,null,null,null,null,null,null,{"$error":"#DIV/0!"}]
["",null,null,null,null,null,null,null,null,{"$error":"#DIV/0!"}]
["",null,null,null,null,null,null,null,null,{"$error":"#DIV/0!"}]
["",null,null,null,null,null,null,null,null,{"$error":"#DIV/0!"}]
["",null,null,null,null,null,null,null,null,{"$error":"#DIV/0!"}]
["",null,null,null,null,null,null,null,null,{"$error":"#DIV/0!"}]
["",null,null,null,null,null,null,null,null,{"$error":"#DIV/0!"}]
["",null,null,null,null,null,null,null,null,{"$error":"#DIV/0!"}]
["",null,null,null,null,null,null,null,null,{"$error":"#DIV/0!"}]
["",null,null,null,null,null,null,null,null,{"$error":"#DIV/0!"}]
["",null,null,null,null,null,null,null,null,{"$error":"#DIV/0!"}]
["",null,null,null,null,null,null,null,null,{"$error":"#DIV/0!"}]
["",null,null,null,null,null,null,null,null,{"$error":"#DIV/0!"}]
["",null,null,null,null,null,null,null,null,{"$error":"#DIV/0!"}]
["",null,null,null,null,null,null,null,null,{"$error":"#DIV/0!"}]
["",null,null,null,null,null,null,null,null,{"$error":"#DIV/0!"}]
["",null,null,null,null,null,null,null,null,{"$error":"#DIV/0!"}]
["",null,null,null,null,null,null,null,null,{"$error":"#DIV/0!"}]
["",null,null,null,null,null,null,null,null,{"$error":"#DIV/0!"}]
["",null,null,null,null,null,null,null,null,{"$error":"#DIV/0!"}]
["",null,null,null,null,null,null,null,null,{"$error":"#DIV/0!"}]
["",null,null,null,null,null,null,null,null,{"$error":"#DIV/0!"}]
["",null,null,null,null,null,null,null,null,{"$error":"#DIV/0!"}]
["",null,null,null,null,null,null,null,null,{"$error":"#DIV/0!"}]
["",null,null,null,null,null,null,null,null,{"$error":"#DIV/0!"}]
["",null,null,null,null,null,null,null,null,{"$error":"#DIV/0!"}]
["",null,null,null,null,null,null,null,null,{"$error":"#DIV/0!"}]
["",null,null,null,null,null,null,null,null,{"$error":"#DIV/0!"}]
["",null,null,null,null,null,null,null,null,{"$error":"#DIV/0!"}]
["",null,null,null,null,null,null,null,null,{"$error":"#DIV/0!"}]
["",null,null,null,null,null,null,null,null,{"$f":"AVERAGE(G198:I198)","v":{"$error":"#DIV/0!"}}]
[{"$f":"IF(OR(C199=\"\",A198=\"\"),\"\",A198+1)","v":""},null,null,null,null,null,null,null,null,{"$error":"#DIV/0!"}]
["",null,null,null,null,null,null,null,null,{"$error":"#DIV/0!"}]
["",null,null,null,null,null,null,null,null,{"$error":"#DIV/0!"}]
["",null,null,null,null,null,null,null,null,{"$error":"#DIV/0!"}]
["",null,null,null,null,null,null,null,null,{"$error":"#DIV/0!"}]
["",null,null,null,null,null,null,null,null,{"$error":"#DIV/0!"}]
["",null,null,null,null,null,null,null,null,{"$error":"#DIV/0!"}]
["",null,null,null,null,null,null,null,null,{"$error":"#DIV/0!"}]
["",null,null,null,null,null,null,null,null,{"$error":"#DIV/0!"}]
["",null,null,null,null,null,null,null,null,{"$error":"#DIV/0!"}]
["",null,null,null,null,null,null,null,null,{"$error":"#DIV/0!"}]
["",null,null,null,null,null,null,null,null,{"$error":"#DIV/0!"}]
["",null,null,null,null,null,null,null,null,{"$error":"#DIV/0!"}]
["",null,null,null,null,null,null,null,null,{"$error":"#DIV/0!"}]
["",null,null,null,null,null,null,null,null,{"$error":"#DIV/0!"}]
["",null,null,null,null,null,null,null,null,{"$error":"#DIV/0!"}]
["",null,null,null,null,null,null,null,null,{"$error":"#DIV/0!"}]
["",null,null,null,null,null,null,null,null,{"$error":"#DIV/0!"}]
["",null,null,null,null,null,null,null,null,{"$error":"#DIV/0!"}]
["",null,null,null,null,null,null,null,null,{"$error":"#DIV/0!"}]
["",null,null,null,null,null,null,null,null,{"$error":"#DIV/0!"}]
["",null,null,null,null,null,null,null,null,{"$error":"#DIV/0!"}]
["",null,null,null,null,null,null,null,null,{"$error":"#DIV/0!"}]
["",null,null,null,null,null,null,null,null,{"$error":"#DIV/0!"}]
["",null,null,null,null,null,null,null,null,{"$error":"#DIV/0!"}]
["",null,null,null,null,null,null,null,null,{"$error":"#DIV/0!"}]
["",null,null,null,null,null,null,null,null,{"$error":"#DIV/0!"}]
["",null,null,null,null,null,null,null,null,{"$error":"#DIV/0!"}]
["",null,null,null,null,null,null,null,null,{"$error":"#DIV/0!"}]
["",null,null,null,null,null,null,null,null,{"$error":"#DIV/0!"}]
["",null,null,null,null,null,null,null,null,{"$error":"#DIV/0!"}]
["",null,null,null,null,null,null,null,null,{"$error":"#DIV/0!"}]
["",null,null,null,null,null,null,null,null,{"$error":"#DIV/0!"}]
["",null,null,null,null,null,null,null,null,{"$error":"#DIV/0!"}]
["",null,null,null,null,null,null,null,null,{"$error":"#DIV/0!"}]
["",null,null,null,null,null,null,null,null,{"$error":"#DIV/0!"}]
["",null,null,null,null,null,null,null,null,{"$error":"#DIV/0!"}]
["",null,null,null,null,null,null,null,null,{"$error":"#DIV/0!"}]
["",null,null,null,null,null,null,null,null,{"$error":"#DIV/0!"}]
["",null,null,null,null,null,null,null,null,{"$error":"#DIV/0!"}]
["",null,null,null,null,null,null,null,null,{"$error":"#DIV/0!"}]
["",null,null,null,null,null,null,null,null,{"$error":"#DIV/0!"}]
["",null,null,null,null,null,null,null,null,{"$error":"#DIV/0!"}]
["",null,null,null,null,null,null,null,null,{"$error":"#DIV/0!"}]
["",null,null,null,null,null,null,null,null,{"$error":"#DIV/0!"}]
["",null,null,null,null,null,null,null,null,{"$error":"#DIV/0!"}]
["",null,null,null,null,null,null,null,null,{"$error":"#DIV/0!"}]
["",null,null,null,null,null,null,null,null,{"$error":"#DIV/0!"}]
["",null,null,null,null,null,null,null,null,{"$error":"#DIV/0!"}]
["",null,null,null,null,null,null,null,null,{"$error":"#DIV/0!"}]
["",null,null,null,null,null,null,null,null,{"$error":"#DIV/0!"}]
["",null,null,null,null,null,null,null,null,{"$error":"#DIV/0!"}]
["",null,null,null,null,null,null,null,null,{"$error":"#DIV/0!"}]
["",null,null,null,null,null,null,null,null,{"$error":"#DIV/0!"}]
["",null,null,null,null,null,null,null,null,{"$error":"#DIV/0!"}]
["",null,null,null,null,null,null,null,null,{"$error":"#DIV/0!"}]
["",null,null,null,null,null,null,null,null,{"$error":"#DIV/0!"}]
["",null,null,null,null,null,null,null,null,{"$error":"#DIV/0!"}]
["",null,null,null,null,null,null,null,null,{"$error":"#DIV/0!"}]
["",null,null,null,null,null,null,null,null,{"$error":"#DIV/0!"}]
["",null,null,null,null,null,null,null,null,{"$error":"#DIV/0!"}]
["",null,null,null,null,null,null,null,null,{"$error":"#DIV/0!"}]
["",null,null,null,null,null,null,null,null,{"$error":"#DIV/0!"}]
["",null,null,null,null,null,null,null,null,{"$f":"AVERAGE(G262:I262)","v":{"$error":"#DIV/0!"}}]
[{"$f":"IF(OR(C263=\"\",A262=\"\"),\"\",A262+1)","v":""},null,null,null,null,null,null,null,null,{"$error":"#DIV/0!"}]
["",null,null,null,null,null,null,null,null,{"$error":"#DIV/0!"}]
["",null,null,null,null,null,null,null,null,{"$error":"#DIV/0!"}]
["",null,null,null,null,null,null,null,null,{"$error":"#DIV/0!"}]
["",null,null,null,null,null,null,null,null,{"$error":"#DIV/0!"}]
["",null,null,null,null,null,null,null,null,{"$error":"#DIV/0!"}]
["",null,null,null,null,null,null,null,null,{"$error":"#DIV/0!"}]
["",null,null,null,null,null,null,null,null,{"$error":"#DIV/0!"}]
["",null,null,null,null,null,null,null,null,{"$error":"#DIV/0!"}]
["",null,null,null,null,null,null,null,null,{"$error":"#DIV/0!"}]
["",null,null,null,null,null,null,null,null,{"$error":"#DIV/0!"}]
["",null,null,null,null,null,null,null,null,{"$error":"#DIV/0!"}]
["",null,null,null,null,null,null,null,null,{"$error":"#DIV/0!"}]
["",null,null,null,null,null,null,null,null,{"$error":"#DIV/0!"}]
["",null,null,null,null,null,null,null,null,{"$error":"#DIV/0!"}]
["",null,null,null,null,null,null,null,null,{"$error":"#DIV/0!"}]
["",null,null,null,null,null,null,null,null,{"$error":"#DIV/0!"}]
["",null,null,null,null,null,null,null,null,{"$error":"#DIV/0!"}]
["",null,null,null,null,null,null,null,null,{"$error":"#DIV/0!"}]
["",null,null,null,null,null,null,null,null,{"$error":"#DIV/0!"}]
["",null,null,null,null,null,null,null,null,{"$error":"#DIV/0!"}]
["",null,null,null,null,null,null,null,null,{"$error":"#DIV/0!"}]
["",null,null,null,null,null,null,null,null,{"$error":"#DIV/0!"}]
["",null,null,null,null,null,null,null,null,{"$error":"#DIV/0!"}]
["",null,null,null,null,null,null,null,null,{"$error":"#DIV/0!"}]
["",null,null,null,null,null,null,null,null,{"$error":"#DIV/0!"}]
["",null,null,null,null,null,null,null,null,{"$error":"#DIV/0!"}]
["",null,null,null,null,null,null,null,null,{"$error":"#DIV/0!"}]
["",null,null,null,null,null,null,null,null,{"$error":"#DIV/0!"}]
["",null,null,null,null,null,null,null,null,{"$error":"#DIV/0!"}]
["",null,null,null,null,null,null,null,null,{"$error":"#DIV/0!"}]
["",null,null,null,null,null,null,null,null,{"$error":"#DIV/0!"}]
["",null,null,null,null,null,null,null,null,{"$error":"#DIV/0!"}]
["",null,null,null,null,null,null,null,null,{"$error":"#DIV/0!"}]
["",null,null,null,null,null,null,null,null,{"$error":"#DIV/0!"}]
["",null,null,null,null,null,null,null,null,{"$error":"#DIV/0!"}]
["",null,null,null,null,null,null,null,null,{"$error":"#DIV/0!"}]
["",null,null,null,null,null,null,null,null,{"$error":"#DIV/0!"}]
["",null,null,null,null,null,null,null,null,{"$error":"#DIV/0!"}]
["",null,null,null,null,null,null,null,null,{"$error":"#DIV/0!"}]
["",null,null,null,null,null,null,null,null,{"$error":"#DIV/0!"}]
["",null,null,null,null,null,null,null,null,{"$error":"#DIV/0!"}]
["",null,null,null,null,null,null,null,null,{"$error":"#DIV/0!"}]
["",null,null,null,null,null,null,null,null,{"$error":"#DIV/0!"}]
["",null,null,null,null,null,null,null,null,{"$error":"#DIV/0!"}]
["",null,null,null,null,null,null,null,null,{"$error":"#DIV/0!"}]
["",null,null,null,null,null,null,null,null,{"$error":"#DIV/0!"}]
["",null,null,null,null,null,null,null,null,{"$error":"#DIV/0!"}]
["",null,null,null,null,null,null,null,null,{"$error":"#DIV/0!"}]
["",null,null,null,null,null,null,null,null,{"$error":"#DIV/0!"}]
["",null,null,null,null,null,null,null,null,{"$error":"#DIV/0!"}]
["",null,null,null,null,null,null,null,null,{"$error":"#DIV/0!"}]
["",null,null,null,null,null,null,null,null,{"$error":"#DIV/0!"}]
["",null,null,null,null,null,null,null,null,{"$error":"#DIV/0!"}]
["",null,null,null,null,null,null,null,null,{"$error":"#DIV/0!"}]
["",null,null,null,null,null,null,null,null,{"$error":"#DIV/0!"}]
["",null,null,null,null,null,null,null,null,{"$error":"#DIV/0!"}]
["",null,null,null,null,null,null,null,null,{"$error":"#DIV/0!"}]
["",null,null,null,null,null,null,null,null,{"$error":"#DIV/0!"}]
["",null,null,null,null,null,null,null,null,{"$error":"#DIV/0!"}]
["",null,null,null,null,null,null,null,null,{"$error":"#DIV/0!"}]
["",null,null,null,null,null,null,null,null,{"$error":"#DIV/0!"}]
["",null,null,null,null,null,null,null,null,{"$error":"#DIV/0!"}]
["",null,null,null,null,null,null,null,null,{"$f":"AVERAGE(G326:I326)","v":{"$error":"#DIV/0!"}}]
[{"$f":"IF(OR(C327=\"\",A326=\"\"),\"\",A326+1)","v":""},null,null,null,null,null,null,null,null,{"$error":"#DIV/0!"}]
["",null,null,null,null,null,null,null,null,{"$error":"#DIV/0!"}]
["",null,null,null,null,null,null,null,null,{"$error":"#DIV/0!"}]
["",null,null,null,null,null,null,null,null,{"$error":"#DIV/0!"}]
["",null,null,null,null,null,null,null,null,{"$error":"#DIV/0!"}]
["",null,null,null,null,null,null,null,null,{"$error":"#DIV/0!"}]
["",null,null,null,null,null,null,null,null,{"$error":"#DIV/0!"}]
["",null,null,null,null,null,null,null,null,{"$error":"#DIV/0!"}]
["",null,null,null,null,null,null,null,null,{"$error":"#DIV/0!"}]
["",null,null,null,null,null,null,null,null,{"$error":"#DIV/0!"}]
["",null,null,null,null,null,null,null,null,{"$error":"#DIV/0!"}]
["",null,null,null,null,null,null,null,null,{"$error":"#DIV/0!"}]
["",null,null,null,null,null,null,null,null,{"$error":"#DIV/0!"}]
["",null,null,null,null,null,null,null,null,{"$error":"#DIV/0!"}]
["",null,null,null,null,null,null,null,null,{"$error":"#DIV/0!"}]
["",null,null,null,null,null,null,null,null,{"$error":"#DIV/0!"}]
["",null,null,null,null,null,null,null,null,{"$error":"#DIV/0!"}]
["",null,null,null,null,null,null,null,null,{"$error":"#DIV/0!"}]
["",null,null,null,null,null,null,null,null,{"$error":"#DIV/0!"}]
["",null,null,null,null,null,null,null,null,{"$error":"#DIV/0!"}]
["",null,null,null,null,null,null,null,null,{"$error":"#DIV/0!"}]
["",null,null,null,null,null,null,null,null,{"$error":"#DIV/0!"}]
["",null,null,null,null,null,null,null,null,{"$error":"#DIV/0!"}]
["",null,null,null,null,null,null,null,null,{"$error":"#DIV/0!"}]
["",null,null,null,null,null,null,null,null,{"$error":"#DIV/0!"}]
["",null,null,null,null,null,null,null,null,{"$error":"#DIV/0!"}]
["",null,null,null,null,null,null,null,null,{"$error":"#DIV/0!"}]
["",null,null,null,null,null,null,null,null,{"$error":"#DIV/0!"}]
["",null,null,null,null,null,null,null,null,{"$error":"#DIV/0!"}]
["",null,null,null,null,null,null,null,null,{"$error":"#DIV/0!"}]
["",null,null,null,null,null,null,null,null,{"$error":"#DIV/0!"}]
["",null,null,null,null,null,null,null,null,{"$error":"#DIV/0!"}]
["",null,null,null,null,null,null,null,null,{"$error":"#DIV/0!"}]
["",null,null,null,null,null,null,null,null,{"$error":"#DIV/0!"}]
["",null,null,null,null,null,null,null,null,{"$error":"#DIV/0!"}]
["",null,null,null,null,null,null,null,null,{"$error":"#DIV/0!"}]
["",null,null,null,null,null,null,null,null,{"$error":"#DIV/0!"}]
["",null,null,null,null,null,null,null,null,{"$error":"#DIV/0!"}]
["",null,null,null,null,null,null,null,null,{"$error":"#DIV/0!"}]
["",null,null,null,null,null,null,null,null,{"$error":"#DIV/0!"}]
["",null,null,null,null,null,null,null,null,{"$error":"#DIV/0!"}]
["",null,null,null,null,null,null,null,null,{"$error":"#DIV/0!"}]
["",null,null,null,null,null,null,null,null,{"$error":"#DIV/0!"}]
["",null,null,null,null,null,null,null,null,{"$error":"#DIV/0!"}]
["",null,null,null,null,null,null,null,null,{"$error":"#DIV/0!"}]
["",null,null,null,null,null,null,null,null,{"$error":"#DIV/0!"}]
["",null,null,null,null,null,null,null,null,{"$error":"#DIV/0!"}]
["",null,null,null,null,null,null,null,null,{"$error":"#DIV/0!"}]
["",null,null,null,null,null,null,null,null,{"$error":"#DIV/0!"}]
["",null,null,null,null,null,null,null,null,{"$error":"#DIV/0!"}]
["",null,null,null,null,null,null,null,null,{"$error":"#DIV/0!"}]
["",null,null,null,null,null,null,null,null,{"$error":"#DIV/0!"}]
["",null,null,null,null,null,null,null,null,{"$error":"#DIV/0!"}]
["",null,null,null,null,null,null,null,null,{"$error":"#DIV/0!"}]
["",null,null,null,null,null,null,null,null,{"$error":"#DIV/0!"}]
["",null,null,null,null,null,null,null,null,{"$error":"#DIV/0!"}]
["",null,null,null,null,null,null,null,null,{"$error":"#DIV/0!"}]
["",null,null,null,null,null,null,null,null,{"$error":"#DIV/0!"}]
["",null,null,null,null,null,null,null,null,{"$error":"#DIV/0!"}]
["",null,null,null,null,null,null,null,null,{"$error":"#DIV/0!"}]
["",null,null,null,null,null,null,null,null,{"$error":"#DIV/0!"}]
["",null,null,null,null,null,null,null,null,{"$error":"#DIV/0!"}]
["",null,null,null,null,null,null,null,null,{"$error":"#DIV/0!"}]
["",null,null,null,null,null,null,null,null,{"$f":"AVERAGE(G390:I390)","v":{"$error":"#DIV/0!"}}]
[{"$f":"IF(OR(C391=\"\",A390=\"\"),\"\",A390+1)","v":""},null,null,null,null,null,null,null,null,{"$error":"#DIV/0!"}]
["",null,null,null,null,null,null,null,null,{"$error":"#DIV/0!"}]
["",null,null,null,null,null,null,null,null,{"$error":"#DIV/0!"}]
["",null,null,null,null,null,null,null,null,{"$error":"#DIV/0!"}]
["",null,null,null,null,null,null,null,null,{"$error":"#DIV/0!"}]
["",null,null,null,null,null,null,null,null,{"$error":"#DIV/0!"}]
["",null,null,null,null,null,null,null,null,{"$error":"#DIV/0!"}]
["",null,null,null,null,null,null,null,null,{"$error":"#DIV/0!"}]
["",null,null,null,null,null,null,null,null,{"$error":"#DIV/0!"}]
["",null,null,null,null,null,null,null,null,{"$error":"#DIV/0!"}]
["",null,null,null,null,null,null,null,null,{"$error":"#DIV/0!"}]
["",null,null,null,null,null,null,null,null,{"$error":"#DIV/0!"}]
["",null,null,null,null,null,null,null,null,{"$error":"#DIV/0!"}]
["",null,null,null,null,null,null,null,null,{"$error":"#DIV/0!"}]
["",null,null,null,null,null,null,null,null,{"$error":"#DIV/0!"}]
["",null,null,null,null,null,null,null,null,{"$error":"#DIV/0!"}]
["",null,null,null,null,null,null,null,null,{"$error":"#DIV/0!"}]
["",null,null,null,null,null,null,null,null,{"$error":"#DIV/0!"}]
["",null,null,null,null,null,null,null,null,{"$error":"#DIV/0!"}]
["",null,null,null,null,null,null,null,null,{"$error":"#DIV/0!"}]
["",null,null,null,null,null,null,null,null,{"$error":"#DIV/0!"}]
["",null,null,null,null,null,null,null,null,{"$error":"#DIV/0!"}]
["",null,null,null,null,null,null,null,null,{"$error":"#DIV/0!"}]
["",null,null,null,null,null,null,null,null,{"$error":"#DIV/0!"}]
["",null,null,null,null,null,null,null,null,{"$error":"#DIV/0!"}]
["",null,null,null,null,null,null,null,null,{"$error":"#DIV/0!"}]
["",null,null,null,null,null,null,null,null,{"$error":"#DIV/0!"}]
["",null,null,null,null,null,null,null,null,{"$error":"#DIV/0!"}]
["",null,null,null,null,null,null,null,null,{"$error":"#DIV/0!"}]
["",null,null,null,null,null,null,null,null,{"$error":"#DIV/0!"}]
["",null,null,null,null,null,null,null,null,{"$error":"#DIV/0!"}]
["",null,null,null,null,null,null,null,null,{"$error":"#DIV/0!"}]
["",null,null,null,null,null,null,null,null,{"$error":"#DIV/0!"}]
["",null,null,null,null,null,null,null,null,{"$error":"#DIV/0!"}]
["",null,null,null,null,null,null,null,null,{"$error":"#DIV/0!"}]
["",null,null,null,null,null,null,null,null,{"$error":"#DIV/0!"}]
["",null,null,null,null,null,null,null,null,{"$error":"#DIV/0!"}]
["",null,null,null,null,null,null,null,null,{"$error":"#DIV/0!"}]
["",null,null,null,null,null,null,null,null,{"$error":"#DIV/0!"}]
["",null,null,null,null,null,null,null,null,{"$error":"#DIV/0!"}]
["",null,null,null,null,null,null,null,null,{"$error":"#DIV/0!"}]
["",null,null,null,null,null,null,null,null,{"$error":"#DIV/0!"}]
["",null,null,null,null,null,null,null,null,{"$error":"#DIV/0!"}]
["",null,null,null,null,null,null,null,null,{"$error":"#DIV/0!"}]
["",null,null,null,null,null,null,null,null,{"$error":"#DIV/0!"}]
["",null,null,null,null,null,null,null,null,{"$error":"#DIV/0!"}]
["",null,null,null,null,null,null,null,null,{"$error":"#DIV/0!"}]
["",null,null,null,null,null,null,null,null,{"$error":"#DIV/0!"}]
["",null,null,null,null,null,null,null,null,{"$error":"#DIV/0!"}]
["",null,null,null,null,null,null,null,null,{"$error":"#DIV/0!"}]
["",null,null,null,null,null,null,null,null,{"$error":"#DIV/0!"}]
["",null,null,null,null,null,null,null,null,{"$error":"#DIV/0!"}]
["",null,null,null,null,null,null,null,null,{"$error":"#DIV/0!"}]
["",null,null,null,null,null,null,null,null,{"$error":"#DIV/0!"}]
["",null,null,null,null,null,null,null,null,{"$error":"#DIV/0!"}]
["",null,null,null,null,null,null,null,null,{"$error":"#DIV/0!"}]
["",null,null,null,null,null,null,null,null,{"$error":"#DIV/0!"}]
["",null,null,null,null,null,null,null,null,{"$error":"#DIV/0!"}]
["",null,null,null,null,null,null,null,null,{"$error":"#DIV/0!"}]
["",null,null,null,null,null,null,null,null,{"$error":"#DIV/0!"}]
["",null,null,null,null,null,null,null,null,{"$error":"#DIV/0!"}]
["",null,null,null,null,null,null,null,null,{"$error":"#DIV/0!"}]
["",null,null,null,null,null,null,null,null,{"$error":"#DIV/0!"}]
["",null,null,null,null,null,null,null,null,{"$f":"AVERAGE(G454:I454)","v":{"$error":"#DIV/0!"}}]
[{"$f":"IF(OR(C455=\"\",A454=\"\"),\"\",A454+1)","v":""},null,null,null,null,null,null,null,null,{"$error":"#DIV/0!"}]
["",null,null,null,null,null,null,null,null,{"$error":"#DIV/0!"}]
["",null,null,null,null,null,null,null,null,{"$error":"#DIV/0!"}]
["",null,null,null,null,null,null,null,null,{"$error":"#DIV/0!"}]
["",null,null,null,null,null,null,null,null,{"$error":"#DIV/0!"}]
["",null,null,null,null,null,null,null,null,{"$error":"#DIV/0!"}]
["",null,null,null,null,null,null,null,null,{"$error":"#DIV/0!"}]
["",null,null,null,null,null,null,null,null,{"$error":"#DIV/0!"}]
["",null,null,null,null,null,null,null,null,{"$error":"#DIV/0!"}]
["",null,null,null,null,null,null,null,null,{"$error":"#DIV/0!"}]
["",null,null,null,null,null,null,null,null,{"$error":"#DIV/0!"}]
["",null,null,null,null,null,null,null,null,{"$error":"#DIV/0!"}]
["",null,null,null,null,null,null,null,null,{"$error":"#DIV/0!"}]
["",null,null,null,null,null,null,null,null,{"$error":"#DIV/0!"}]
["",null,null,null,null,null,null,null,null,{"$error":"#DIV/0!"}]
["",null,null,null,null,null,null,null,null,{"$error":"#DIV/0!"}]
["",null,null,null,null,null,null,null,null,{"$error":"#DIV/0!"}]
["",null,null,null,null,null,null,null,null,{"$error":"#DIV/0!"}]
["",null,null,null,null,null,null,null,null,{"$error":"#DIV/0!"}]
["",null,null,null,null,null,null,null,null,{"$error":"#DIV/0!"}]
["",null,null,null,null,null,null,null,null,{"$error":"#DIV/0!"}]
["",null,null,null,null,null,null,null,null,{"$error":"#DIV/0!"}]
["",null,null,null,null,null,null,null,null,{"$error":"#DIV/0!"}]
["",null,null,null,null,null,null,null,null,{"$error":"#DIV/0!"}]
["",null,null,null,null,null,null,null,null,{"$error":"#DIV/0!"}]
["",null,null,null,null,null,null,null,null,{"$error":"#DIV/0!"}]
["",null,null,null,null,null,null,null,null,{"$error":"#DIV/0!"}]
["",null,null,null,null,null,null,null,null,{"$error":"#DIV/0!"}]
["",null,null,null,null,null,null,null,null,{"$error":"#DIV/0!"}]
["",null,null,null,null,null,null,null,null,{"$error":"#DIV/0!"}]
["",null,null,null,null,null,null,null,null,{"$error":"#DIV/0!"}]
["",null,null,null,null,null,null,null,null,{"$error":"#DIV/0!"}]
["",null,null,null,null,null,null,null,null,{"$error":"#DIV/0!"}]
["",null,null,null,null,null,null,null,null,{"$error":"#DIV/0!"}]
["",null,null,null,null,null,null,null,null,{"$error":"#DIV/0!"}]
["",null,null,null,null,null,null,null,null,{"$error":"#DIV/0!"}]
["",null,null,null,null,null,null,null,null,{"$error":"#DIV/0!"}]
["",null,null,null,null,null,null,null,null,{"$error":"#DIV/0!"}]
["",null,null,null,null,null,null,null,null,{"$error":"#DIV/0!"}]
["",null,null,null,null,null,null,null,null,{"$error":"#DIV/0!"}]
["",null,null,null,null,null,null,null,null,{"$error":"#DIV/0!"}]
["",null,null,null,null,null,null,null,null,{"$error":"#DIV/0!"}]
["",null,null,null,null,null,null,null,null,{"$error":"#DIV/0!"}]
["",null,null,null,null,null,null,null,null,{"$error":"#DIV/0!"}]
["",null,null,null,null,null,null,null,null,{"$error":"#DIV/0!"}]
["",null,null,null,null,null,null,null,null,{"$error":"#DIV/0!"}]
["",null,null,null,null,null,null,null,null,{"$error":"#DIV/0!"}]
["",null,null,null,null,null,null,null,null,{"$error":"#DIV/0!"}]
["",null,null,null,null,null,null,null,null,{"$error":"#DIV/0!"}]
["",null,null,null,null,null,null,null,null,{"$error":"#DIV/0!"}]
["",null,null,null,null,null,null,null,null,{"$error":"#DIV/0!"}]
["",null,null,null,null,null,null,null,null,{"$error":"#DIV/0!"}]
["",null,null,null,null,null,null,null,null,{"$error":"#DIV/0!"}]
["",null,null,null,null,null,null,null,null,{"$error":"#DIV/0!"}]
["",null,null,null,null,null,null,null,null,{"$error":"#DIV/0!"}]

{"sheet":"ANGLAIS","index":2,"n_rows":509,"n_cols":10,"rows_kept":509,"cut":false,"hidden":false,"merged":[]}
[null,null,null,"Moyennes en Anglais"]
[]
[]
[null,"Classes","noms élèves","Sexes","Ages","Statut","Moyenne 1er Trim","Moyenne 2e Trim","Moyenne 3e Trim","Moyenne annuelle"]
[{"$f":"IF(C5<>\"\",1,\"\")","v":""},null,null,null,null,null,null,null,null,{"$f":"AVERAGE(G5:I5)","v":{"$error":"#DIV/0!"}}]
[{"$f":"IF(OR(C6=\"\",A5=\"\"),\"\",A5+1)","v":""},null,null,null,null,null,null,null,null,{"$f":"AVERAGE(G6:I6)","v":{"$error":"#DIV/0!"}}]
[{"$f":"IF(OR(C7=\"\",A6=\"\"),\"\",A6+1)","v":""},null,null,null,null,null,null,null,null,{"$error":"#DIV/0!"}]
["",null,null,null,null,null,null,null,null,{"$error":"#DIV/0!"}]
["",null,null,null,null,null,null,null,null,{"$error":"#DIV/0!"}]
["",null,null,null,null,null,null,null,null,{"$error":"#DIV/0!"}]
["",null,null,null,null,null,null,null,null,{"$error":"#DIV/0!"}]
["",null,null,null,null,null,null,null,null,{"$error":"#DIV/0!"}]
["",null,null,null,null,null,null,null,null,{"$error":"#DIV/0!"}]
["",null,null,null,null,null,null,null,null,{"$error":"#DIV/0!"}]
["",null,null,null,null,null,null,null,null,{"$error":"#DIV/0!"}]
["",null,null,null,null,null,null,null,null,{"$error":"#DIV/0!"}]
["",null,null,null,null,null,null,null,null,{"$error":"#DIV/0!"}]
["",null,null,null,null,null,null,null,null,{"$error":"#DIV/0!"}]
["",null,null,null,null,null,null,null,null,{"$error":"#DIV/0!"}]
["",null,null,null,null,null,null,null,null,{"$error":"#DIV/0!"}]
["",null,null,null,null,null,null,null,null,{"$error":"#DIV/0!"}]
["",null,null,null,null,null,null,null,null,{"$error":"#DIV/0!"}]
["",null,null,null,null,null,null,null,null,{"$error":"#DIV/0!"}]
["",null,null,null,null,null,null,null,null,{"$error":"#DIV/0!"}]
["",null,null,null,null,null,null,null,null,{"$error":"#DIV/0!"}]
["",null,null,null,null,null,null,null,null,{"$error":"#DIV/0!"}]
["",null,null,null,null,null,null,null,null,{"$error":"#DIV/0!"}]
["",null,null,null,null,null,null,null,null,{"$error":"#DIV/0!"}]
["",null,null,null,null,null,null,null,null,{"$error":"#DIV/0!"}]
["",null,null,null,null,null,null,null,null,{"$error":"#DIV/0!"}]
["",null,null,null,null,null,null,null,null,{"$error":"#DIV/0!"}]
["",null,null,null,null,null,null,null,null,{"$error":"#DIV/0!"}]
["",null,null,null,null,null,null,null,null,{"$error":"#DIV/0!"}]
["",null,null,null,null,null,null,null,null,{"$error":"#DIV/0!"}]
["",null,null,null,null,null,null,null,null,{"$error":"#DIV/0!"}]
["",null,null,null,null,null,null,null,null,{"$error":"#DIV/0!"}]
["",null,null,null,null,null,null,null,null,{"$error":"#DIV/0!"}]
["",null,null,null,null,null,null,null,null,{"$error":"#DIV/0!"}]
["",null,null,null,null,null,null,null,null,{"$error":"#DIV/0!"}]
["",null,null,null,null,null,null,null,null,{"$error":"#DIV/0!"}]
["",null,null,null,null,null,null,null,null,{"$error":"#DIV/0!"}]
["",null,null,null,null,null,null,null,null,{"$error":"#DIV/0!"}]
["",null,null,null,null,null,null,null,null,{"$error":"#DIV/0!"}]
["",null,null,null,null,null,null,null,null,{"$error":"#DIV/0!"}]
["",null,null,null,null,null,null,null,null,{"$error":"#DIV/0!"}]
["",null,null,null,null,null,null,null,null,{"$error":"#DIV/0!"}]
["",null,null,null,null,null,null,null,null,{"$error":"#DIV/0!"}]
["",null,null,null,null,null,null,null,null,{"$error":"#DIV/0!"}]
["",null,null,null,null,null,null,null,null,{"$error":"#DIV/0!"}]
["",null,null,null,null,null,null,null,null,{"$error":"#DIV/0!"}]
["",null,null,null,null,null,null,null,null,{"$error":"#DIV/0!"}]
["",null,null,null,null,null,null,null,null,{"$error":"#DIV/0!"}]
["",null,null,null,null,null,null,null,null,{"$error":"#DIV/0!"}]
["",null,null,null,null,null,null,null,null,{"$error":"#DIV/0!"}]
["",null,null,null,null,null,null,null,null,{"$error":"#DIV/0!"}]
["",null,null,null,null,null,null,null,null,{"$error":"#DIV/0!"}]
["",null,null,null,null,null,null,null,null,{"$error":"#DIV/0!"}]
["",null,null,null,null,null,null,null,null,{"$error":"#DIV/0!"}]
["",null,null,null,null,null,null,null,null,{"$error":"#DIV/0!"}]
["",null,null,null,null,null,null,null,null,{"$error":"#DIV/0!"}]
["",null,null,null,null,null,null,null,null,{"$error":"#DIV/0!"}]
["",null,null,null,null,null,null,null,null,{"$error":"#DIV/0!"}]
["",null,null,null,null,null,null,null,null,{"$error":"#DIV/0!"}]
["",null,null,null,null,null,null,null,null,{"$error":"#DIV/0!"}]
["",null,null,null,null,null,null,null,null,{"$error":"#DIV/0!"}]
["",null,null,null,null,null,null,null,null,{"$error":"#DIV/0!"}]
["",null,null,null,null,null,null,null,null,{"$error":"#DIV/0!"}]
["",null,null,null,null,null,null,null,null,{"$error":"#DIV/0!"}]
["",null,null,null,null,null,null,null,null,{"$error":"#DIV/0!"}]
["",null,null,null,null,null,null,null,null,{"$f":"AVERAGE(G70:I70)","v":{"$error":"#DIV/0!"}}]
[{"$f":"IF(OR(C71=\"\",A70=\"\"),\"\",A70+1)","v":""},null,null,null,null,null,null,null,null,{"$error":"#DIV/0!"}]
["",null,null,null,null,null,null,null,null,{"$error":"#DIV/0!"}]
["",null,null,null,null,null,null,null,null,{"$error":"#DIV/0!"}]
["",null,null,null,null,null,null,null,null,{"$error":"#DIV/0!"}]
["",null,null,null,null,null,null,null,null,{"$error":"#DIV/0!"}]
["",null,null,null,null,null,null,null,null,{"$error":"#DIV/0!"}]
["",null,null,null,null,null,null,null,null,{"$error":"#DIV/0!"}]
["",null,null,null,null,null,null,null,null,{"$error":"#DIV/0!"}]
["",null,null,null,null,null,null,null,null,{"$error":"#DIV/0!"}]
["",null,null,null,null,null,null,null,null,{"$error":"#DIV/0!"}]
["",null,null,null,null,null,null,null,null,{"$error":"#DIV/0!"}]
["",null,null,null,null,null,null,null,null,{"$error":"#DIV/0!"}]
["",null,null,null,null,null,null,null,null,{"$error":"#DIV/0!"}]
["",null,null,null,null,null,null,null,null,{"$error":"#DIV/0!"}]
["",null,null,null,null,null,null,null,null,{"$error":"#DIV/0!"}]
["",null,null,null,null,null,null,null,null,{"$error":"#DIV/0!"}]
["",null,null,null,null,null,null,null,null,{"$error":"#DIV/0!"}]
["",null,null,null,null,null,null,null,null,{"$error":"#DIV/0!"}]
["",null,null,null,null,null,null,null,null,{"$error":"#DIV/0!"}]
["",null,null,null,null,null,null,null,null,{"$error":"#DIV/0!"}]
["",null,null,null,null,null,null,null,null,{"$error":"#DIV/0!"}]
["",null,null,null,null,null,null,null,null,{"$error":"#DIV/0!"}]
["",null,null,null,null,null,null,null,null,{"$error":"#DIV/0!"}]
["",null,null,null,null,null,null,null,null,{"$error":"#DIV/0!"}]
["",null,null,null,null,null,null,null,null,{"$error":"#DIV/0!"}]
["",null,null,null,null,null,null,null,null,{"$error":"#DIV/0!"}]
["",null,null,null,null,null,null,null,null,{"$error":"#DIV/0!"}]
["",null,null,null,null,null,null,null,null,{"$error":"#DIV/0!"}]
["",null,null,null,null,null,null,null,null,{"$error":"#DIV/0!"}]
["",null,null,null,null,null,null,null,null,{"$error":"#DIV/0!"}]
["",null,null,null,null,null,null,null,null,{"$error":"#DIV/0!"}]
["",null,null,null,null,null,null,null,null,{"$error":"#DIV/0!"}]
["",null,null,null,null,null,null,null,null,{"$error":"#DIV/0!"}]
["",null,null,null,null,null,null,null,null,{"$error":"#DIV/0!"}]
["",null,null,null,null,null,null,null,null,{"$error":"#DIV/0!"}]
["",null,null,null,null,null,null,null,null,{"$error":"#DIV/0!"}]
["",null,null,null,null,null,null,null,null,{"$error":"#DIV/0!"}]
["",null,null,null,null,null,null,null,null,{"$error":"#DIV/0!"}]
["",null,null,null,null,null,null,null,null,{"$error":"#DIV/0!"}]
["",null,null,null,null,null,null,null,null,{"$error":"#DIV/0!"}]
["",null,null,null,null,null,null,null,null,{"$error":"#DIV/0!"}]
["",null,null,null,null,null,null,null,null,{"$error":"#DIV/0!"}]
["",null,null,null,null,null,null,null,null,{"$error":"#DIV/0!"}]
["",null,null,null,null,null,null,null,null,{"$error":"#DIV/0!"}]
["",null,null,null,null,null,null,null,null,{"$error":"#DIV/0!"}]
["",null,null,null,null,null,null,null,null,{"$error":"#DIV/0!"}]
["",null,null,null,null,null,null,null,null,{"$error":"#DIV/0!"}]
["",null,null,null,null,null,null,null,null,{"$error":"#DIV/0!"}]
["",null,null,null,null,null,null,null,null,{"$error":"#DIV/0!"}]
["",null,null,null,null,null,null,null,null,{"$error":"#DIV/0!"}]
["",null,null,null,null,null,null,null,null,{"$error":"#DIV/0!"}]
["",null,null,null,null,null,null,null,null,{"$error":"#DIV/0!"}]
["",null,null,null,null,null,null,null,null,{"$error":"#DIV/0!"}]
["",null,null,null,null,null,null,null,null,{"$error":"#DIV/0!"}]
["",null,null,null,null,null,null,null,null,{"$error":"#DIV/0!"}]
["",null,null,null,null,null,null,null,null,{"$error":"#DIV/0!"}]
["",null,null,null,null,null,null,null,null,{"$error":"#DIV/0!"}]
["",null,null,null,null,null,null,null,null,{"$error":"#DIV/0!"}]
["",null,null,null,null,null,null,null,null,{"$error":"#DIV/0!"}]
["",null,null,null,null,null,null,null,null,{"$error":"#DIV/0!"}]
["",null,null,null,null,null,null,null,null,{"$error":"#DIV/0!"}]
["",null,null,null,null,null,null,null,null,{"$error":"#DIV/0!"}]
["",null,null,null,null,null,null,null,null,{"$error":"#DIV/0!"}]
["",null,null,null,null,null,null,null,null,{"$f":"AVERAGE(G134:I134)","v":{"$error":"#DIV/0!"}}]
[{"$f":"IF(OR(C135=\"\",A134=\"\"),\"\",A134+1)","v":""},null,null,null,null,null,null,null,null,{"$error":"#DIV/0!"}]
["",null,null,null,null,null,null,null,null,{"$error":"#DIV/0!"}]
["",null,null,null,null,null,null,null,null,{"$error":"#DIV/0!"}]
["",null,null,null,null,null,null,null,null,{"$error":"#DIV/0!"}]
["",null,null,null,null,null,null,null,null,{"$error":"#DIV/0!"}]
["",null,null,null,null,null,null,null,null,{"$error":"#DIV/0!"}]
["",null,null,null,null,null,null,null,null,{"$error":"#DIV/0!"}]
["",null,null,null,null,null,null,null,null,{"$error":"#DIV/0!"}]
["",null,null,null,null,null,null,null,null,{"$error":"#DIV/0!"}]
["",null,null,null,null,null,null,null,null,{"$error":"#DIV/0!"}]
["",null,null,null,null,null,null,null,null,{"$error":"#DIV/0!"}]
["",null,null,null,null,null,null,null,null,{"$error":"#DIV/0!"}]
["",null,null,null,null,null,null,null,null,{"$error":"#DIV/0!"}]
["",null,null,null,null,null,null,null,null,{"$error":"#DIV/0!"}]
["",null,null,null,null,null,null,null,null,{"$error":"#DIV/0!"}]
["",null,null,null,null,null,null,null,null,{"$error":"#DIV/0!"}]
["",null,null,null,null,null,null,null,null,{"$error":"#DIV/0!"}]
["",null,null,null,null,null,null,null,null,{"$error":"#DIV/0!"}]
["",null,null,null,null,null,null,null,null,{"$error":"#DIV/0!"}]
["",null,null,null,null,null,null,null,null,{"$error":"#DIV/0!"}]
["",null,null,null,null,null,null,null,null,{"$error":"#DIV/0!"}]
["",null,null,null,null,null,null,null,null,{"$error":"#DIV/0!"}]
["",null,null,null,null,null,null,null,null,{"$error":"#DIV/0!"}]
["",null,null,null,null,null,null,null,null,{"$error":"#DIV/0!"}]
["",null,null,null,null,null,null,null,null,{"$error":"#DIV/0!"}]
["",null,null,null,null,null,null,null,null,{"$error":"#DIV/0!"}]
["",null,null,null,null,null,null,null,null,{"$error":"#DIV/0!"}]
["",null,null,null,null,null,null,null,null,{"$error":"#DIV/0!"}]
["",null,null,null,null,null,null,null,null,{"$error":"#DIV/0!"}]
["",null,null,null,null,null,null,null,null,{"$error":"#DIV/0!"}]
["",null,null,null,null,null,null,null,null,{"$error":"#DIV/0!"}]
["",null,null,null,null,null,null,null,null,{"$error":"#DIV/0!"}]
["",null,null,null,null,null,null,null,null,{"$error":"#DIV/0!"}]
["",null,null,null,null,null,null,null,null,{"$error":"#DIV/0!"}]
["",null,null,null,null,null,null,null,null,{"$error":"#DIV/0!"}]
["",null,null,null,null,null,null,null,null,{"$error":"#DIV/0!"}]
["",null,null,null,null,null,null,null,null,{"$error":"#DIV/0!"}]
["",null,null,null,null,null,null,null,null,{"$error":"#DIV/0!"}]
["",null,null,null,null,null,null,null,null,{"$error":"#DIV/0!"}]
["",null,null,null,null,null,null,null,null,{"$error":"#DIV/0!"}]
["",null,null,null,null,null,null,null,null,{"$error":"#DIV/0!"}]
["",null,null,null,null,null,null,null,null,{"$error":"#DIV/0!"}]
["",null,null,null,null,null,null,null,null,{"$error":"#DIV/0!"}]
["",null,null,null,null,null,null,null,null,{"$error":"#DIV/0!"}]
["",null,null,null,null,null,null,null,null,{"$error":"#DIV/0!"}]
["",null,null,null,null,null,null,null,null,{"$error":"#DIV/0!"}]
["",null,null,null,null,null,null,null,null,{"$error":"#DIV/0!"}]
["",null,null,null,null,null,null,null,null,{"$error":"#DIV/0!"}]
["",null,null,null,null,null,null,null,null,{"$error":"#DIV/0!"}]
["",null,null,null,null,null,null,null,null,{"$error":"#DIV/0!"}]
["",null,null,null,null,null,null,null,null,{"$error":"#DIV/0!"}]
["",null,null,null,null,null,null,null,null,{"$error":"#DIV/0!"}]
["",null,null,null,null,null,null,null,null,{"$error":"#DIV/0!"}]
["",null,null,null,null,null,null,null,null,{"$error":"#DIV/0!"}]
["",null,null,null,null,null,null,null,null,{"$error":"#DIV/0!"}]
["",null,null,null,null,null,null,null,null,{"$error":"#DIV/0!"}]
["",null,null,null,null,null,null,null,null,{"$error":"#DIV/0!"}]
["",null,null,null,null,null,null,null,null,{"$error":"#DIV/0!"}]
["",null,null,null,null,null,null,null,null,{"$error":"#DIV/0!"}]
["",null,null,null,null,null,null,null,null,{"$error":"#DIV/0!"}]
["",null,null,null,null,null,null,null,null,{"$error":"#DIV/0!"}]
["",null,null,null,null,null,null,null,null,{"$error":"#DIV/0!"}]
["",null,null,null,null,null,null,null,null,{"$error":"#DIV/0!"}]
["",null,null,null,null,null,null,null,null,{"$f":"AVERAGE(G198:I198)","v":{"$error":"#DIV/0!"}}]
[{"$f":"IF(OR(C199=\"\",A198=\"\"),\"\",A198+1)","v":""},null,null,null,null,null,null,null,null,{"$error":"#DIV/0!"}]
["",null,null,null,null,null,null,null,null,{"$error":"#DIV/0!"}]
["",null,null,null,null,null,null,null,null,{"$error":"#DIV/0!"}]
["",null,null,null,null,null,null,null,null,{"$error":"#DIV/0!"}]
["",null,null,null,null,null,null,null,null,{"$error":"#DIV/0!"}]
["",null,null,null,null,null,null,null,null,{"$error":"#DIV/0!"}]
["",null,null,null,null,null,null,null,null,{"$error":"#DIV/0!"}]
["",null,null,null,null,null,null,null,null,{"$error":"#DIV/0!"}]
["",null,null,null,null,null,null,null,null,{"$error":"#DIV/0!"}]
["",null,null,null,null,null,null,null,null,{"$error":"#DIV/0!"}]
["",null,null,null,null,null,null,null,null,{"$error":"#DIV/0!"}]
["",null,null,null,null,null,null,null,null,{"$error":"#DIV/0!"}]
["",null,null,null,null,null,null,null,null,{"$error":"#DIV/0!"}]
["",null,null,null,null,null,null,null,null,{"$error":"#DIV/0!"}]
["",null,null,null,null,null,null,null,null,{"$error":"#DIV/0!"}]
["",null,null,null,null,null,null,null,null,{"$error":"#DIV/0!"}]
["",null,null,null,null,null,null,null,null,{"$error":"#DIV/0!"}]
["",null,null,null,null,null,null,null,null,{"$error":"#DIV/0!"}]
["",null,null,null,null,null,null,null,null,{"$error":"#DIV/0!"}]
["",null,null,null,null,null,null,null,null,{"$error":"#DIV/0!"}]
["",null,null,null,null,null,null,null,null,{"$error":"#DIV/0!"}]
["",null,null,null,null,null,null,null,null,{"$error":"#DIV/0!"}]
["",null,null,null,null,null,null,null,null,{"$error":"#DIV/0!"}]
["",null,null,null,null,null,null,null,null,{"$error":"#DIV/0!"}]
["",null,null,null,null,null,null,null,null,{"$error":"#DIV/0!"}]
["",null,null,null,null,null,null,null,null,{"$error":"#DIV/0!"}]
["",null,null,null,null,null,null,null,null,{"$error":"#DIV/0!"}]
["",null,null,null,null,null,null,null,null,{"$error":"#DIV/0!"}]
["",null,null,null,null,null,null,null,null,{"$error":"#DIV/0!"}]
["",null,null,null,null,null,null,null,null,{"$error":"#DIV/0!"}]
["",null,null,null,null,null,null,null,null,{"$error":"#DIV/0!"}]
["",null,null,null,null,null,null,null,null,{"$error":"#DIV/0!"}]
["",null,null,null,null,null,null,null,null,{"$error":"#DIV/0!"}]
["",null,null,null,null,null,null,null,null,{"$error":"#DIV/0!"}]
["",null,null,null,null,null,null,null,null,{"$error":"#DIV/0!"}]
["",null,null,null,null,null,null,null,null,{"$error":"#DIV/0!"}]
["",null,null,null,null,null,null,null,null,{"$error":"#DIV/0!"}]
["",null,null,null,null,null,null,null,null,{"$error":"#DIV/0!"}]
["",null,null,null,null,null,null,null,null,{"$error":"#DIV/0!"}]
["",null,null,null,null,null,null,null,null,{"$error":"#DIV/0!"}]
["",null,null,null,null,null,null,null,null,{"$error":"#DIV/0!"}]
["",null,null,null,null,null,null,null,null,{"$error":"#DIV/0!"}]
["",null,null,null,null,null,null,null,null,{"$error":"#DIV/0!"}]
["",null,null,null,null,null,null,null,null,{"$error":"#DIV/0!"}]
["",null,null,null,null,null,null,null,null,{"$error":"#DIV/0!"}]
["",null,null,null,null,null,null,null,null,{"$error":"#DIV/0!"}]
["",null,null,null,null,null,null,null,null,{"$error":"#DIV/0!"}]
["",null,null,null,null,null,null,null,null,{"$error":"#DIV/0!"}]
["",null,null,null,null,null,null,null,null,{"$error":"#DIV/0!"}]
["",null,null,null,null,null,null,null,null,{"$error":"#DIV/0!"}]
["",null,null,null,null,null,null,null,null,{"$error":"#DIV/0!"}]
["",null,null,null,null,null,null,null,null,{"$error":"#DIV/0!"}]
["",null,null,null,null,null,null,null,null,{"$error":"#DIV/0!"}]
["",null,null,null,null,null,null,null,null,{"$error":"#DIV/0!"}]
["",null,null,null,null,null,null,null,null,{"$error":"#DIV/0!"}]
["",null,null,null,null,null,null,null,null,{"$error":"#DIV/0!"}]
["",null,null,null,null,null,null,null,null,{"$error":"#DIV/0!"}]
["",null,null,null,null,null,null,null,null,{"$error":"#DIV/0!"}]
["",null,null,null,null,null,null,null,null,{"$error":"#DIV/0!"}]
["",null,null,null,null,null,null,null,null,{"$error":"#DIV/0!"}]
["",null,null,null,null,null,null,null,null,{"$error":"#DIV/0!"}]
["",null,null,null,null,null,null,null,null,{"$error":"#DIV/0!"}]
["",null,null,null,null,null,null,null,null,{"$error":"#DIV/0!"}]
["",null,null,null,null,null,null,null,null,{"$f":"AVERAGE(G262:I262)","v":{"$error":"#DIV/0!"}}]
[{"$f":"IF(OR(C263=\"\",A262=\"\"),\"\",A262+1)","v":""},null,null,null,null,null,null,null,null,{"$error":"#DIV/0!"}]
["",null,null,null,null,null,null,null,null,{"$error":"#DIV/0!"}]
["",null,null,null,null,null,null,null,null,{"$error":"#DIV/0!"}]
["",null,null,null,null,null,null,null,null,{"$error":"#DIV/0!"}]
["",null,null,null,null,null,null,null,null,{"$error":"#DIV/0!"}]
["",null,null,null,null,null,null,null,null,{"$error":"#DIV/0!"}]
["",null,null,null,null,null,null,null,null,{"$error":"#DIV/0!"}]
["",null,null,null,null,null,null,null,null,{"$error":"#DIV/0!"}]
["",null,null,null,null,null,null,null,null,{"$error":"#DIV/0!"}]
["",null,null,null,null,null,null,null,null,{"$error":"#DIV/0!"}]
["",null,null,null,null,null,null,null,null,{"$error":"#DIV/0!"}]
["",null,null,null,null,null,null,null,null,{"$error":"#DIV/0!"}]
["",null,null,null,null,null,null,null,null,{"$error":"#DIV/0!"}]
["",null,null,null,null,null,null,null,null,{"$error":"#DIV/0!"}]
["",null,null,null,null,null,null,null,null,{"$error":"#DIV/0!"}]
["",null,null,null,null,null,null,null,null,{"$error":"#DIV/0!"}]
["",null,null,null,null,null,null,null,null,{"$error":"#DIV/0!"}]
["",null,null,null,null,null,null,null,null,{"$error":"#DIV/0!"}]
["",null,null,null,null,null,null,null,null,{"$error":"#DIV/0!"}]
["",null,null,null,null,null,null,null,null,{"$error":"#DIV/0!"}]
["",null,null,null,null,null,null,null,null,{"$error":"#DIV/0!"}]
["",null,null,null,null,null,null,null,null,{"$error":"#DIV/0!"}]
["",null,null,null,null,null,null,null,null,{"$error":"#DIV/0!"}]
["",null,null,null,null,null,null,null,null,{"$error":"#DIV/0!"}]
["",null,null,null,null,null,null,null,null,{"$error":"#DIV/0!"}]
["",null,null,null,null,null,null,null,null,{"$error":"#DIV/0!"}]
["",null,null,null,null,null,null,null,null,{"$error":"#DIV/0!"}]
["",null,null,null,null,null,null,null,null,{"$error":"#DIV/0!"}]
["",null,null,null,null,null,null,null,null,{"$error":"#DIV/0!"}]
["",null,null,null,null,null,null,null,null,{"$error":"#DIV/0!"}]
["",null,null,null,null,null,null,null,null,{"$error":"#DIV/0!"}]
["",null,null,null,null,null,null,null,null,{"$error":"#DIV/0!"}]
["",null,null,null,null,null,null,null,null,{"$error":"#DIV/0!"}]
["",null,null,null,null,null,null,null,null,{"$error":"#DIV/0!"}]
["",null,null,null,null,null,null,null,null,{"$error":"#DIV/0!"}]
["",null,null,null,null,null,null,null,null,{"$error":"#DIV/0!"}]
["",null,null,null,null,null,null,null,null,{"$error":"#DIV/0!"}]
["",null,null,null,null,null,null,null,null,{"$error":"#DIV/0!"}]
["",null,null,null,null,null,null,null,null,{"$error":"#DIV/0!"}]
["",null,null,null,null,null,null,null,null,{"$error":"#DIV/0!"}]
["",null,null,null,null,null,null,null,null,{"$error":"#DIV/0!"}]
["",null,null,null,null,null,null,null,null,{"$error":"#DIV/0!"}]
["",null,null,null,null,null,null,null,null,{"$error":"#DIV/0!"}]
["",null,null,null,null,null,null,null,null,{"$error":"#DIV/0!"}]
["",null,null,null,null,null,null,null,null,{"$error":"#DIV/0!"}]
["",null,null,null,null,null,null,null,null,{"$error":"#DIV/0!"}]
["",null,null,null,null,null,null,null,null,{"$error":"#DIV/0!"}]
["",null,null,null,null,null,null,null,null,{"$error":"#DIV/0!"}]
["",null,null,null,null,null,null,null,null,{"$error":"#DIV/0!"}]
["",null,null,null,null,null,null,null,null,{"$error":"#DIV/0!"}]
["",null,null,null,null,null,null,null,null,{"$error":"#DIV/0!"}]
["",null,null,null,null,null,null,null,null,{"$error":"#DIV/0!"}]
["",null,null,null,null,null,null,null,null,{"$error":"#DIV/0!"}]
["",null,null,null,null,null,null,null,null,{"$error":"#DIV/0!"}]
["",null,null,null,null,null,null,null,null,{"$error":"#DIV/0!"}]
["",null,null,null,null,null,null,null,null,{"$error":"#DIV/0!"}]
["",null,null,null,null,null,null,null,null,{"$error":"#DIV/0!"}]
["",null,null,null,null,null,null,null,null,{"$error":"#DIV/0!"}]
["",null,null,null,null,null,null,null,null,{"$error":"#DIV/0!"}]
["",null,null,null,null,null,null,null,null,{"$error":"#DIV/0!"}]
["",null,null,null,null,null,null,null,null,{"$error":"#DIV/0!"}]
["",null,null,null,null,null,null,null,null,{"$error":"#DIV/0!"}]
["",null,null,null,null,null,null,null,null,{"$error":"#DIV/0!"}]
["",null,null,null,null,null,null,null,null,{"$f":"AVERAGE(G326:I326)","v":{"$error":"#DIV/0!"}}]
[{"$f":"IF(OR(C327=\"\",A326=\"\"),\"\",A326+1)","v":""},null,null,null,null,null,null,null,null,{"$error":"#DIV/0!"}]
["",null,null,null,null,null,null,null,null,{"$error":"#DIV/0!"}]
["",null,null,null,null,null,null,null,null,{"$error":"#DIV/0!"}]
["",null,null,null,null,null,null,null,null,{"$error":"#DIV/0!"}]
["",null,null,null,null,null,null,null,null,{"$error":"#DIV/0!"}]
["",null,null,null,null,null,null,null,null,{"$error":"#DIV/0!"}]
["",null,null,null,null,null,null,null,null,{"$error":"#DIV/0!"}]
["",null,null,null,null,null,null,null,null,{"$error":"#DIV/0!"}]
["",null,null,null,null,null,null,null,null,{"$error":"#DIV/0!"}]
["",null,null,null,null,null,null,null,null,{"$error":"#DIV/0!"}]
["",null,null,null,null,null,null,null,null,{"$error":"#DIV/0!"}]
["",null,null,null,null,null,null,null,null,{"$error":"#DIV/0!"}]
["",null,null,null,null,null,null,null,null,{"$error":"#DIV/0!"}]
["",null,null,null,null,null,null,null,null,{"$error":"#DIV/0!"}]
["",null,null,null,null,null,null,null,null,{"$error":"#DIV/0!"}]
["",null,null,null,null,null,null,null,null,{"$error":"#DIV/0!"}]
["",null,null,null,null,null,null,null,null,{"$error":"#DIV/0!"}]
["",null,null,null,null,null,null,null,null,{"$error":"#DIV/0!"}]
["",null,null,null,null,null,null,null,null,{"$error":"#DIV/0!"}]
["",null,null,null,null,null,null,null,null,{"$error":"#DIV/0!"}]
["",null,null,null,null,null,null,null,null,{"$error":"#DIV/0!"}]
["",null,null,null,null,null,null,null,null,{"$error":"#DIV/0!"}]
["",null,null,null,null,null,null,null,null,{"$error":"#DIV/0!"}]
["",null,null,null,null,null,null,null,null,{"$error":"#DIV/0!"}]
["",null,null,null,null,null,null,null,null,{"$error":"#DIV/0!"}]
["",null,null,null,null,null,null,null,null,{"$error":"#DIV/0!"}]
["",null,null,null,null,null,null,null,null,{"$error":"#DIV/0!"}]
["",null,null,null,null,null,null,null,null,{"$error":"#DIV/0!"}]
["",null,null,null,null,null,null,null,null,{"$error":"#DIV/0!"}]
["",null,null,null,null,null,null,null,null,{"$error":"#DIV/0!"}]
["",null,null,null,null,null,null,null,null,{"$error":"#DIV/0!"}]
["",null,null,null,null,null,null,null,null,{"$error":"#DIV/0!"}]
["",null,null,null,null,null,null,null,null,{"$error":"#DIV/0!"}]
["",null,null,null,null,null,null,null,null,{"$error":"#DIV/0!"}]
["",null,null,null,null,null,null,null,null,{"$error":"#DIV/0!"}]
["",null,null,null,null,null,null,null,null,{"$error":"#DIV/0!"}]
["",null,null,null,null,null,null,null,null,{"$error":"#DIV/0!"}]
["",null,null,null,null,null,null,null,null,{"$error":"#DIV/0!"}]
["",null,null,null,null,null,null,null,null,{"$error":"#DIV/0!"}]
["",null,null,null,null,null,null,null,null,{"$error":"#DIV/0!"}]
["",null,null,null,null,null,null,null,null,{"$error":"#DIV/0!"}]
["",null,null,null,null,null,null,null,null,{"$error":"#DIV/0!"}]
["",null,null,null,null,null,null,null,null,{"$error":"#DIV/0!"}]
["",null,null,null,null,null,null,null,null,{"$error":"#DIV/0!"}]
["",null,null,null,null,null,null,null,null,{"$error":"#DIV/0!"}]
["",null,null,null,null,null,null,null,null,{"$error":"#DIV/0!"}]
["",null,null,null,null,null,null,null,null,{"$error":"#DIV/0!"}]
["",null,null,null,null,null,null,null,null,{"$error":"#DIV/0!"}]
["",null,null,null,null,null,null,null,null,{"$error":"#DIV/0!"}]
["",null,null,null,null,null,null,null,null,{"$error":"#DIV/0!"}]
["",null,null,null,null,null,null,null,null,{"$error":"#DIV/0!"}]
["",null,null,null,null,null,null,null,null,{"$error":"#DIV/0!"}]
["",null,null,null,null,null,null,null,null,{"$error":"#DIV/0!"}]
["",null,null,null,null,null,null,null,null,{"$error":"#DIV/0!"}]
["",null,null,null,null,null,null,null,null,{"$error":"#DIV/0!"}]
["",null,null,null,null,null,null,null,null,{"$error":"#DIV/0!"}]
["",null,null,null,null,null,null,null,null,{"$error":"#DIV/0!"}]
["",null,null,null,null,null,null,null,null,{"$error":"#DIV/0!"}]
["",null,null,null,null,null,null,null,null,{"$error":"#DIV/0!"}]
["",null,null,null,null,null,null,null,null,{"$error":"#DIV/0!"}]
["",null,null,null,null,null,null,null,null,{"$error":"#DIV/0!"}]
["",null,null,null,null,null,null,null,null,{"$error":"#DIV/0!"}]
["",null,null,null,null,null,null,null,null,{"$error":"#DIV/0!"}]
["",null,null,null,null,null,null,null,null,{"$f":"AVERAGE(G390:I390)","v":{"$error":"#DIV/0!"}}]
[{"$f":"IF(OR(C391=\"\",A390=\"\"),\"\",A390+1)","v":""},null,null,null,null,null,null,null,null,{"$error":"#DIV/0!"}]
["",null,null,null,null,null,null,null,null,{"$error":"#DIV/0!"}]
["",null,null,null,null,null,null,null,null,{"$error":"#DIV/0!"}]
["",null,null,null,null,null,null,null,null,{"$error":"#DIV/0!"}]
["",null,null,null,null,null,null,null,null,{"$error":"#DIV/0!"}]
["",null,null,null,null,null,null,null,null,{"$error":"#DIV/0!"}]
["",null,null,null,null,null,null,null,null,{"$error":"#DIV/0!"}]
["",null,null,null,null,null,null,null,null,{"$error":"#DIV/0!"}]
["",null,null,null,null,null,null,null,null,{"$error":"#DIV/0!"}]
["",null,null,null,null,null,null,null,null,{"$error":"#DIV/0!"}]
["",null,null,null,null,null,null,null,null,{"$error":"#DIV/0!"}]
["",null,null,null,null,null,null,null,null,{"$error":"#DIV/0!"}]
["",null,null,null,null,null,null,null,null,{"$error":"#DIV/0!"}]
["",null,null,null,null,null,null,null,null,{"$error":"#DIV/0!"}]
["",null,null,null,null,null,null,null,null,{"$error":"#DIV/0!"}]
["",null,null,null,null,null,null,null,null,{"$error":"#DIV/0!"}]
["",null,null,null,null,null,null,null,null,{"$error":"#DIV/0!"}]
["",null,null,null,null,null,null,null,null,{"$error":"#DIV/0!"}]
["",null,null,null,null,null,null,null,null,{"$error":"#DIV/0!"}]
["",null,null,null,null,null,null,null,null,{"$error":"#DIV/0!"}]
["",null,null,null,null,null,null,null,null,{"$error":"#DIV/0!"}]
["",null,null,null,null,null,null,null,null,{"$error":"#DIV/0!"}]
["",null,null,null,null,null,null,null,null,{"$error":"#DIV/0!"}]
["",null,null,null,null,null,null,null,null,{"$error":"#DIV/0!"}]
["",null,null,null,null,null,null,null,null,{"$error":"#DIV/0!"}]
["",null,null,null,null,null,null,null,null,{"$error":"#DIV/0!"}]
["",null,null,null,null,null,null,null,null,{"$error":"#DIV/0!"}]
["",null,null,null,null,null,null,null,null,{"$error":"#DIV/0!"}]
["",null,null,null,null,null,null,null,null,{"$error":"#DIV/0!"}]
["",null,null,null,null,null,null,null,null,{"$error":"#DIV/0!"}]
["",null,null,null,null,null,null,null,null,{"$error":"#DIV/0!"}]
["",null,null,null,null,null,null,null,null,{"$error":"#DIV/0!"}]
["",null,null,null,null,null,null,null,null,{"$error":"#DIV/0!"}]
["",null,null,null,null,null,null,null,null,{"$error":"#DIV/0!"}]
["",null,null,null,null,null,null,null,null,{"$error":"#DIV/0!"}]
["",null,null,null,null,null,null,null,null,{"$error":"#DIV/0!"}]
["",null,null,null,null,null,null,null,null,{"$error":"#DIV/0!"}]
["",null,null,null,null,null,null,null,null,{"$error":"#DIV/0!"}]
["",null,null,null,null,null,null,null,null,{"$error":"#DIV/0!"}]
["",null,null,null,null,null,null,null,null,{"$error":"#DIV/0!"}]
["",null,null,null,null,null,null,null,null,{"$error":"#DIV/0!"}]
["",null,null,null,null,null,null,null,null,{"$error":"#DIV/0!"}]
["",null,null,null,null,null,null,null,null,{"$error":"#DIV/0!"}]
["",null,null,null,null,null,null,null,null,{"$error":"#DIV/0!"}]
["",null,null,null,null,null,null,null,null,{"$error":"#DIV/0!"}]
["",null,null,null,null,null,null,null,null,{"$error":"#DIV/0!"}]
["",null,null,null,null,null,null,null,null,{"$error":"#DIV/0!"}]
["",null,null,null,null,null,null,null,null,{"$error":"#DIV/0!"}]
["",null,null,null,null,null,null,null,null,{"$error":"#DIV/0!"}]
["",null,null,null,null,null,null,null,null,{"$error":"#DIV/0!"}]
["",null,null,null,null,null,null,null,null,{"$error":"#DIV/0!"}]
["",null,null,null,null,null,null,null,null,{"$error":"#DIV/0!"}]
["",null,null,null,null,null,null,null,null,{"$error":"#DIV/0!"}]
["",null,null,null,null,null,null,null,null,{"$error":"#DIV/0!"}]
["",null,null,null,null,null,null,null,null,{"$error":"#DIV/0!"}]
["",null,null,null,null,null,null,null,null,{"$error":"#DIV/0!"}]
["",null,null,null,null,null,null,null,null,{"$error":"#DIV/0!"}]
["",null,null,null,null,null,null,null,null,{"$error":"#DIV/0!"}]
["",null,null,null,null,null,null,null,null,{"$error":"#DIV/0!"}]
["",null,null,null,null,null,null,null,null,{"$error":"#DIV/0!"}]
["",null,null,null,null,null,null,null,null,{"$error":"#DIV/0!"}]
["",null,null,null,null,null,null,null,null,{"$error":"#DIV/0!"}]
["",null,null,null,null,null,null,null,null,{"$error":"#DIV/0!"}]
["",null,null,null,null,null,null,null,null,{"$f":"AVERAGE(G454:I454)","v":{"$error":"#DIV/0!"}}]
[{"$f":"IF(OR(C455=\"\",A454=\"\"),\"\",A454+1)","v":""},null,null,null,null,null,null,null,null,{"$error":"#DIV/0!"}]
["",null,null,null,null,null,null,null,null,{"$error":"#DIV/0!"}]
["",null,null,null,null,null,null,null,null,{"$error":"#DIV/0!"}]
["",null,null,null,null,null,null,null,null,{"$error":"#DIV/0!"}]
["",null,null,null,null,null,null,null,null,{"$error":"#DIV/0!"}]
["",null,null,null,null,null,null,null,null,{"$error":"#DIV/0!"}]
["",null,null,null,null,null,null,null,null,{"$error":"#DIV/0!"}]
["",null,null,null,null,null,null,null,null,{"$error":"#DIV/0!"}]
["",null,null,null,null,null,null,null,null,{"$error":"#DIV/0!"}]
["",null,null,null,null,null,null,null,null,{"$error":"#DIV/0!"}]
["",null,null,null,null,null,null,null,null,{"$error":"#DIV/0!"}]
["",null,null,null,null,null,null,null,null,{"$error":"#DIV/0!"}]
["",null,null,null,null,null,null,null,null,{"$error":"#DIV/0!"}]
["",null,null,null,null,null,null,null,null,{"$error":"#DIV/0!"}]
["",null,null,null,null,null,null,null,null,{"$error":"#DIV/0!"}]
["",null,null,null,null,null,null,null,null,{"$error":"#DIV/0!"}]
["",null,null,null,null,null,null,null,null,{"$error":"#DIV/0!"}]
["",null,null,null,null,null,null,null,null,{"$error":"#DIV/0!"}]
["",null,null,null,null,null,null,null,null,{"$error":"#DIV/0!"}]
["",null,null,null,null,null,null,null,null,{"$error":"#DIV/0!"}]
["",null,null,null,null,null,null,null,null,{"$error":"#DIV/0!"}]
["",null,null,null,null,null,null,null,null,{"$error":"#DIV/0!"}]
["",null,null,null,null,null,null,null,null,{"$error":"#DIV/0!"}]
["",null,null,null,null,null,null,null,null,{"$error":"#DIV/0!"}]
["",null,null,null,null,null,null,null,null,{"$error":"#DIV/0!"}]
["",null,null,null,null,null,null,null,null,{"$error":"#DIV/0!"}]
["",null,null,null,null,null,null,null,null,{"$error":"#DIV/0!"}]
["",null,null,null,null,null,null,null,null,{"$error":"#DIV/0!"}]
["",null,null,null,null,null,null,null,null,{"$error":"#DIV/0!"}]
["",null,null,null,null,null,null,null,null,{"$error":"#DIV/0!"}]
["",null,null,null,null,null,null,null,null,{"$error":"#DIV/0!"}]
["",null,null,null,null,null,null,null,null,{"$error":"#DIV/0!"}]
["",null,null,null,null,null,null,null,null,{"$error":"#DIV/0!"}]
["",null,null,null,null,null,null,null,null,{"$error":"#DIV/0!"}]
["",null,null,null,null,null,null,null,null,{"$error":"#DIV/0!"}]
["",null,null,null,null,null,null,null,null,{"$error":"#DIV/0!"}]
["",null,null,null,null,null,null,null,null,{"$error":"#DIV/0!"}]
["",null,null,null,null,null,null,null,null,{"$error":"#DIV/0!"}]
["",null,null,null,null,null,null,null,null,{"$error":"#DIV/0!"}]
["",null,null,null,null,null,null,null,null,{"$error":"#DIV/0!"}]
["",null,null,null,null,null,null,null,null,{"$error":"#DIV/0!"}]
["",null,null,null,null,null,null,null,null,{"$error":"#DIV/0!"}]
["",null,null,null,null,null,null,null,null,{"$error":"#DIV/0!"}]
["",null,null,null,null,null,null,null,null,{"$error":"#DIV/0!"}]
["",null,null,null,null,null,null,null,null,{"$error":"#DIV/0!"}]
["",null,null,null,null,null,null,null,null,{"$error":"#DIV/0!"}]
["",null,null,null,null,null,null,null,null,{"$error":"#DIV/0!"}]
["",null,null,null,null,null,null,null,null,{"$error":"#DIV/0!"}]
["",null,null,null,null,null,null,null,null,{"$error":"#DIV/0!"}]
["",null,null,null,null,null,null,null,null,{"$error":"#DIV/0!"}]
["",null,null,null,null,null,null,null,null,{"$error":"#DIV/0!"}]
["",null,null,null,null,null,null,null,null,{"$error":"#DIV/0!"}]
["",null,null,null,null,null,null,null,null,{"$error":"#DIV/0!"}]
["",null,null,null,null,null,null,null,null,{"$error":"#DIV/0!"}]
["",null,null,null,null,null,null,null,null,{"$error":"#DIV/0!"}]

{"sheet":"HISTOIRE","index":3,"n_rows":509,"n_cols":10,"rows_kept":509,"cut":false,"hidden":false,"merged":[]}
[null,null,null,"Moyennes en Histoire"]
[]
[]
[null,"Classes","noms élèves","Sexes","Ages","Statut","Moyenne 1er Trim","Moyenne 2e Trim","Moyenne 3e Trim","Moyenne annuelle"]
[{"$f":"IF(C5<>\"\",1,\"\")","v":""},null,null,null,null,null,null,null,null,{"$f":"AVERAGE(G5:I5)","v":{"$error":"#DIV/0!"}}]
[{"$f":"IF(OR(C6=\"\",A5=\"\"),\"\",A5+1)","v":""},null,null,null,null,null,null,null,null,{"$f":"AVERAGE(G6:I6)","v":{"$error":"#DIV/0!"}}]
[{"$f":"IF(OR(C7=\"\",A6=\"\"),\"\",A6+1)","v":""},null,null,null,null,null,null,null,null,{"$error":"#DIV/0!"}]
["",null,null,null,null,null,null,null,null,{"$error":"#DIV/0!"}]
["",null,null,null,null,null,null,null,null,{"$error":"#DIV/0!"}]
["",null,null,null,null,null,null,null,null,{"$error":"#DIV/0!"}]
["",null,null,null,null,null,null,null,null,{"$error":"#DIV/0!"}]
["",null,null,null,null,null,null,null,null,{"$error":"#DIV/0!"}]
["",null,null,null,null,null,null,null,null,{"$error":"#DIV/0!"}]
["",null,null,null,null,null,null,null,null,{"$error":"#DIV/0!"}]
["",null,null,null,null,null,null,null,null,{"$error":"#DIV/0!"}]
["",null,null,null,null,null,null,null,null,{"$error":"#DIV/0!"}]
["",null,null,null,null,null,null,null,null,{"$error":"#DIV/0!"}]
["",null,null,null,null,null,null,null,null,{"$error":"#DIV/0!"}]
["",null,null,null,null,null,null,null,null,{"$error":"#DIV/0!"}]
["",null,null,null,null,null,null,null,null,{"$error":"#DIV/0!"}]
["",null,null,null,null,null,null,null,null,{"$error":"#DIV/0!"}]
["",null,null,null,null,null,null,null,null,{"$error":"#DIV/0!"}]
["",null,null,null,null,null,null,null,null,{"$error":"#DIV/0!"}]
["",null,null,null,null,null,null,null,null,{"$error":"#DIV/0!"}]
["",null,null,null,null,null,null,null,null,{"$error":"#DIV/0!"}]
["",null,null,null,null,null,null,null,null,{"$error":"#DIV/0!"}]
["",null,null,null,null,null,null,null,null,{"$error":"#DIV/0!"}]
["",null,null,null,null,null,null,null,null,{"$error":"#DIV/0!"}]
["",null,null,null,null,null,null,null,null,{"$error":"#DIV/0!"}]
["",null,null,null,null,null,null,null,null,{"$error":"#DIV/0!"}]
["",null,null,null,null,null,null,null,null,{"$error":"#DIV/0!"}]
["",null,null,null,null,null,null,null,null,{"$error":"#DIV/0!"}]
["",null,null,null,null,null,null,null,null,{"$error":"#DIV/0!"}]
["",null,null,null,null,null,null,null,null,{"$error":"#DIV/0!"}]
["",null,null,null,null,null,null,null,null,{"$error":"#DIV/0!"}]
["",null,null,null,null,null,null,null,null,{"$error":"#DIV/0!"}]
["",null,null,null,null,null,null,null,null,{"$error":"#DIV/0!"}]
["",null,null,null,null,null,null,null,null,{"$error":"#DIV/0!"}]
["",null,null,null,null,null,null,null,null,{"$error":"#DIV/0!"}]
["",null,null,null,null,null,null,null,null,{"$error":"#DIV/0!"}]
["",null,null,null,null,null,null,null,null,{"$error":"#DIV/0!"}]
["",null,null,null,null,null,null,null,null,{"$error":"#DIV/0!"}]
["",null,null,null,null,null,null,null,null,{"$error":"#DIV/0!"}]
["",null,null,null,null,null,null,null,null,{"$error":"#DIV/0!"}]
["",null,null,null,null,null,null,null,null,{"$error":"#DIV/0!"}]
["",null,null,null,null,null,null,null,null,{"$error":"#DIV/0!"}]
["",null,null,null,null,null,null,null,null,{"$error":"#DIV/0!"}]
["",null,null,null,null,null,null,null,null,{"$error":"#DIV/0!"}]
["",null,null,null,null,null,null,null,null,{"$error":"#DIV/0!"}]
["",null,null,null,null,null,null,null,null,{"$error":"#DIV/0!"}]
["",null,null,null,null,null,null,null,null,{"$error":"#DIV/0!"}]
["",null,null,null,null,null,null,null,null,{"$error":"#DIV/0!"}]
["",null,null,null,null,null,null,null,null,{"$error":"#DIV/0!"}]
["",null,null,null,null,null,null,null,null,{"$error":"#DIV/0!"}]
["",null,null,null,null,null,null,null,null,{"$error":"#DIV/0!"}]
["",null,null,null,null,null,null,null,null,{"$error":"#DIV/0!"}]
["",null,null,null,null,null,null,null,null,{"$error":"#DIV/0!"}]
["",null,null,null,null,null,null,null,null,{"$error":"#DIV/0!"}]
["",null,null,null,null,null,null,null,null,{"$error":"#DIV/0!"}]
["",null,null,null,null,null,null,null,null,{"$error":"#DIV/0!"}]
["",null,null,null,null,null,null,null,null,{"$error":"#DIV/0!"}]
["",null,null,null,null,null,null,null,null,{"$error":"#DIV/0!"}]
["",null,null,null,null,null,null,null,null,{"$error":"#DIV/0!"}]
["",null,null,null,null,null,null,null,null,{"$error":"#DIV/0!"}]
["",null,null,null,null,null,null,null,null,{"$error":"#DIV/0!"}]
["",null,null,null,null,null,null,null,null,{"$error":"#DIV/0!"}]
["",null,null,null,null,null,null,null,null,{"$error":"#DIV/0!"}]
["",null,null,null,null,null,null,null,null,{"$error":"#DIV/0!"}]
["",null,null,null,null,null,null,null,null,{"$error":"#DIV/0!"}]
["",null,null,null,null,null,null,null,null,{"$f":"AVERAGE(G70:I70)","v":{"$error":"#DIV/0!"}}]
[{"$f":"IF(OR(C71=\"\",A70=\"\"),\"\",A70+1)","v":""},null,null,null,null,null,null,null,null,{"$error":"#DIV/0!"}]
["",null,null,null,null,null,null,null,null,{"$error":"#DIV/0!"}]
["",null,null,null,null,null,null,null,null,{"$error":"#DIV/0!"}]
["",null,null,null,null,null,null,null,null,{"$error":"#DIV/0!"}]
["",null,null,null,null,null,null,null,null,{"$error":"#DIV/0!"}]
["",null,null,null,null,null,null,null,null,{"$error":"#DIV/0!"}]
["",null,null,null,null,null,null,null,null,{"$error":"#DIV/0!"}]
["",null,null,null,null,null,null,null,null,{"$error":"#DIV/0!"}]
["",null,null,null,null,null,null,null,null,{"$error":"#DIV/0!"}]
["",null,null,null,null,null,null,null,null,{"$error":"#DIV/0!"}]
["",null,null,null,null,null,null,null,null,{"$error":"#DIV/0!"}]
["",null,null,null,null,null,null,null,null,{"$error":"#DIV/0!"}]
["",null,null,null,null,null,null,null,null,{"$error":"#DIV/0!"}]
["",null,null,null,null,null,null,null,null,{"$error":"#DIV/0!"}]
["",null,null,null,null,null,null,null,null,{"$error":"#DIV/0!"}]
["",null,null,null,null,null,null,null,null,{"$error":"#DIV/0!"}]
["",null,null,null,null,null,null,null,null,{"$error":"#DIV/0!"}]
["",null,null,null,null,null,null,null,null,{"$error":"#DIV/0!"}]
["",null,null,null,null,null,null,null,null,{"$error":"#DIV/0!"}]
["",null,null,null,null,null,null,null,null,{"$error":"#DIV/0!"}]
["",null,null,null,null,null,null,null,null,{"$error":"#DIV/0!"}]
["",null,null,null,null,null,null,null,null,{"$error":"#DIV/0!"}]
["",null,null,null,null,null,null,null,null,{"$error":"#DIV/0!"}]
["",null,null,null,null,null,null,null,null,{"$error":"#DIV/0!"}]
["",null,null,null,null,null,null,null,null,{"$error":"#DIV/0!"}]
["",null,null,null,null,null,null,null,null,{"$error":"#DIV/0!"}]
["",null,null,null,null,null,null,null,null,{"$error":"#DIV/0!"}]
["",null,null,null,null,null,null,null,null,{"$error":"#DIV/0!"}]
["",null,null,null,null,null,null,null,null,{"$error":"#DIV/0!"}]
["",null,null,null,null,null,null,null,null,{"$error":"#DIV/0!"}]
["",null,null,null,null,null,null,null,null,{"$error":"#DIV/0!"}]
["",null,null,null,null,null,null,null,null,{"$error":"#DIV/0!"}]
["",null,null,null,null,null,null,null,null,{"$error":"#DIV/0!"}]
["",null,null,null,null,null,null,null,null,{"$error":"#DIV/0!"}]
["",null,null,null,null,null,null,null,null,{"$error":"#DIV/0!"}]
["",null,null,null,null,null,null,null,null,{"$error":"#DIV/0!"}]
["",null,null,null,null,null,null,null,null,{"$error":"#DIV/0!"}]
["",null,null,null,null,null,null,null,null,{"$error":"#DIV/0!"}]
["",null,null,null,null,null,null,null,null,{"$error":"#DIV/0!"}]
["",null,null,null,null,null,null,null,null,{"$error":"#DIV/0!"}]
["",null,null,null,null,null,null,null,null,{"$error":"#DIV/0!"}]
["",null,null,null,null,null,null,null,null,{"$error":"#DIV/0!"}]
["",null,null,null,null,null,null,null,null,{"$error":"#DIV/0!"}]
["",null,null,null,null,null,null,null,null,{"$error":"#DIV/0!"}]
["",null,null,null,null,null,null,null,null,{"$error":"#DIV/0!"}]
["",null,null,null,null,null,null,null,null,{"$error":"#DIV/0!"}]
["",null,null,null,null,null,null,null,null,{"$error":"#DIV/0!"}]
["",null,null,null,null,null,null,null,null,{"$error":"#DIV/0!"}]
["",null,null,null,null,null,null,null,null,{"$error":"#DIV/0!"}]
["",null,null,null,null,null,null,null,null,{"$error":"#DIV/0!"}]
["",null,null,null,null,null,null,null,null,{"$error":"#DIV/0!"}]
["",null,null,null,null,null,null,null,null,{"$error":"#DIV/0!"}]
["",null,null,null,null,null,null,null,null,{"$error":"#DIV/0!"}]
["",null,null,null,null,null,null,null,null,{"$error":"#DIV/0!"}]
["",null,null,null,null,null,null,null,null,{"$error":"#DIV/0!"}]
["",null,null,null,null,null,null,null,null,{"$error":"#DIV/0!"}]
["",null,null,null,null,null,null,null,null,{"$error":"#DIV/0!"}]
["",null,null,null,null,null,null,null,null,{"$error":"#DIV/0!"}]
["",null,null,null,null,null,null,null,null,{"$error":"#DIV/0!"}]
["",null,null,null,null,null,null,null,null,{"$error":"#DIV/0!"}]
["",null,null,null,null,null,null,null,null,{"$error":"#DIV/0!"}]
["",null,null,null,null,null,null,null,null,{"$error":"#DIV/0!"}]
["",null,null,null,null,null,null,null,null,{"$error":"#DIV/0!"}]
["",null,null,null,null,null,null,null,null,{"$f":"AVERAGE(G134:I134)","v":{"$error":"#DIV/0!"}}]
[{"$f":"IF(OR(C135=\"\",A134=\"\"),\"\",A134+1)","v":""},null,null,null,null,null,null,null,null,{"$error":"#DIV/0!"}]
["",null,null,null,null,null,null,null,null,{"$error":"#DIV/0!"}]
["",null,null,null,null,null,null,null,null,{"$error":"#DIV/0!"}]
["",null,null,null,null,null,null,null,null,{"$error":"#DIV/0!"}]
["",null,null,null,null,null,null,null,null,{"$error":"#DIV/0!"}]
["",null,null,null,null,null,null,null,null,{"$error":"#DIV/0!"}]
["",null,null,null,null,null,null,null,null,{"$error":"#DIV/0!"}]
["",null,null,null,null,null,null,null,null,{"$error":"#DIV/0!"}]
["",null,null,null,null,null,null,null,null,{"$error":"#DIV/0!"}]
["",null,null,null,null,null,null,null,null,{"$error":"#DIV/0!"}]
["",null,null,null,null,null,null,null,null,{"$error":"#DIV/0!"}]
["",null,null,null,null,null,null,null,null,{"$error":"#DIV/0!"}]
["",null,null,null,null,null,null,null,null,{"$error":"#DIV/0!"}]
["",null,null,null,null,null,null,null,null,{"$error":"#DIV/0!"}]
["",null,null,null,null,null,null,null,null,{"$error":"#DIV/0!"}]
["",null,null,null,null,null,null,null,null,{"$error":"#DIV/0!"}]
["",null,null,null,null,null,null,null,null,{"$error":"#DIV/0!"}]
["",null,null,null,null,null,null,null,null,{"$error":"#DIV/0!"}]
["",null,null,null,null,null,null,null,null,{"$error":"#DIV/0!"}]
["",null,null,null,null,null,null,null,null,{"$error":"#DIV/0!"}]
["",null,null,null,null,null,null,null,null,{"$error":"#DIV/0!"}]
["",null,null,null,null,null,null,null,null,{"$error":"#DIV/0!"}]
["",null,null,null,null,null,null,null,null,{"$error":"#DIV/0!"}]
["",null,null,null,null,null,null,null,null,{"$error":"#DIV/0!"}]
["",null,null,null,null,null,null,null,null,{"$error":"#DIV/0!"}]
["",null,null,null,null,null,null,null,null,{"$error":"#DIV/0!"}]
["",null,null,null,null,null,null,null,null,{"$error":"#DIV/0!"}]
["",null,null,null,null,null,null,null,null,{"$error":"#DIV/0!"}]
["",null,null,null,null,null,null,null,null,{"$error":"#DIV/0!"}]
["",null,null,null,null,null,null,null,null,{"$error":"#DIV/0!"}]
["",null,null,null,null,null,null,null,null,{"$error":"#DIV/0!"}]
["",null,null,null,null,null,null,null,null,{"$error":"#DIV/0!"}]
["",null,null,null,null,null,null,null,null,{"$error":"#DIV/0!"}]
["",null,null,null,null,null,null,null,null,{"$error":"#DIV/0!"}]
["",null,null,null,null,null,null,null,null,{"$error":"#DIV/0!"}]
["",null,null,null,null,null,null,null,null,{"$error":"#DIV/0!"}]
["",null,null,null,null,null,null,null,null,{"$error":"#DIV/0!"}]
["",null,null,null,null,null,null,null,null,{"$error":"#DIV/0!"}]
["",null,null,null,null,null,null,null,null,{"$error":"#DIV/0!"}]
["",null,null,null,null,null,null,null,null,{"$error":"#DIV/0!"}]
["",null,null,null,null,null,null,null,null,{"$error":"#DIV/0!"}]
["",null,null,null,null,null,null,null,null,{"$error":"#DIV/0!"}]
["",null,null,null,null,null,null,null,null,{"$error":"#DIV/0!"}]
["",null,null,null,null,null,null,null,null,{"$error":"#DIV/0!"}]
["",null,null,null,null,null,null,null,null,{"$error":"#DIV/0!"}]
["",null,null,null,null,null,null,null,null,{"$error":"#DIV/0!"}]
["",null,null,null,null,null,null,null,null,{"$error":"#DIV/0!"}]
["",null,null,null,null,null,null,null,null,{"$error":"#DIV/0!"}]
["",null,null,null,null,null,null,null,null,{"$error":"#DIV/0!"}]
["",null,null,null,null,null,null,null,null,{"$error":"#DIV/0!"}]
["",null,null,null,null,null,null,null,null,{"$error":"#DIV/0!"}]
["",null,null,null,null,null,null,null,null,{"$error":"#DIV/0!"}]
["",null,null,null,null,null,null,null,null,{"$error":"#DIV/0!"}]
["",null,null,null,null,null,null,null,null,{"$error":"#DIV/0!"}]
["",null,null,null,null,null,null,null,null,{"$error":"#DIV/0!"}]
["",null,null,null,null,null,null,null,null,{"$error":"#DIV/0!"}]
["",null,null,null,null,null,null,null,null,{"$error":"#DIV/0!"}]
["",null,null,null,null,null,null,null,null,{"$error":"#DIV/0!"}]
["",null,null,null,null,null,null,null,null,{"$error":"#DIV/0!"}]
["",null,null,null,null,null,null,null,null,{"$error":"#DIV/0!"}]
["",null,null,null,null,null,null,null,null,{"$error":"#DIV/0!"}]
["",null,null,null,null,null,null,null,null,{"$error":"#DIV/0!"}]
["",null,null,null,null,null,null,null,null,{"$error":"#DIV/0!"}]
["",null,null,null,null,null,null,null,null,{"$f":"AVERAGE(G198:I198)","v":{"$error":"#DIV/0!"}}]
[{"$f":"IF(OR(C199=\"\",A198=\"\"),\"\",A198+1)","v":""},null,null,null,null,null,null,null,null,{"$error":"#DIV/0!"}]
["",null,null,null,null,null,null,null,null,{"$error":"#DIV/0!"}]
["",null,null,null,null,null,null,null,null,{"$error":"#DIV/0!"}]
["",null,null,null,null,null,null,null,null,{"$error":"#DIV/0!"}]
["",null,null,null,null,null,null,null,null,{"$error":"#DIV/0!"}]
["",null,null,null,null,null,null,null,null,{"$error":"#DIV/0!"}]
["",null,null,null,null,null,null,null,null,{"$error":"#DIV/0!"}]
["",null,null,null,null,null,null,null,null,{"$error":"#DIV/0!"}]
["",null,null,null,null,null,null,null,null,{"$error":"#DIV/0!"}]
["",null,null,null,null,null,null,null,null,{"$error":"#DIV/0!"}]
["",null,null,null,null,null,null,null,null,{"$error":"#DIV/0!"}]
["",null,null,null,null,null,null,null,null,{"$error":"#DIV/0!"}]
["",null,null,null,null,null,null,null,null,{"$error":"#DIV/0!"}]
["",null,null,null,null,null,null,null,null,{"$error":"#DIV/0!"}]
["",null,null,null,null,null,null,null,null,{"$error":"#DIV/0!"}]
["",null,null,null,null,null,null,null,null,{"$error":"#DIV/0!"}]
["",null,null,null,null,null,null,null,null,{"$error":"#DIV/0!"}]
["",null,null,null,null,null,null,null,null,{"$error":"#DIV/0!"}]
["",null,null,null,null,null,null,null,null,{"$error":"#DIV/0!"}]
["",null,null,null,null,null,null,null,null,{"$error":"#DIV/0!"}]
["",null,null,null,null,null,null,null,null,{"$error":"#DIV/0!"}]
["",null,null,null,null,null,null,null,null,{"$error":"#DIV/0!"}]
["",null,null,null,null,null,null,null,null,{"$error":"#DIV/0!"}]
["",null,null,null,null,null,null,null,null,{"$error":"#DIV/0!"}]
["",null,null,null,null,null,null,null,null,{"$error":"#DIV/0!"}]
["",null,null,null,null,null,null,null,null,{"$error":"#DIV/0!"}]
["",null,null,null,null,null,null,null,null,{"$error":"#DIV/0!"}]
["",null,null,null,null,null,null,null,null,{"$error":"#DIV/0!"}]
["",null,null,null,null,null,null,null,null,{"$error":"#DIV/0!"}]
["",null,null,null,null,null,null,null,null,{"$error":"#DIV/0!"}]
["",null,null,null,null,null,null,null,null,{"$error":"#DIV/0!"}]
["",null,null,null,null,null,null,null,null,{"$error":"#DIV/0!"}]
["",null,null,null,null,null,null,null,null,{"$error":"#DIV/0!"}]
["",null,null,null,null,null,null,null,null,{"$error":"#DIV/0!"}]
["",null,null,null,null,null,null,null,null,{"$error":"#DIV/0!"}]
["",null,null,null,null,null,null,null,null,{"$error":"#DIV/0!"}]
["",null,null,null,null,null,null,null,null,{"$error":"#DIV/0!"}]
["",null,null,null,null,null,null,null,null,{"$error":"#DIV/0!"}]
["",null,null,null,null,null,null,null,null,{"$error":"#DIV/0!"}]
["",null,null,null,null,null,null,null,null,{"$error":"#DIV/0!"}]
["",null,null,null,null,null,null,null,null,{"$error":"#DIV/0!"}]
["",null,null,null,null,null,null,null,null,{"$error":"#DIV/0!"}]
["",null,null,null,null,null,null,null,null,{"$error":"#DIV/0!"}]
["",null,null,null,null,null,null,null,null,{"$error":"#DIV/0!"}]
["",null,null,null,null,null,null,null,null,{"$error":"#DIV/0!"}]
["",null,null,null,null,null,null,null,null,{"$error":"#DIV/0!"}]
["",null,null,null,null,null,null,null,null,{"$error":"#DIV/0!"}]
["",null,null,null,null,null,null,null,null,{"$error":"#DIV/0!"}]
["",null,null,null,null,null,null,null,null,{"$error":"#DIV/0!"}]
["",null,null,null,null,null,null,null,null,{"$error":"#DIV/0!"}]
["",null,null,null,null,null,null,null,null,{"$error":"#DIV/0!"}]
["",null,null,null,null,null,null,null,null,{"$error":"#DIV/0!"}]
["",null,null,null,null,null,null,null,null,{"$error":"#DIV/0!"}]
["",null,null,null,null,null,null,null,null,{"$error":"#DIV/0!"}]
["",null,null,null,null,null,null,null,null,{"$error":"#DIV/0!"}]
["",null,null,null,null,null,null,null,null,{"$error":"#DIV/0!"}]
["",null,null,null,null,null,null,null,null,{"$error":"#DIV/0!"}]
["",null,null,null,null,null,null,null,null,{"$error":"#DIV/0!"}]
["",null,null,null,null,null,null,null,null,{"$error":"#DIV/0!"}]
["",null,null,null,null,null,null,null,null,{"$error":"#DIV/0!"}]
["",null,null,null,null,null,null,null,null,{"$error":"#DIV/0!"}]
["",null,null,null,null,null,null,null,null,{"$error":"#DIV/0!"}]
["",null,null,null,null,null,null,null,null,{"$error":"#DIV/0!"}]
["",null,null,null,null,null,null,null,null,{"$f":"AVERAGE(G262:I262)","v":{"$error":"#DIV/0!"}}]
[{"$f":"IF(OR(C263=\"\",A262=\"\"),\"\",A262+1)","v":""},null,null,null,null,null,null,null,null,{"$error":"#DIV/0!"}]
["",null,null,null,null,null,null,null,null,{"$error":"#DIV/0!"}]
["",null,null,null,null,null,null,null,null,{"$error":"#DIV/0!"}]
["",null,null,null,null,null,null,null,null,{"$error":"#DIV/0!"}]
["",null,null,null,null,null,null,null,null,{"$error":"#DIV/0!"}]
["",null,null,null,null,null,null,null,null,{"$error":"#DIV/0!"}]
["",null,null,null,null,null,null,null,null,{"$error":"#DIV/0!"}]
["",null,null,null,null,null,null,null,null,{"$error":"#DIV/0!"}]
["",null,null,null,null,null,null,null,null,{"$error":"#DIV/0!"}]
["",null,null,null,null,null,null,null,null,{"$error":"#DIV/0!"}]
["",null,null,null,null,null,null,null,null,{"$error":"#DIV/0!"}]
["",null,null,null,null,null,null,null,null,{"$error":"#DIV/0!"}]
["",null,null,null,null,null,null,null,null,{"$error":"#DIV/0!"}]
["",null,null,null,null,null,null,null,null,{"$error":"#DIV/0!"}]
["",null,null,null,null,null,null,null,null,{"$error":"#DIV/0!"}]
["",null,null,null,null,null,null,null,null,{"$error":"#DIV/0!"}]
["",null,null,null,null,null,null,null,null,{"$error":"#DIV/0!"}]
["",null,null,null,null,null,null,null,null,{"$error":"#DIV/0!"}]
["",null,null,null,null,null,null,null,null,{"$error":"#DIV/0!"}]
["",null,null,null,null,null,null,null,null,{"$error":"#DIV/0!"}]
["",null,null,null,null,null,null,null,null,{"$error":"#DIV/0!"}]
["",null,null,null,null,null,null,null,null,{"$error":"#DIV/0!"}]
["",null,null,null,null,null,null,null,null,{"$error":"#DIV/0!"}]
["",null,null,null,null,null,null,null,null,{"$error":"#DIV/0!"}]
["",null,null,null,null,null,null,null,null,{"$error":"#DIV/0!"}]
["",null,null,null,null,null,null,null,null,{"$error":"#DIV/0!"}]
["",null,null,null,null,null,null,null,null,{"$error":"#DIV/0!"}]
["",null,null,null,null,null,null,null,null,{"$error":"#DIV/0!"}]
["",null,null,null,null,null,null,null,null,{"$error":"#DIV/0!"}]
["",null,null,null,null,null,null,null,null,{"$error":"#DIV/0!"}]
["",null,null,null,null,null,null,null,null,{"$error":"#DIV/0!"}]
["",null,null,null,null,null,null,null,null,{"$error":"#DIV/0!"}]
["",null,null,null,null,null,null,null,null,{"$error":"#DIV/0!"}]
["",null,null,null,null,null,null,null,null,{"$error":"#DIV/0!"}]
["",null,null,null,null,null,null,null,null,{"$error":"#DIV/0!"}]
["",null,null,null,null,null,null,null,null,{"$error":"#DIV/0!"}]
["",null,null,null,null,null,null,null,null,{"$error":"#DIV/0!"}]
["",null,null,null,null,null,null,null,null,{"$error":"#DIV/0!"}]
["",null,null,null,null,null,null,null,null,{"$error":"#DIV/0!"}]
["",null,null,null,null,null,null,null,null,{"$error":"#DIV/0!"}]
["",null,null,null,null,null,null,null,null,{"$error":"#DIV/0!"}]
["",null,null,null,null,null,null,null,null,{"$error":"#DIV/0!"}]
["",null,null,null,null,null,null,null,null,{"$error":"#DIV/0!"}]
["",null,null,null,null,null,null,null,null,{"$error":"#DIV/0!"}]
["",null,null,null,null,null,null,null,null,{"$error":"#DIV/0!"}]
["",null,null,null,null,null,null,null,null,{"$error":"#DIV/0!"}]
["",null,null,null,null,null,null,null,null,{"$error":"#DIV/0!"}]
["",null,null,null,null,null,null,null,null,{"$error":"#DIV/0!"}]
["",null,null,null,null,null,null,null,null,{"$error":"#DIV/0!"}]
["",null,null,null,null,null,null,null,null,{"$error":"#DIV/0!"}]
["",null,null,null,null,null,null,null,null,{"$error":"#DIV/0!"}]
["",null,null,null,null,null,null,null,null,{"$error":"#DIV/0!"}]
["",null,null,null,null,null,null,null,null,{"$error":"#DIV/0!"}]
["",null,null,null,null,null,null,null,null,{"$error":"#DIV/0!"}]
["",null,null,null,null,null,null,null,null,{"$error":"#DIV/0!"}]
["",null,null,null,null,null,null,null,null,{"$error":"#DIV/0!"}]
["",null,null,null,null,null,null,null,null,{"$error":"#DIV/0!"}]
["",null,null,null,null,null,null,null,null,{"$error":"#DIV/0!"}]
["",null,null,null,null,null,null,null,null,{"$error":"#DIV/0!"}]
["",null,null,null,null,null,null,null,null,{"$error":"#DIV/0!"}]
["",null,null,null,null,null,null,null,null,{"$error":"#DIV/0!"}]
["",null,null,null,null,null,null,null,null,{"$error":"#DIV/0!"}]
["",null,null,null,null,null,null,null,null,{"$error":"#DIV/0!"}]
["",null,null,null,null,null,null,null,null,{"$f":"AVERAGE(G326:I326)","v":{"$error":"#DIV/0!"}}]
[{"$f":"IF(OR(C327=\"\",A326=\"\"),\"\",A326+1)","v":""},null,null,null,null,null,null,null,null,{"$error":"#DIV/0!"}]
["",null,null,null,null,null,null,null,null,{"$error":"#DIV/0!"}]
["",null,null,null,null,null,null,null,null,{"$error":"#DIV/0!"}]
["",null,null,null,null,null,null,null,null,{"$error":"#DIV/0!"}]
["",null,null,null,null,null,null,null,null,{"$error":"#DIV/0!"}]
["",null,null,null,null,null,null,null,null,{"$error":"#DIV/0!"}]
["",null,null,null,null,null,null,null,null,{"$error":"#DIV/0!"}]
["",null,null,null,null,null,null,null,null,{"$error":"#DIV/0!"}]
["",null,null,null,null,null,null,null,null,{"$error":"#DIV/0!"}]
["",null,null,null,null,null,null,null,null,{"$error":"#DIV/0!"}]
["",null,null,null,null,null,null,null,null,{"$error":"#DIV/0!"}]
["",null,null,null,null,null,null,null,null,{"$error":"#DIV/0!"}]
["",null,null,null,null,null,null,null,null,{"$error":"#DIV/0!"}]
["",null,null,null,null,null,null,null,null,{"$error":"#DIV/0!"}]
["",null,null,null,null,null,null,null,null,{"$error":"#DIV/0!"}]
["",null,null,null,null,null,null,null,null,{"$error":"#DIV/0!"}]
["",null,null,null,null,null,null,null,null,{"$error":"#DIV/0!"}]
["",null,null,null,null,null,null,null,null,{"$error":"#DIV/0!"}]
["",null,null,null,null,null,null,null,null,{"$error":"#DIV/0!"}]
["",null,null,null,null,null,null,null,null,{"$error":"#DIV/0!"}]
["",null,null,null,null,null,null,null,null,{"$error":"#DIV/0!"}]
["",null,null,null,null,null,null,null,null,{"$error":"#DIV/0!"}]
["",null,null,null,null,null,null,null,null,{"$error":"#DIV/0!"}]
["",null,null,null,null,null,null,null,null,{"$error":"#DIV/0!"}]
["",null,null,null,null,null,null,null,null,{"$error":"#DIV/0!"}]
["",null,null,null,null,null,null,null,null,{"$error":"#DIV/0!"}]
["",null,null,null,null,null,null,null,null,{"$error":"#DIV/0!"}]
["",null,null,null,null,null,null,null,null,{"$error":"#DIV/0!"}]
["",null,null,null,null,null,null,null,null,{"$error":"#DIV/0!"}]
["",null,null,null,null,null,null,null,null,{"$error":"#DIV/0!"}]
["",null,null,null,null,null,null,null,null,{"$error":"#DIV/0!"}]
["",null,null,null,null,null,null,null,null,{"$error":"#DIV/0!"}]
["",null,null,null,null,null,null,null,null,{"$error":"#DIV/0!"}]
["",null,null,null,null,null,null,null,null,{"$error":"#DIV/0!"}]
["",null,null,null,null,null,null,null,null,{"$error":"#DIV/0!"}]
["",null,null,null,null,null,null,null,null,{"$error":"#DIV/0!"}]
["",null,null,null,null,null,null,null,null,{"$error":"#DIV/0!"}]
["",null,null,null,null,null,null,null,null,{"$error":"#DIV/0!"}]
["",null,null,null,null,null,null,null,null,{"$error":"#DIV/0!"}]
["",null,null,null,null,null,null,null,null,{"$error":"#DIV/0!"}]
["",null,null,null,null,null,null,null,null,{"$error":"#DIV/0!"}]
["",null,null,null,null,null,null,null,null,{"$error":"#DIV/0!"}]
["",null,null,null,null,null,null,null,null,{"$error":"#DIV/0!"}]
["",null,null,null,null,null,null,null,null,{"$error":"#DIV/0!"}]
["",null,null,null,null,null,null,null,null,{"$error":"#DIV/0!"}]
["",null,null,null,null,null,null,null,null,{"$error":"#DIV/0!"}]
["",null,null,null,null,null,null,null,null,{"$error":"#DIV/0!"}]
["",null,null,null,null,null,null,null,null,{"$error":"#DIV/0!"}]
["",null,null,null,null,null,null,null,null,{"$error":"#DIV/0!"}]
["",null,null,null,null,null,null,null,null,{"$error":"#DIV/0!"}]
["",null,null,null,null,null,null,null,null,{"$error":"#DIV/0!"}]
["",null,null,null,null,null,null,null,null,{"$error":"#DIV/0!"}]
["",null,null,null,null,null,null,null,null,{"$error":"#DIV/0!"}]
["",null,null,null,null,null,null,null,null,{"$error":"#DIV/0!"}]
["",null,null,null,null,null,null,null,null,{"$error":"#DIV/0!"}]
["",null,null,null,null,null,null,null,null,{"$error":"#DIV/0!"}]
["",null,null,null,null,null,null,null,null,{"$error":"#DIV/0!"}]
["",null,null,null,null,null,null,null,null,{"$error":"#DIV/0!"}]
["",null,null,null,null,null,null,null,null,{"$error":"#DIV/0!"}]
["",null,null,null,null,null,null,null,null,{"$error":"#DIV/0!"}]
["",null,null,null,null,null,null,null,null,{"$error":"#DIV/0!"}]
["",null,null,null,null,null,null,null,null,{"$error":"#DIV/0!"}]
["",null,null,null,null,null,null,null,null,{"$error":"#DIV/0!"}]
["",null,null,null,null,null,null,null,null,{"$f":"AVERAGE(G390:I390)","v":{"$error":"#DIV/0!"}}]
[{"$f":"IF(OR(C391=\"\",A390=\"\"),\"\",A390+1)","v":""},null,null,null,null,null,null,null,null,{"$error":"#DIV/0!"}]
["",null,null,null,null,null,null,null,null,{"$error":"#DIV/0!"}]
["",null,null,null,null,null,null,null,null,{"$error":"#DIV/0!"}]
["",null,null,null,null,null,null,null,null,{"$error":"#DIV/0!"}]
["",null,null,null,null,null,null,null,null,{"$error":"#DIV/0!"}]
["",null,null,null,null,null,null,null,null,{"$error":"#DIV/0!"}]
["",null,null,null,null,null,null,null,null,{"$error":"#DIV/0!"}]
["",null,null,null,null,null,null,null,null,{"$error":"#DIV/0!"}]
["",null,null,null,null,null,null,null,null,{"$error":"#DIV/0!"}]
["",null,null,null,null,null,null,null,null,{"$error":"#DIV/0!"}]
["",null,null,null,null,null,null,null,null,{"$error":"#DIV/0!"}]
["",null,null,null,null,null,null,null,null,{"$error":"#DIV/0!"}]
["",null,null,null,null,null,null,null,null,{"$error":"#DIV/0!"}]
["",null,null,null,null,null,null,null,null,{"$error":"#DIV/0!"}]
["",null,null,null,null,null,null,null,null,{"$error":"#DIV/0!"}]
["",null,null,null,null,null,null,null,null,{"$error":"#DIV/0!"}]
["",null,null,null,null,null,null,null,null,{"$error":"#DIV/0!"}]
["",null,null,null,null,null,null,null,null,{"$error":"#DIV/0!"}]
["",null,null,null,null,null,null,null,null,{"$error":"#DIV/0!"}]
["",null,null,null,null,null,null,null,null,{"$error":"#DIV/0!"}]
["",null,null,null,null,null,null,null,null,{"$error":"#DIV/0!"}]
["",null,null,null,null,null,null,null,null,{"$error":"#DIV/0!"}]
["",null,null,null,null,null,null,null,null,{"$error":"#DIV/0!"}]
["",null,null,null,null,null,null,null,null,{"$error":"#DIV/0!"}]
["",null,null,null,null,null,null,null,null,{"$error":"#DIV/0!"}]
["",null,null,null,null,null,null,null,null,{"$error":"#DIV/0!"}]
["",null,null,null,null,null,null,null,null,{"$error":"#DIV/0!"}]
["",null,null,null,null,null,null,null,null,{"$error":"#DIV/0!"}]
["",null,null,null,null,null,null,null,null,{"$error":"#DIV/0!"}]
["",null,null,null,null,null,null,null,null,{"$error":"#DIV/0!"}]
["",null,null,null,null,null,null,null,null,{"$error":"#DIV/0!"}]
["",null,null,null,null,null,null,null,null,{"$error":"#DIV/0!"}]
["",null,null,null,null,null,null,null,null,{"$error":"#DIV/0!"}]
["",null,null,null,null,null,null,null,null,{"$error":"#DIV/0!"}]
["",null,null,null,null,null,null,null,null,{"$error":"#DIV/0!"}]
["",null,null,null,null,null,null,null,null,{"$error":"#DIV/0!"}]
["",null,null,null,null,null,null,null,null,{"$error":"#DIV/0!"}]
["",null,null,null,null,null,null,null,null,{"$error":"#DIV/0!"}]
["",null,null,null,null,null,null,null,null,{"$error":"#DIV/0!"}]
["",null,null,null,null,null,null,null,null,{"$error":"#DIV/0!"}]
["",null,null,null,null,null,null,null,null,{"$error":"#DIV/0!"}]
["",null,null,null,null,null,null,null,null,{"$error":"#DIV/0!"}]
["",null,null,null,null,null,null,null,null,{"$error":"#DIV/0!"}]
["",null,null,null,null,null,null,null,null,{"$error":"#DIV/0!"}]
["",null,null,null,null,null,null,null,null,{"$error":"#DIV/0!"}]
["",null,null,null,null,null,null,null,null,{"$error":"#DIV/0!"}]
["",null,null,null,null,null,null,null,null,{"$error":"#DIV/0!"}]
["",null,null,null,null,null,null,null,null,{"$error":"#DIV/0!"}]
["",null,null,null,null,null,null,null,null,{"$error":"#DIV/0!"}]
["",null,null,null,null,null,null,null,null,{"$error":"#DIV/0!"}]
["",null,null,null,null,null,null,null,null,{"$error":"#DIV/0!"}]
["",null,null,null,null,null,null,null,null,{"$error":"#DIV/0!"}]
["",null,null,null,null,null,null,null,null,{"$error":"#DIV/0!"}]
["",null,null,null,null,null,null,null,null,{"$error":"#DIV/0!"}]
["",null,null,null,null,null,null,null,null,{"$error":"#DIV/0!"}]
["",null,null,null,null,null,null,null,null,{"$error":"#DIV/0!"}]
["",null,null,null,null,null,null,null,null,{"$error":"#DIV/0!"}]
["",null,null,null,null,null,null,null,null,{"$error":"#DIV/0!"}]
["",null,null,null,null,null,null,null,null,{"$error":"#DIV/0!"}]
["",null,null,null,null,null,null,null,null,{"$error":"#DIV/0!"}]
["",null,null,null,null,null,null,null,null,{"$error":"#DIV/0!"}]
["",null,null,null,null,null,null,null,null,{"$error":"#DIV/0!"}]
["",null,null,null,null,null,null,null,null,{"$error":"#DIV/0!"}]
["",null,null,null,null,null,null,null,null,{"$f":"AVERAGE(G454:I454)","v":{"$error":"#DIV/0!"}}]
[{"$f":"IF(OR(C455=\"\",A454=\"\"),\"\",A454+1)","v":""},null,null,null,null,null,null,null,null,{"$error":"#DIV/0!"}]
["",null,null,null,null,null,null,null,null,{"$error":"#DIV/0!"}]
["",null,null,null,null,null,null,null,null,{"$error":"#DIV/0!"}]
["",null,null,null,null,null,null,null,null,{"$error":"#DIV/0!"}]
["",null,null,null,null,null,null,null,null,{"$error":"#DIV/0!"}]
["",null,null,null,null,null,null,null,null,{"$error":"#DIV/0!"}]
["",null,null,null,null,null,null,null,null,{"$error":"#DIV/0!"}]
["",null,null,null,null,null,null,null,null,{"$error":"#DIV/0!"}]
["",null,null,null,null,null,null,null,null,{"$error":"#DIV/0!"}]
["",null,null,null,null,null,null,null,null,{"$error":"#DIV/0!"}]
["",null,null,null,null,null,null,null,null,{"$error":"#DIV/0!"}]
["",null,null,null,null,null,null,null,null,{"$error":"#DIV/0!"}]
["",null,null,null,null,null,null,null,null,{"$error":"#DIV/0!"}]
["",null,null,null,null,null,null,null,null,{"$error":"#DIV/0!"}]
["",null,null,null,null,null,null,null,null,{"$error":"#DIV/0!"}]
["",null,null,null,null,null,null,null,null,{"$error":"#DIV/0!"}]
["",null,null,null,null,null,null,null,null,{"$error":"#DIV/0!"}]
["",null,null,null,null,null,null,null,null,{"$error":"#DIV/0!"}]
["",null,null,null,null,null,null,null,null,{"$error":"#DIV/0!"}]
["",null,null,null,null,null,null,null,null,{"$error":"#DIV/0!"}]
["",null,null,null,null,null,null,null,null,{"$error":"#DIV/0!"}]
["",null,null,null,null,null,null,null,null,{"$error":"#DIV/0!"}]
["",null,null,null,null,null,null,null,null,{"$error":"#DIV/0!"}]
["",null,null,null,null,null,null,null,null,{"$error":"#DIV/0!"}]
["",null,null,null,null,null,null,null,null,{"$error":"#DIV/0!"}]
["",null,null,null,null,null,null,null,null,{"$error":"#DIV/0!"}]
["",null,null,null,null,null,null,null,null,{"$error":"#DIV/0!"}]
["",null,null,null,null,null,null,null,null,{"$error":"#DIV/0!"}]
["",null,null,null,null,null,null,null,null,{"$error":"#DIV/0!"}]
["",null,null,null,null,null,null,null,null,{"$error":"#DIV/0!"}]
["",null,null,null,null,null,null,null,null,{"$error":"#DIV/0!"}]
["",null,null,null,null,null,null,null,null,{"$error":"#DIV/0!"}]
["",null,null,null,null,null,null,null,null,{"$error":"#DIV/0!"}]
["",null,null,null,null,null,null,null,null,{"$error":"#DIV/0!"}]
["",null,null,null,null,null,null,null,null,{"$error":"#DIV/0!"}]
["",null,null,null,null,null,null,null,null,{"$error":"#DIV/0!"}]
["",null,null,null,null,null,null,null,null,{"$error":"#DIV/0!"}]
["",null,null,null,null,null,null,null,null,{"$error":"#DIV/0!"}]
["",null,null,null,null,null,null,null,null,{"$error":"#DIV/0!"}]
["",null,null,null,null,null,null,null,null,{"$error":"#DIV/0!"}]
["",null,null,null,null,null,null,null,null,{"$error":"#DIV/0!"}]
["",null,null,null,null,null,null,null,null,{"$error":"#DIV/0!"}]
["",null,null,null,null,null,null,null,null,{"$error":"#DIV/0!"}]
["",null,null,null,null,null,null,null,null,{"$error":"#DIV/0!"}]
["",null,null,null,null,null,null,null,null,{"$error":"#DIV/0!"}]
["",null,null,null,null,null,null,null,null,{"$error":"#DIV/0!"}]
["",null,null,null,null,null,null,null,null,{"$error":"#DIV/0!"}]
["",null,null,null,null,null,null,null,null,{"$error":"#DIV/0!"}]
["",null,null,null,null,null,null,null,null,{"$error":"#DIV/0!"}]
["",null,null,null,null,null,null,null,null,{"$error":"#DIV/0!"}]
["",null,null,null,null,null,null,null,null,{"$error":"#DIV/0!"}]
["",null,null,null,null,null,null,null,null,{"$error":"#DIV/0!"}]
["",null,null,null,null,null,null,null,null,{"$error":"#DIV/0!"}]
["",null,null,null,null,null,null,null,null,{"$error":"#DIV/0!"}]
["",null,null,null,null,null,null,null,null,{"$error":"#DIV/0!"}]

{"sheet":"GEOGRAPHIE","index":4,"n_rows":509,"n_cols":10,"rows_kept":509,"cut":false,"hidden":false,"merged":[]}
[null,null,null,"Moyennes en Géographie"]
[]
[]
[null,"Classes","noms élèves","Sexes","Ages","Statut","Moyenne 1er Trim","Moyenne 2e Trim","Moyenne 3e Trim","Moyenne annuelle"]
[{"$f":"IF(C5<>\"\",1,\"\")","v":""},null,null,null,null,null,null,null,null,{"$f":"AVERAGE(G5:I5)","v":{"$error":"#DIV/0!"}}]
[{"$f":"IF(OR(C6=\"\",A5=\"\"),\"\",A5+1)","v":""},null,null,null,null,null,null,null,null,{"$f":"AVERAGE(G6:I6)","v":{"$error":"#DIV/0!"}}]
[{"$f":"IF(OR(C7=\"\",A6=\"\"),\"\",A6+1)","v":""},null,null,null,null,null,null,null,null,{"$error":"#DIV/0!"}]
["",null,null,null,null,null,null,null,null,{"$error":"#DIV/0!"}]
["",null,null,null,null,null,null,null,null,{"$error":"#DIV/0!"}]
["",null,null,null,null,null,null,null,null,{"$error":"#DIV/0!"}]
["",null,null,null,null,null,null,null,null,{"$error":"#DIV/0!"}]
["",null,null,null,null,null,null,null,null,{"$error":"#DIV/0!"}]
["",null,null,null,null,null,null,null,null,{"$error":"#DIV/0!"}]
["",null,null,null,null,null,null,null,null,{"$error":"#DIV/0!"}]
["",null,null,null,null,null,null,null,null,{"$error":"#DIV/0!"}]
["",null,null,null,null,null,null,null,null,{"$error":"#DIV/0!"}]
["",null,null,null,null,null,null,null,null,{"$error":"#DIV/0!"}]
["",null,null,null,null,null,null,null,null,{"$error":"#DIV/0!"}]
["",null,null,null,null,null,null,null,null,{"$error":"#DIV/0!"}]
["",null,null,null,null,null,null,null,null,{"$error":"#DIV/0!"}]
["",null,null,null,null,null,null,null,null,{"$error":"#DIV/0!"}]
["",null,null,null,null,null,null,null,null,{"$error":"#DIV/0!"}]
["",null,null,null,null,null,null,null,null,{"$error":"#DIV/0!"}]
["",null,null,null,null,null,null,null,null,{"$error":"#DIV/0!"}]
["",null,null,null,null,null,null,null,null,{"$error":"#DIV/0!"}]
["",null,null,null,null,null,null,null,null,{"$error":"#DIV/0!"}]
["",null,null,null,null,null,null,null,null,{"$error":"#DIV/0!"}]
["",null,null,null,null,null,null,null,null,{"$error":"#DIV/0!"}]
["",null,null,null,null,null,null,null,null,{"$error":"#DIV/0!"}]
["",null,null,null,null,null,null,null,null,{"$error":"#DIV/0!"}]
["",null,null,null,null,null,null,null,null,{"$error":"#DIV/0!"}]
["",null,null,null,null,null,null,null,null,{"$error":"#DIV/0!"}]
["",null,null,null,null,null,null,null,null,{"$error":"#DIV/0!"}]
["",null,null,null,null,null,null,null,null,{"$error":"#DIV/0!"}]
["",null,null,null,null,null,null,null,null,{"$error":"#DIV/0!"}]
["",null,null,null,null,null,null,null,null,{"$error":"#DIV/0!"}]
["",null,null,null,null,null,null,null,null,{"$error":"#DIV/0!"}]
["",null,null,null,null,null,null,null,null,{"$error":"#DIV/0!"}]
["",null,null,null,null,null,null,null,null,{"$error":"#DIV/0!"}]
["",null,null,null,null,null,null,null,null,{"$error":"#DIV/0!"}]
["",null,null,null,null,null,null,null,null,{"$error":"#DIV/0!"}]
["",null,null,null,null,null,null,null,null,{"$error":"#DIV/0!"}]
["",null,null,null,null,null,null,null,null,{"$error":"#DIV/0!"}]
["",null,null,null,null,null,null,null,null,{"$error":"#DIV/0!"}]
["",null,null,null,null,null,null,null,null,{"$error":"#DIV/0!"}]
["",null,null,null,null,null,null,null,null,{"$error":"#DIV/0!"}]
["",null,null,null,null,null,null,null,null,{"$error":"#DIV/0!"}]
["",null,null,null,null,null,null,null,null,{"$error":"#DIV/0!"}]
["",null,null,null,null,null,null,null,null,{"$error":"#DIV/0!"}]
["",null,null,null,null,null,null,null,null,{"$error":"#DIV/0!"}]
["",null,null,null,null,null,null,null,null,{"$error":"#DIV/0!"}]
["",null,null,null,null,null,null,null,null,{"$error":"#DIV/0!"}]
["",null,null,null,null,null,null,null,null,{"$error":"#DIV/0!"}]
["",null,null,null,null,null,null,null,null,{"$error":"#DIV/0!"}]
["",null,null,null,null,null,null,null,null,{"$error":"#DIV/0!"}]
["",null,null,null,null,null,null,null,null,{"$error":"#DIV/0!"}]
["",null,null,null,null,null,null,null,null,{"$error":"#DIV/0!"}]
["",null,null,null,null,null,null,null,null,{"$error":"#DIV/0!"}]
["",null,null,null,null,null,null,null,null,{"$error":"#DIV/0!"}]
["",null,null,null,null,null,null,null,null,{"$error":"#DIV/0!"}]
["",null,null,null,null,null,null,null,null,{"$error":"#DIV/0!"}]
["",null,null,null,null,null,null,null,null,{"$error":"#DIV/0!"}]
["",null,null,null,null,null,null,null,null,{"$error":"#DIV/0!"}]
["",null,null,null,null,null,null,null,null,{"$error":"#DIV/0!"}]
["",null,null,null,null,null,null,null,null,{"$error":"#DIV/0!"}]
["",null,null,null,null,null,null,null,null,{"$error":"#DIV/0!"}]
["",null,null,null,null,null,null,null,null,{"$error":"#DIV/0!"}]
["",null,null,null,null,null,null,null,null,{"$error":"#DIV/0!"}]
["",null,null,null,null,null,null,null,null,{"$error":"#DIV/0!"}]
["",null,null,null,null,null,null,null,null,{"$f":"AVERAGE(G70:I70)","v":{"$error":"#DIV/0!"}}]
[{"$f":"IF(OR(C71=\"\",A70=\"\"),\"\",A70+1)","v":""},null,null,null,null,null,null,null,null,{"$error":"#DIV/0!"}]
["",null,null,null,null,null,null,null,null,{"$error":"#DIV/0!"}]
["",null,null,null,null,null,null,null,null,{"$error":"#DIV/0!"}]
["",null,null,null,null,null,null,null,null,{"$error":"#DIV/0!"}]
["",null,null,null,null,null,null,null,null,{"$error":"#DIV/0!"}]
["",null,null,null,null,null,null,null,null,{"$error":"#DIV/0!"}]
["",null,null,null,null,null,null,null,null,{"$error":"#DIV/0!"}]
["",null,null,null,null,null,null,null,null,{"$error":"#DIV/0!"}]
["",null,null,null,null,null,null,null,null,{"$error":"#DIV/0!"}]
["",null,null,null,null,null,null,null,null,{"$error":"#DIV/0!"}]
["",null,null,null,null,null,null,null,null,{"$error":"#DIV/0!"}]
["",null,null,null,null,null,null,null,null,{"$error":"#DIV/0!"}]
["",null,null,null,null,null,null,null,null,{"$error":"#DIV/0!"}]
["",null,null,null,null,null,null,null,null,{"$error":"#DIV/0!"}]
["",null,null,null,null,null,null,null,null,{"$error":"#DIV/0!"}]
["",null,null,null,null,null,null,null,null,{"$error":"#DIV/0!"}]
["",null,null,null,null,null,null,null,null,{"$error":"#DIV/0!"}]
["",null,null,null,null,null,null,null,null,{"$error":"#DIV/0!"}]
["",null,null,null,null,null,null,null,null,{"$error":"#DIV/0!"}]
["",null,null,null,null,null,null,null,null,{"$error":"#DIV/0!"}]
["",null,null,null,null,null,null,null,null,{"$error":"#DIV/0!"}]
["",null,null,null,null,null,null,null,null,{"$error":"#DIV/0!"}]
["",null,null,null,null,null,null,null,null,{"$error":"#DIV/0!"}]
["",null,null,null,null,null,null,null,null,{"$error":"#DIV/0!"}]
["",null,null,null,null,null,null,null,null,{"$error":"#DIV/0!"}]
["",null,null,null,null,null,null,null,null,{"$error":"#DIV/0!"}]
["",null,null,null,null,null,null,null,null,{"$error":"#DIV/0!"}]
["",null,null,null,null,null,null,null,null,{"$error":"#DIV/0!"}]
["",null,null,null,null,null,null,null,null,{"$error":"#DIV/0!"}]
["",null,null,null,null,null,null,null,null,{"$error":"#DIV/0!"}]
["",null,null,null,null,null,null,null,null,{"$error":"#DIV/0!"}]
["",null,null,null,null,null,null,null,null,{"$error":"#DIV/0!"}]
["",null,null,null,null,null,null,null,null,{"$error":"#DIV/0!"}]
["",null,null,null,null,null,null,null,null,{"$error":"#DIV/0!"}]
["",null,null,null,null,null,null,null,null,{"$error":"#DIV/0!"}]
["",null,null,null,null,null,null,null,null,{"$error":"#DIV/0!"}]
["",null,null,null,null,null,null,null,null,{"$error":"#DIV/0!"}]
["",null,null,null,null,null,null,null,null,{"$error":"#DIV/0!"}]
["",null,null,null,null,null,null,null,null,{"$error":"#DIV/0!"}]
["",null,null,null,null,null,null,null,null,{"$error":"#DIV/0!"}]
["",null,null,null,null,null,null,null,null,{"$error":"#DIV/0!"}]
["",null,null,null,null,null,null,null,null,{"$error":"#DIV/0!"}]
["",null,null,null,null,null,null,null,null,{"$error":"#DIV/0!"}]
["",null,null,null,null,null,null,null,null,{"$error":"#DIV/0!"}]
["",null,null,null,null,null,null,null,null,{"$error":"#DIV/0!"}]
["",null,null,null,null,null,null,null,null,{"$error":"#DIV/0!"}]
["",null,null,null,null,null,null,null,null,{"$error":"#DIV/0!"}]
["",null,null,null,null,null,null,null,null,{"$error":"#DIV/0!"}]
["",null,null,null,null,null,null,null,null,{"$error":"#DIV/0!"}]
["",null,null,null,null,null,null,null,null,{"$error":"#DIV/0!"}]
["",null,null,null,null,null,null,null,null,{"$error":"#DIV/0!"}]
["",null,null,null,null,null,null,null,null,{"$error":"#DIV/0!"}]
["",null,null,null,null,null,null,null,null,{"$error":"#DIV/0!"}]
["",null,null,null,null,null,null,null,null,{"$error":"#DIV/0!"}]
["",null,null,null,null,null,null,null,null,{"$error":"#DIV/0!"}]
["",null,null,null,null,null,null,null,null,{"$error":"#DIV/0!"}]
["",null,null,null,null,null,null,null,null,{"$error":"#DIV/0!"}]
["",null,null,null,null,null,null,null,null,{"$error":"#DIV/0!"}]
["",null,null,null,null,null,null,null,null,{"$error":"#DIV/0!"}]
["",null,null,null,null,null,null,null,null,{"$error":"#DIV/0!"}]
["",null,null,null,null,null,null,null,null,{"$error":"#DIV/0!"}]
["",null,null,null,null,null,null,null,null,{"$error":"#DIV/0!"}]
["",null,null,null,null,null,null,null,null,{"$error":"#DIV/0!"}]
["",null,null,null,null,null,null,null,null,{"$f":"AVERAGE(G134:I134)","v":{"$error":"#DIV/0!"}}]
[{"$f":"IF(OR(C135=\"\",A134=\"\"),\"\",A134+1)","v":""},null,null,null,null,null,null,null,null,{"$error":"#DIV/0!"}]
["",null,null,null,null,null,null,null,null,{"$error":"#DIV/0!"}]
["",null,null,null,null,null,null,null,null,{"$error":"#DIV/0!"}]
["",null,null,null,null,null,null,null,null,{"$error":"#DIV/0!"}]
["",null,null,null,null,null,null,null,null,{"$error":"#DIV/0!"}]
["",null,null,null,null,null,null,null,null,{"$error":"#DIV/0!"}]
["",null,null,null,null,null,null,null,null,{"$error":"#DIV/0!"}]
["",null,null,null,null,null,null,null,null,{"$error":"#DIV/0!"}]
["",null,null,null,null,null,null,null,null,{"$error":"#DIV/0!"}]
["",null,null,null,null,null,null,null,null,{"$error":"#DIV/0!"}]
["",null,null,null,null,null,null,null,null,{"$error":"#DIV/0!"}]
["",null,null,null,null,null,null,null,null,{"$error":"#DIV/0!"}]
["",null,null,null,null,null,null,null,null,{"$error":"#DIV/0!"}]
["",null,null,null,null,null,null,null,null,{"$error":"#DIV/0!"}]
["",null,null,null,null,null,null,null,null,{"$error":"#DIV/0!"}]
["",null,null,null,null,null,null,null,null,{"$error":"#DIV/0!"}]
["",null,null,null,null,null,null,null,null,{"$error":"#DIV/0!"}]
["",null,null,null,null,null,null,null,null,{"$error":"#DIV/0!"}]
["",null,null,null,null,null,null,null,null,{"$error":"#DIV/0!"}]
["",null,null,null,null,null,null,null,null,{"$error":"#DIV/0!"}]
["",null,null,null,null,null,null,null,null,{"$error":"#DIV/0!"}]
["",null,null,null,null,null,null,null,null,{"$error":"#DIV/0!"}]
["",null,null,null,null,null,null,null,null,{"$error":"#DIV/0!"}]
["",null,null,null,null,null,null,null,null,{"$error":"#DIV/0!"}]
["",null,null,null,null,null,null,null,null,{"$error":"#DIV/0!"}]
["",null,null,null,null,null,null,null,null,{"$error":"#DIV/0!"}]
["",null,null,null,null,null,null,null,null,{"$error":"#DIV/0!"}]
["",null,null,null,null,null,null,null,null,{"$error":"#DIV/0!"}]
["",null,null,null,null,null,null,null,null,{"$error":"#DIV/0!"}]
["",null,null,null,null,null,null,null,null,{"$error":"#DIV/0!"}]
["",null,null,null,null,null,null,null,null,{"$error":"#DIV/0!"}]
["",null,null,null,null,null,null,null,null,{"$error":"#DIV/0!"}]
["",null,null,null,null,null,null,null,null,{"$error":"#DIV/0!"}]
["",null,null,null,null,null,null,null,null,{"$error":"#DIV/0!"}]
["",null,null,null,null,null,null,null,null,{"$error":"#DIV/0!"}]
["",null,null,null,null,null,null,null,null,{"$error":"#DIV/0!"}]
["",null,null,null,null,null,null,null,null,{"$error":"#DIV/0!"}]
["",null,null,null,null,null,null,null,null,{"$error":"#DIV/0!"}]
["",null,null,null,null,null,null,null,null,{"$error":"#DIV/0!"}]
["",null,null,null,null,null,null,null,null,{"$error":"#DIV/0!"}]
["",null,null,null,null,null,null,null,null,{"$error":"#DIV/0!"}]
["",null,null,null,null,null,null,null,null,{"$error":"#DIV/0!"}]
["",null,null,null,null,null,null,null,null,{"$error":"#DIV/0!"}]
["",null,null,null,null,null,null,null,null,{"$error":"#DIV/0!"}]
["",null,null,null,null,null,null,null,null,{"$error":"#DIV/0!"}]
["",null,null,null,null,null,null,null,null,{"$error":"#DIV/0!"}]
["",null,null,null,null,null,null,null,null,{"$error":"#DIV/0!"}]
["",null,null,null,null,null,null,null,null,{"$error":"#DIV/0!"}]
["",null,null,null,null,null,null,null,null,{"$error":"#DIV/0!"}]
["",null,null,null,null,null,null,null,null,{"$error":"#DIV/0!"}]
["",null,null,null,null,null,null,null,null,{"$error":"#DIV/0!"}]
["",null,null,null,null,null,null,null,null,{"$error":"#DIV/0!"}]
["",null,null,null,null,null,null,null,null,{"$error":"#DIV/0!"}]
["",null,null,null,null,null,null,null,null,{"$error":"#DIV/0!"}]
["",null,null,null,null,null,null,null,null,{"$error":"#DIV/0!"}]
["",null,null,null,null,null,null,null,null,{"$error":"#DIV/0!"}]
["",null,null,null,null,null,null,null,null,{"$error":"#DIV/0!"}]
["",null,null,null,null,null,null,null,null,{"$error":"#DIV/0!"}]
["",null,null,null,null,null,null,null,null,{"$error":"#DIV/0!"}]
["",null,null,null,null,null,null,null,null,{"$error":"#DIV/0!"}]
["",null,null,null,null,null,null,null,null,{"$error":"#DIV/0!"}]
["",null,null,null,null,null,null,null,null,{"$error":"#DIV/0!"}]
["",null,null,null,null,null,null,null,null,{"$error":"#DIV/0!"}]
["",null,null,null,null,null,null,null,null,{"$f":"AVERAGE(G198:I198)","v":{"$error":"#DIV/0!"}}]
[{"$f":"IF(OR(C199=\"\",A198=\"\"),\"\",A198+1)","v":""},null,null,null,null,null,null,null,null,{"$error":"#DIV/0!"}]
["",null,null,null,null,null,null,null,null,{"$error":"#DIV/0!"}]
["",null,null,null,null,null,null,null,null,{"$error":"#DIV/0!"}]
["",null,null,null,null,null,null,null,null,{"$error":"#DIV/0!"}]
["",null,null,null,null,null,null,null,null,{"$error":"#DIV/0!"}]
["",null,null,null,null,null,null,null,null,{"$error":"#DIV/0!"}]
["",null,null,null,null,null,null,null,null,{"$error":"#DIV/0!"}]
["",null,null,null,null,null,null,null,null,{"$error":"#DIV/0!"}]
["",null,null,null,null,null,null,null,null,{"$error":"#DIV/0!"}]
["",null,null,null,null,null,null,null,null,{"$error":"#DIV/0!"}]
["",null,null,null,null,null,null,null,null,{"$error":"#DIV/0!"}]
["",null,null,null,null,null,null,null,null,{"$error":"#DIV/0!"}]
["",null,null,null,null,null,null,null,null,{"$error":"#DIV/0!"}]
["",null,null,null,null,null,null,null,null,{"$error":"#DIV/0!"}]
["",null,null,null,null,null,null,null,null,{"$error":"#DIV/0!"}]
["",null,null,null,null,null,null,null,null,{"$error":"#DIV/0!"}]
["",null,null,null,null,null,null,null,null,{"$error":"#DIV/0!"}]
["",null,null,null,null,null,null,null,null,{"$error":"#DIV/0!"}]
["",null,null,null,null,null,null,null,null,{"$error":"#DIV/0!"}]
["",null,null,null,null,null,null,null,null,{"$error":"#DIV/0!"}]
["",null,null,null,null,null,null,null,null,{"$error":"#DIV/0!"}]
["",null,null,null,null,null,null,null,null,{"$error":"#DIV/0!"}]
["",null,null,null,null,null,null,null,null,{"$error":"#DIV/0!"}]
["",null,null,null,null,null,null,null,null,{"$error":"#DIV/0!"}]
["",null,null,null,null,null,null,null,null,{"$error":"#DIV/0!"}]
["",null,null,null,null,null,null,null,null,{"$error":"#DIV/0!"}]
["",null,null,null,null,null,null,null,null,{"$error":"#DIV/0!"}]
["",null,null,null,null,null,null,null,null,{"$error":"#DIV/0!"}]
["",null,null,null,null,null,null,null,null,{"$error":"#DIV/0!"}]
["",null,null,null,null,null,null,null,null,{"$error":"#DIV/0!"}]
["",null,null,null,null,null,null,null,null,{"$error":"#DIV/0!"}]
["",null,null,null,null,null,null,null,null,{"$error":"#DIV/0!"}]
["",null,null,null,null,null,null,null,null,{"$error":"#DIV/0!"}]
["",null,null,null,null,null,null,null,null,{"$error":"#DIV/0!"}]
["",null,null,null,null,null,null,null,null,{"$error":"#DIV/0!"}]
["",null,null,null,null,null,null,null,null,{"$error":"#DIV/0!"}]
["",null,null,null,null,null,null,null,null,{"$error":"#DIV/0!"}]
["",null,null,null,null,null,null,null,null,{"$error":"#DIV/0!"}]
["",null,null,null,null,null,null,null,null,{"$error":"#DIV/0!"}]
["",null,null,null,null,null,null,null,null,{"$error":"#DIV/0!"}]
["",null,null,null,null,null,null,null,null,{"$error":"#DIV/0!"}]
["",null,null,null,null,null,null,null,null,{"$error":"#DIV/0!"}]
["",null,null,null,null,null,null,null,null,{"$error":"#DIV/0!"}]
["",null,null,null,null,null,null,null,null,{"$error":"#DIV/0!"}]
["",null,null,null,null,null,null,null,null,{"$error":"#DIV/0!"}]
["",null,null,null,null,null,null,null,null,{"$error":"#DIV/0!"}]
["",null,null,null,null,null,null,null,null,{"$error":"#DIV/0!"}]
["",null,null,null,null,null,null,null,null,{"$error":"#DIV/0!"}]
["",null,null,null,null,null,null,null,null,{"$error":"#DIV/0!"}]
["",null,null,null,null,null,null,null,null,{"$error":"#DIV/0!"}]
["",null,null,null,null,null,null,null,null,{"$error":"#DIV/0!"}]
["",null,null,null,null,null,null,null,null,{"$error":"#DIV/0!"}]
["",null,null,null,null,null,null,null,null,{"$error":"#DIV/0!"}]
["",null,null,null,null,null,null,null,null,{"$error":"#DIV/0!"}]
["",null,null,null,null,null,null,null,null,{"$error":"#DIV/0!"}]
["",null,null,null,null,null,null,null,null,{"$error":"#DIV/0!"}]
["",null,null,null,null,null,null,null,null,{"$error":"#DIV/0!"}]
["",null,null,null,null,null,null,null,null,{"$error":"#DIV/0!"}]
["",null,null,null,null,null,null,null,null,{"$error":"#DIV/0!"}]
["",null,null,null,null,null,null,null,null,{"$error":"#DIV/0!"}]
["",null,null,null,null,null,null,null,null,{"$error":"#DIV/0!"}]
["",null,null,null,null,null,null,null,null,{"$error":"#DIV/0!"}]
["",null,null,null,null,null,null,null,null,{"$error":"#DIV/0!"}]
["",null,null,null,null,null,null,null,null,{"$f":"AVERAGE(G262:I262)","v":{"$error":"#DIV/0!"}}]
[{"$f":"IF(OR(C263=\"\",A262=\"\"),\"\",A262+1)","v":""},null,null,null,null,null,null,null,null,{"$error":"#DIV/0!"}]
["",null,null,null,null,null,null,null,null,{"$error":"#DIV/0!"}]
["",null,null,null,null,null,null,null,null,{"$error":"#DIV/0!"}]
["",null,null,null,null,null,null,null,null,{"$error":"#DIV/0!"}]
["",null,null,null,null,null,null,null,null,{"$error":"#DIV/0!"}]
["",null,null,null,null,null,null,null,null,{"$error":"#DIV/0!"}]
["",null,null,null,null,null,null,null,null,{"$error":"#DIV/0!"}]
["",null,null,null,null,null,null,null,null,{"$error":"#DIV/0!"}]
["",null,null,null,null,null,null,null,null,{"$error":"#DIV/0!"}]
["",null,null,null,null,null,null,null,null,{"$error":"#DIV/0!"}]
["",null,null,null,null,null,null,null,null,{"$error":"#DIV/0!"}]
["",null,null,null,null,null,null,null,null,{"$error":"#DIV/0!"}]
["",null,null,null,null,null,null,null,null,{"$error":"#DIV/0!"}]
["",null,null,null,null,null,null,null,null,{"$error":"#DIV/0!"}]
["",null,null,null,null,null,null,null,null,{"$error":"#DIV/0!"}]
["",null,null,null,null,null,null,null,null,{"$error":"#DIV/0!"}]
["",null,null,null,null,null,null,null,null,{"$error":"#DIV/0!"}]
["",null,null,null,null,null,null,null,null,{"$error":"#DIV/0!"}]
["",null,null,null,null,null,null,null,null,{"$error":"#DIV/0!"}]
["",null,null,null,null,null,null,null,null,{"$error":"#DIV/0!"}]
["",null,null,null,null,null,null,null,null,{"$error":"#DIV/0!"}]
["",null,null,null,null,null,null,null,null,{"$error":"#DIV/0!"}]
["",null,null,null,null,null,null,null,null,{"$error":"#DIV/0!"}]
["",null,null,null,null,null,null,null,null,{"$error":"#DIV/0!"}]
["",null,null,null,null,null,null,null,null,{"$error":"#DIV/0!"}]
["",null,null,null,null,null,null,null,null,{"$error":"#DIV/0!"}]
["",null,null,null,null,null,null,null,null,{"$error":"#DIV/0!"}]
["",null,null,null,null,null,null,null,null,{"$error":"#DIV/0!"}]
["",null,null,null,null,null,null,null,null,{"$error":"#DIV/0!"}]
["",null,null,null,null,null,null,null,null,{"$error":"#DIV/0!"}]
["",null,null,null,null,null,null,null,null,{"$error":"#DIV/0!"}]
["",null,null,null,null,null,null,null,null,{"$error":"#DIV/0!"}]
["",null,null,null,null,null,null,null,null,{"$error":"#DIV/0!"}]
["",null,null,null,null,null,null,null,null,{"$error":"#DIV/0!"}]
["",null,null,null,null,null,null,null,null,{"$error":"#DIV/0!"}]
["",null,null,null,null,null,null,null,null,{"$error":"#DIV/0!"}]
["",null,null,null,null,null,null,null,null,{"$error":"#DIV/0!"}]
["",null,null,null,null,null,null,null,null,{"$error":"#DIV/0!"}]
["",null,null,null,null,null,null,null,null,{"$error":"#DIV/0!"}]
["",null,null,null,null,null,null,null,null,{"$error":"#DIV/0!"}]
["",null,null,null,null,null,null,null,null,{"$error":"#DIV/0!"}]
["",null,null,null,null,null,null,null,null,{"$error":"#DIV/0!"}]
["",null,null,null,null,null,null,null,null,{"$error":"#DIV/0!"}]
["",null,null,null,null,null,null,null,null,{"$error":"#DIV/0!"}]
["",null,null,null,null,null,null,null,null,{"$error":"#DIV/0!"}]
["",null,null,null,null,null,null,null,null,{"$error":"#DIV/0!"}]
["",null,null,null,null,null,null,null,null,{"$error":"#DIV/0!"}]
["",null,null,null,null,null,null,null,null,{"$error":"#DIV/0!"}]
["",null,null,null,null,null,null,null,null,{"$error":"#DIV/0!"}]
["",null,null,null,null,null,null,null,null,{"$error":"#DIV/0!"}]
["",null,null,null,null,null,null,null,null,{"$error":"#DIV/0!"}]
["",null,null,null,null,null,null,null,null,{"$error":"#DIV/0!"}]
["",null,null,null,null,null,null,null,null,{"$error":"#DIV/0!"}]
["",null,null,null,null,null,null,null,null,{"$error":"#DIV/0!"}]
["",null,null,null,null,null,null,null,null,{"$error":"#DIV/0!"}]
["",null,null,null,null,null,null,null,null,{"$error":"#DIV/0!"}]
["",null,null,null,null,null,null,null,null,{"$error":"#DIV/0!"}]
["",null,null,null,null,null,null,null,null,{"$error":"#DIV/0!"}]
["",null,null,null,null,null,null,null,null,{"$error":"#DIV/0!"}]
["",null,null,null,null,null,null,null,null,{"$error":"#DIV/0!"}]
["",null,null,null,null,null,null,null,null,{"$error":"#DIV/0!"}]
["",null,null,null,null,null,null,null,null,{"$error":"#DIV/0!"}]
["",null,null,null,null,null,null,null,null,{"$error":"#DIV/0!"}]
["",null,null,null,null,null,null,null,null,{"$f":"AVERAGE(G326:I326)","v":{"$error":"#DIV/0!"}}]
[{"$f":"IF(OR(C327=\"\",A326=\"\"),\"\",A326+1)","v":""},null,null,null,null,null,null,null,null,{"$error":"#DIV/0!"}]
["",null,null,null,null,null,null,null,null,{"$error":"#DIV/0!"}]
["",null,null,null,null,null,null,null,null,{"$error":"#DIV/0!"}]
["",null,null,null,null,null,null,null,null,{"$error":"#DIV/0!"}]
["",null,null,null,null,null,null,null,null,{"$error":"#DIV/0!"}]
["",null,null,null,null,null,null,null,null,{"$error":"#DIV/0!"}]
["",null,null,null,null,null,null,null,null,{"$error":"#DIV/0!"}]
["",null,null,null,null,null,null,null,null,{"$error":"#DIV/0!"}]
["",null,null,null,null,null,null,null,null,{"$error":"#DIV/0!"}]
["",null,null,null,null,null,null,null,null,{"$error":"#DIV/0!"}]
["",null,null,null,null,null,null,null,null,{"$error":"#DIV/0!"}]
["",null,null,null,null,null,null,null,null,{"$error":"#DIV/0!"}]
["",null,null,null,null,null,null,null,null,{"$error":"#DIV/0!"}]
["",null,null,null,null,null,null,null,null,{"$error":"#DIV/0!"}]
["",null,null,null,null,null,null,null,null,{"$error":"#DIV/0!"}]
["",null,null,null,null,null,null,null,null,{"$error":"#DIV/0!"}]
["",null,null,null,null,null,null,null,null,{"$error":"#DIV/0!"}]
["",null,null,null,null,null,null,null,null,{"$error":"#DIV/0!"}]
["",null,null,null,null,null,null,null,null,{"$error":"#DIV/0!"}]
["",null,null,null,null,null,null,null,null,{"$error":"#DIV/0!"}]
["",null,null,null,null,null,null,null,null,{"$error":"#DIV/0!"}]
["",null,null,null,null,null,null,null,null,{"$error":"#DIV/0!"}]
["",null,null,null,null,null,null,null,null,{"$error":"#DIV/0!"}]
["",null,null,null,null,null,null,null,null,{"$error":"#DIV/0!"}]
["",null,null,null,null,null,null,null,null,{"$error":"#DIV/0!"}]
["",null,null,null,null,null,null,null,null,{"$error":"#DIV/0!"}]
["",null,null,null,null,null,null,null,null,{"$error":"#DIV/0!"}]
["",null,null,null,null,null,null,null,null,{"$error":"#DIV/0!"}]
["",null,null,null,null,null,null,null,null,{"$error":"#DIV/0!"}]
["",null,null,null,null,null,null,null,null,{"$error":"#DIV/0!"}]
["",null,null,null,null,null,null,null,null,{"$error":"#DIV/0!"}]
["",null,null,null,null,null,null,null,null,{"$error":"#DIV/0!"}]
["",null,null,null,null,null,null,null,null,{"$error":"#DIV/0!"}]
["",null,null,null,null,null,null,null,null,{"$error":"#DIV/0!"}]
["",null,null,null,null,null,null,null,null,{"$error":"#DIV/0!"}]
["",null,null,null,null,null,null,null,null,{"$error":"#DIV/0!"}]
["",null,null,null,null,null,null,null,null,{"$error":"#DIV/0!"}]
["",null,null,null,null,null,null,null,null,{"$error":"#DIV/0!"}]
["",null,null,null,null,null,null,null,null,{"$error":"#DIV/0!"}]
["",null,null,null,null,null,null,null,null,{"$error":"#DIV/0!"}]
["",null,null,null,null,null,null,null,null,{"$error":"#DIV/0!"}]
["",null,null,null,null,null,null,null,null,{"$error":"#DIV/0!"}]
["",null,null,null,null,null,null,null,null,{"$error":"#DIV/0!"}]
["",null,null,null,null,null,null,null,null,{"$error":"#DIV/0!"}]
["",null,null,null,null,null,null,null,null,{"$error":"#DIV/0!"}]
["",null,null,null,null,null,null,null,null,{"$error":"#DIV/0!"}]
["",null,null,null,null,null,null,null,null,{"$error":"#DIV/0!"}]
["",null,null,null,null,null,null,null,null,{"$error":"#DIV/0!"}]
["",null,null,null,null,null,null,null,null,{"$error":"#DIV/0!"}]
["",null,null,null,null,null,null,null,null,{"$error":"#DIV/0!"}]
["",null,null,null,null,null,null,null,null,{"$error":"#DIV/0!"}]
["",null,null,null,null,null,null,null,null,{"$error":"#DIV/0!"}]
["",null,null,null,null,null,null,null,null,{"$error":"#DIV/0!"}]
["",null,null,null,null,null,null,null,null,{"$error":"#DIV/0!"}]
["",null,null,null,null,null,null,null,null,{"$error":"#DIV/0!"}]
["",null,null,null,null,null,null,null,null,{"$error":"#DIV/0!"}]
["",null,null,null,null,null,null,null,null,{"$error":"#DIV/0!"}]
["",null,null,null,null,null,null,null,null,{"$error":"#DIV/0!"}]
["",null,null,null,null,null,null,null,null,{"$error":"#DIV/0!"}]
["",null,null,null,null,null,null,null,null,{"$error":"#DIV/0!"}]
["",null,null,null,null,null,null,null,null,{"$error":"#DIV/0!"}]
["",null,null,null,null,null,null,null,null,{"$error":"#DIV/0!"}]
["",null,null,null,null,null,null,null,null,{"$error":"#DIV/0!"}]
["",null,null,null,null,null,null,null,null,{"$f":"AVERAGE(G390:I390)","v":{"$error":"#DIV/0!"}}]
[{"$f":"IF(OR(C391=\"\",A390=\"\"),\"\",A390+1)","v":""},null,null,null,null,null,null,null,null,{"$error":"#DIV/0!"}]
["",null,null,null,null,null,null,null,null,{"$error":"#DIV/0!"}]
["",null,null,null,null,null,null,null,null,{"$error":"#DIV/0!"}]
["",null,null,null,null,null,null,null,null,{"$error":"#DIV/0!"}]
["",null,null,null,null,null,null,null,null,{"$error":"#DIV/0!"}]
["",null,null,null,null,null,null,null,null,{"$error":"#DIV/0!"}]
["",null,null,null,null,null,null,null,null,{"$error":"#DIV/0!"}]
["",null,null,null,null,null,null,null,null,{"$error":"#DIV/0!"}]
["",null,null,null,null,null,null,null,null,{"$error":"#DIV/0!"}]
["",null,null,null,null,null,null,null,null,{"$error":"#DIV/0!"}]
["",null,null,null,null,null,null,null,null,{"$error":"#DIV/0!"}]
["",null,null,null,null,null,null,null,null,{"$error":"#DIV/0!"}]
["",null,null,null,null,null,null,null,null,{"$error":"#DIV/0!"}]
["",null,null,null,null,null,null,null,null,{"$error":"#DIV/0!"}]
["",null,null,null,null,null,null,null,null,{"$error":"#DIV/0!"}]
["",null,null,null,null,null,null,null,null,{"$error":"#DIV/0!"}]
["",null,null,null,null,null,null,null,null,{"$error":"#DIV/0!"}]
["",null,null,null,null,null,null,null,null,{"$error":"#DIV/0!"}]
["",null,null,null,null,null,null,null,null,{"$error":"#DIV/0!"}]
["",null,null,null,null,null,null,null,null,{"$error":"#DIV/0!"}]
["",null,null,null,null,null,null,null,null,{"$error":"#DIV/0!"}]
["",null,null,null,null,null,null,null,null,{"$error":"#DIV/0!"}]
["",null,null,null,null,null,null,null,null,{"$error":"#DIV/0!"}]
["",null,null,null,null,null,null,null,null,{"$error":"#DIV/0!"}]
["",null,null,null,null,null,null,null,null,{"$error":"#DIV/0!"}]
["",null,null,null,null,null,null,null,null,{"$error":"#DIV/0!"}]
["",null,null,null,null,null,null,null,null,{"$error":"#DIV/0!"}]
["",null,null,null,null,null,null,null,null,{"$error":"#DIV/0!"}]
["",null,null,null,null,null,null,null,null,{"$error":"#DIV/0!"}]
["",null,null,null,null,null,null,null,null,{"$error":"#DIV/0!"}]
["",null,null,null,null,null,null,null,null,{"$error":"#DIV/0!"}]
["",null,null,null,null,null,null,null,null,{"$error":"#DIV/0!"}]
["",null,null,null,null,null,null,null,null,{"$error":"#DIV/0!"}]
["",null,null,null,null,null,null,null,null,{"$error":"#DIV/0!"}]
["",null,null,null,null,null,null,null,null,{"$error":"#DIV/0!"}]
["",null,null,null,null,null,null,null,null,{"$error":"#DIV/0!"}]
["",null,null,null,null,null,null,null,null,{"$error":"#DIV/0!"}]
["",null,null,null,null,null,null,null,null,{"$error":"#DIV/0!"}]
["",null,null,null,null,null,null,null,null,{"$error":"#DIV/0!"}]
["",null,null,null,null,null,null,null,null,{"$error":"#DIV/0!"}]
["",null,null,null,null,null,null,null,null,{"$error":"#DIV/0!"}]
["",null,null,null,null,null,null,null,null,{"$error":"#DIV/0!"}]
["",null,null,null,null,null,null,null,null,{"$error":"#DIV/0!"}]
["",null,null,null,null,null,null,null,null,{"$error":"#DIV/0!"}]
["",null,null,null,null,null,null,null,null,{"$error":"#DIV/0!"}]
["",null,null,null,null,null,null,null,null,{"$error":"#DIV/0!"}]
["",null,null,null,null,null,null,null,null,{"$error":"#DIV/0!"}]
["",null,null,null,null,null,null,null,null,{"$error":"#DIV/0!"}]
["",null,null,null,null,null,null,null,null,{"$error":"#DIV/0!"}]
["",null,null,null,null,null,null,null,null,{"$error":"#DIV/0!"}]
["",null,null,null,null,null,null,null,null,{"$error":"#DIV/0!"}]
["",null,null,null,null,null,null,null,null,{"$error":"#DIV/0!"}]
["",null,null,null,null,null,null,null,null,{"$error":"#DIV/0!"}]
["",null,null,null,null,null,null,null,null,{"$error":"#DIV/0!"}]
["",null,null,null,null,null,null,null,null,{"$error":"#DIV/0!"}]
["",null,null,null,null,null,null,null,null,{"$error":"#DIV/0!"}]
["",null,null,null,null,null,null,null,null,{"$error":"#DIV/0!"}]
["",null,null,null,null,null,null,null,null,{"$error":"#DIV/0!"}]
["",null,null,null,null,null,null,null,null,{"$error":"#DIV/0!"}]
["",null,null,null,null,null,null,null,null,{"$error":"#DIV/0!"}]
["",null,null,null,null,null,null,null,null,{"$error":"#DIV/0!"}]
["",null,null,null,null,null,null,null,null,{"$error":"#DIV/0!"}]
["",null,null,null,null,null,null,null,null,{"$error":"#DIV/0!"}]
["",null,null,null,null,null,null,null,null,{"$f":"AVERAGE(G454:I454)","v":{"$error":"#DIV/0!"}}]
[{"$f":"IF(OR(C455=\"\",A454=\"\"),\"\",A454+1)","v":""},null,null,null,null,null,null,null,null,{"$error":"#DIV/0!"}]
["",null,null,null,null,null,null,null,null,{"$error":"#DIV/0!"}]
["",null,null,null,null,null,null,null,null,{"$error":"#DIV/0!"}]
["",null,null,null,null,null,null,null,null,{"$error":"#DIV/0!"}]
["",null,null,null,null,null,null,null,null,{"$error":"#DIV/0!"}]
["",null,null,null,null,null,null,null,null,{"$error":"#DIV/0!"}]
["",null,null,null,null,null,null,null,null,{"$error":"#DIV/0!"}]
["",null,null,null,null,null,null,null,null,{"$error":"#DIV/0!"}]
["",null,null,null,null,null,null,null,null,{"$error":"#DIV/0!"}]
["",null,null,null,null,null,null,null,null,{"$error":"#DIV/0!"}]
["",null,null,null,null,null,null,null,null,{"$error":"#DIV/0!"}]
["",null,null,null,null,null,null,null,null,{"$error":"#DIV/0!"}]
["",null,null,null,null,null,null,null,null,{"$error":"#DIV/0!"}]
["",null,null,null,null,null,null,null,null,{"$error":"#DIV/0!"}]
["",null,null,null,null,null,null,null,null,{"$error":"#DIV/0!"}]
["",null,null,null,null,null,null,null,null,{"$error":"#DIV/0!"}]
["",null,null,null,null,null,null,null,null,{"$error":"#DIV/0!"}]
["",null,null,null,null,null,null,null,null,{"$error":"#DIV/0!"}]
["",null,null,null,null,null,null,null,null,{"$error":"#DIV/0!"}]
["",null,null,null,null,null,null,null,null,{"$error":"#DIV/0!"}]
["",null,null,null,null,null,null,null,null,{"$error":"#DIV/0!"}]
["",null,null,null,null,null,null,null,null,{"$error":"#DIV/0!"}]
["",null,null,null,null,null,null,null,null,{"$error":"#DIV/0!"}]
["",null,null,null,null,null,null,null,null,{"$error":"#DIV/0!"}]
["",null,null,null,null,null,null,null,null,{"$error":"#DIV/0!"}]
["",null,null,null,null,null,null,null,null,{"$error":"#DIV/0!"}]
["",null,null,null,null,null,null,null,null,{"$error":"#DIV/0!"}]
["",null,null,null,null,null,null,null,null,{"$error":"#DIV/0!"}]
["",null,null,null,null,null,null,null,null,{"$error":"#DIV/0!"}]
["",null,null,null,null,null,null,null,null,{"$error":"#DIV/0!"}]
["",null,null,null,null,null,null,null,null,{"$error":"#DIV/0!"}]
["",null,null,null,null,null,null,null,null,{"$error":"#DIV/0!"}]
["",null,null,null,null,null,null,null,null,{"$error":"#DIV/0!"}]
["",null,null,null,null,null,null,null,null,{"$error":"#DIV/0!"}]
["",null,null,null,null,null,null,null,null,{"$error":"#DIV/0!"}]
["",null,null,null,null,null,null,null,null,{"$error":"#DIV/0!"}]
["",null,null,null,null,null,null,null,null,{"$error":"#DIV/0!"}]
["",null,null,null,null,null,null,null,null,{"$error":"#DIV/0!"}]
["",null,null,null,null,null,null,null,null,{"$error":"#DIV/0!"}]
["",null,null,null,null,null,null,null,null,{"$error":"#DIV/0!"}]
["",null,null,null,null,null,null,null,null,{"$error":"#DIV/0!"}]
["",null,null,null,null,null,null,null,null,{"$error":"#DIV/0!"}]
["",null,null,null,null,null,null,null,null,{"$error":"#DIV/0!"}]
["",null,null,null,null,null,null,null,null,{"$error":"#DIV/0!"}]
["",null,null,null,null,null,null,null,null,{"$error":"#DIV/0!"}]
["",null,null,null,null,null,null,null,null,{"$error":"#DIV/0!"}]
["",null,null,null,null,null,null,null,null,{"$error":"#DIV/0!"}]
["",null,null,null,null,null,null,null,null,{"$error":"#DIV/0!"}]
["",null,null,null,null,null,null,null,null,{"$error":"#DIV/0!"}]
["",null,null,null,null,null,null,null,null,{"$error":"#DIV/0!"}]
["",null,null,null,null,null,null,null,null,{"$error":"#DIV/0!"}]
["",null,null,null,null,null,null,null,null,{"$error":"#DIV/0!"}]
["",null,null,null,null,null,null,null,null,{"$error":"#DIV/0!"}]
["",null,null,null,null,null,null,null,null,{"$error":"#DIV/0!"}]
["",null,null,null,null,null,null,null,null,{"$error":"#DIV/0!"}]